{"text_format":"1","workbook":"xlsx","n_sheets":29,"sheets":["Main page","Library (2)","Foglio2","SHC system","SHC system with PV","Conventional System ","Conventional System with PV","Library","Calcolo a","Calcolo b","Calcolo c","Calcolo d","Impacts_SHC system","Impacts__SHC system_PV","Impacts__Conventional_system","Impacts_Conventional_system_PV","Impacts comparison","Payback indices","Impacts comparison (2)","Impacts comparison (3)","Impacts comparison (4)","Impacts comparison (5)","Impacts comparison (6)","Impacts comparison (7)","Impacts comparison (8)","Impacts comparison (9)","Impacts comparison (10)","Impacts comparison (11)","_SSC"],"not_rendered":{"charts":62,"images":12,"macros":1,"external_links":2,"defined_names":73,"comments":10,"pivot_tables":0},"unopened":[],"bounds":{"document_bytes":16777216,"sheet_cells":100000,"rows_first":2000,"rows_last":500,"rows_between":2000,"halvings":0,"cell_chars":16384,"cell_head_chars":4096},"cells_cut":0,"cells_raw":0,"read":"whole","date_system":"1900"}

{"sheet":"Main page","index":0,"n_rows":26,"n_cols":17,"rows_kept":26,"cut":false,"hidden":false,"merged":[[6,3,6,9],[8,3,20,9],[23,3,23,9],[25,3,37,9]]}
[]
[]
[]
[]
[]
[]
[null,null,null,"MAIN PAGE",null,null,null,null,null,null,null,null,null,null,null,null,"General Information"]
[]
[]
[]
[]
[]
[]
[]
[]
[]
[]
[]
[]
[]
[]
[]
[]
[null,null,null,"! Recommendation for users: please note that this tool must be used only for academic and research activities"]
[]
[null,null,null,"DISCLAIMER ELISA TOOL\nThis License Agreement is a legal agreement for ELISA. By installing, copying or otherwise using the tool, you agree to be bound by the terms of this Agreement. This tool is not intended to provide specific advice or recommendations in any circumstances. It may not cover aspects of your particular situation and an investigation with different tools could generate a different result. The Members of IEA Task 53 assume no responsibility for any errors or omissions within the tool. The Members of IEA Task 53 make no warranty of any kind with respect to ELISA tool. Under no circumstances shall the Members of IEA Task 53 be held liable for any loss or damage (including any type of damage), which may be attributable to the reliance on and use of the tool.\nThis License Agreement authorizes the use of the ELISA tool only for teaching and non-commercial research activities. A research activity is considered non-commercial only if its results are not intended primarily for the benefit of a third party, are made available to anyone without restriction on use, copying, and further distribution, and are furnished at no more than the cost of reproduction and shipping.  "]

{"sheet":"Library (2)","index":1,"n_rows":159,"n_cols":8,"rows_kept":159,"cut":false,"hidden":true,"merged":[[1,5,1,7]]}
[]
[null,null,"Global Energy Requirement (Ger)",null,null,"Global Warming Potential (Gwp)"]
[null,"COMPONENTS","Manufacturing Step","End-Of-Life Step","U.M.","Manufacturing Step","End-Of-Life Step","U.M."]
[null,"<Chiller (ad/ab-sorption)>",null,null,"MJ/unit",null,null,"kgCO2eq/unit"]
[null,"Absorption chiller (12 kW)",26005.37,3.1269999999999998,"MJ/unit",1382.338,12.554,"kgCO2eq/unit"]
[null,"Absorption chiller (19 kW)",42850.54,4.6900000000000004,"MJ/unit",1996,18.831,"kgCO2eq/unit"]
[]
[]
[]
[null,"<Ammonia>"]
[null,"Ammonia",41.953000000000003,0,"MJ/kg",2.0960000000000001,0,"kgCO2eq/kg"]
[null,"<Auxiliary Sistem>"]
[null,"a","a","a",null,"a","a"]
[null,"Auxiliary conventional chiller (10 kW)",8131.0969999999998,7.8330000000000002,"MJ/unit",1550.461,25.818000000000001,"kgCO2eq/unit"]
[null,"Auxiliary gas boiler (10 kW)",6781.86,61.51,"MJ/unit",365.71,12.04,"kgCO2eq/unit"]
[]
[]
[]
[null,"<Battery>"]
[null,"Battery lead-acid",17,12,"MJ/kg",0.9,0.93200000000000005,"kgCO2eq/kg"]
[null,"Battery lithium-ion-manganate",108.58799999999999,12,"MJ/kg",5.851,0.93200000000000005,"kgCO2eq/kg"]
[null,"Battery lithium-iron-phosphate",192.59200000000001,12,"MJ/kg",22,0.93200000000000005,"kgCO2eq/kg"]
[null,"Battery nickel cadmium",37,12,"MJ/kg",2.1,0.93200000000000005,"kgCO2eq/kg"]
[null,"Battery nickel cobalt manganese",196.779,12,"MJ/kg",22,0.93200000000000005,"kgCO2eq/kg"]
[null,"Battery nickel metal hydride",226.08699999999999,12,"MJ/kg",20,0.93200000000000005,"kgCO2eq/kg"]
[null,"Battery sodium-nickel-chloride",234.3,11.04,"MJ/kg",14.324,0.77100000000000002,"kgCO2eq/kg"]
[null,"Battery v-redox",67.786000000000001,9.8829999999999991,"MJ/kg",6.8029999999999999,1.173,"kgCO2eq/unit"]
[]
[]
[]
[null,"<Chiller (conventional)>"]
[null,"Conventional chiller (10 kW)",8131.0969999999998,7.8330000000000002,"MJ/unit",1550.461,25.818000000000001,"kgCO2eq/unit"]
[]
[]
[]
[null,"<Cooling tower>"]
[null,"Cooling tower (32 kW)",2950.6930000000002,10.739000000000001,"MJ/unit",149.976,3.1339999999999999,"kgCO2eq/unit"]
[]
[null,"<Electric installation>"]
[null,"Electric installation (PV system)",2221.35,11.159000000000001,"MJ/unit",79.744,60.154000000000003,"kgCO2eq/unit"]
[]
[null,"<Solar collector>"]
[null,"Evacuated tube collector",1579.694,12.981999999999999,"MJ/m2",86.966999999999999,3.9409999999999998,"kgCO2eq/m2"]
[null,"Flat plate collector",1742.0940000000001,10.182,"MJ/m2",99.031000000000006,4.2409999999999997,"kgCO2eq/m2"]
[]
[null,"<Gas boiler >"]
[null,"Gas boiler (10 kW)",6781.86,61.51,"MJ/unit",365.71,12.04,"kgCO2eq/unit"]
[]
[null,"<Glycol>"]
[null,"Glycol",52.164999999999999,0.183,"MJ/kg",1.591,1.4339999999999999,"kgCO2eq/l"]
[]
[null,"<Heat rejection system>"]
[null,"Heat rejection system (24 kW)",14348,9,"MJ/unit",770,105,"kgCO2eq/unit"]
[]
[null,"<Heat storage>"]
[null,"Heat storage (2000 l)",14811.72,21.315999999999999,"MJ/unit",783.31,12.711,"kgCO2eq/unit"]
[]
[null,"<Inverter >"]
[null,"Inverter (2500 W)",3212.3969999999999,3.7229999999999999,"MJ/unit",173.72,1.373,"kgCO2eq/unit"]
[null,"Inverter (500 W)",685.25199999999995,1.675,"MJ/unit",36.311,1.2809999999999999,"kgCO2eq/unit"]
[]
[]
[null,"<Photovoltaic panel>"]
[null,"Photovoltaic panel, a-Si",1181.6959999999999,1.548,"MJ/m2",72.960999999999999,4.2279999999999998,"kgCO2eq/m2"]
[null,"Photovoltaic panel, CdTe",1515.6890000000001,1.548,"MJ/m2",96.281000000000006,4.2279999999999998,"kgCO2eq/m2"]
[null,"Photovoltaic panel, CIS",2029.4349999999999,1.548,"MJ/m2",121.68,4.2279999999999998,"kgCO2eq/m2"]
[null,"Photovoltaic panel, multi-Si",3060.768,1.548,"MJ/m2",156.667,4.2279999999999998,"kgCO2eq/m2"]
[null,"Photovoltaic panel, ribbon-Si",2414.6990000000001,1.548,"MJ/m2",126.67100000000001,4.2279999999999998,"kgCO2eq/m2"]
[null,"Photovoltaic panel, single-Si",3854.7959999999998,1.548,"MJ/m2",196.05600000000001,4.2279999999999998,"kgCO2eq/m2"]
[]
[]
[]
[null,"<Pipes>"]
[null,"Pipes (m2)",65.483000000000004,0.33200000000000002,"MJ/m",2.633,9.7000000000000003E-2,"kgCO2eq/m"]
[]
[]
[null,"<Pump>"]
[null,"Pump (40 W)",118.176,0.374,"MJ/unit",6.9130000000000003,0.08,"kgCO2eq/unit"]
[]
[]
[null,"<Water>",null,null,"MJ/kg",null,"ca","kgCO2eq/kg"]
[null,"ciao",1,1,null,1,1]
[null,1,1,1,null,1,1]
[]
[null,"c","c","c","c","c","c","c"]
[null,"c","c","c","c","c","c","c"]
[]
[null,null,"Global Energy Requirement (Ger)",null,null,"Global Warming Potential (Gwp)"]
[null,"<Electricity>"]
[null,"Electricity, low voltage, Europe",12.288668869679389,"MJ/kWh",null,0.5640665787536201,"kg CO2eq/kWh"]
[null,"Electricity, low voltage, Austria (excluding import)",8.0658927726711767,"MJ/kWh",null,0.35782277792710643,"kg CO2eq/kWh"]
[null,"Electricity, low voltage, Belgium (excluding import)",12.512154419042936,"MJ/kWh",null,0.36414487090095227,"kg CO2eq/kWh"]
[null,"Electricity, low voltage, Bulgaria (excluding import)",15.523847350284765,"MJ/kWh",null,0.78892341739326199,"kg CO2eq/kWh"]
[null,"Electricity, low voltage, Croatia (excluding import)",10.837793429695552,"MJ/kWh",null,0.42496162689240646,"kg CO2eq/kWh"]
[null,"Electricity, low voltage, Czech Republic (excluding import)",13.190667855664849,"MJ/kWh",null,0.88466389448935001,"kg CO2eq/kWh"]
[null,"Electricity, low voltage, Denmark (excluding import)",10.735440201919175,"MJ/kWh",null,0.69751555465053483,"kg CO2eq/kWh"]
[null,"Electricity, low voltage, Finland (excluding import)",12.490844081328749,"MJ/kWh",null,0.43820642230493173,"kg CO2eq/kWh"]
[null,"Electricity, low voltage, France (excluding import)",13.627172082639401,"MJ/kWh",null,0.10543952722080681,"kg CO2eq/kWh"]
[null,"Electricity, low voltage, Germany (excluding import)",12.662411329595765,"MJ/kWh",null,0.74811084027301356,"kg CO2eq/kWh"]
[null,"Electricity, low voltage, Greece (excluding import)",18.658849849097582,"MJ/kWh",null,1.1772127198864677,"kg CO2eq/kWh"]
[null,"Electricity, low voltage, Hungary (excluding import)",17.051850516441132,"MJ/kWh",null,0.83546971779516188,"kg CO2eq/kWh"]
[null,"Electricity, low voltage, Ireland (excluding import)",13.059732838441164,"MJ/kWh",null,0.90220516182776489,"kg CO2eq/kWh"]
[null,"Electricity, low voltage, Italy (excluding import)",10.705034937318649,"MJ/kWh",null,0.71889879414570679,"kg CO2eq/kWh"]
[null,"Electricity, low voltage, Luxembourg (excluding import)",10.816168340971544,"MJ/kWh",null,0.60301639549110864,"kg CO2eq/kWh"]
[null,"Electricity, low voltage, Netherlands (excluding import)",11.845163579521621,"MJ/kWh",null,0.74347953100424402,"kg CO2eq/kWh"]
[null,"Electricity, low voltage, Poland (excluding import)",16.050501439909439,"MJ/kWh",null,1.3741028207236248,"kg CO2eq/kWh"]
[null,"Electricity, low voltage, Portugal (excluding import)",11.519051650790797,"MJ/kWh",null,0.71324012714633822,"kg CO2eq/kWh"]
[null,"Electricity, low voltage, Romania (excluding import)",12.420295625141417,"MJ/kWh",null,0.80713592010545576,"kg CO2eq/kWh"]
[null,"Electricity, low voltage, Slovakia (excluding import)",12.809767239674287,"MJ/kWh",null,0.41372811566214496,"kg CO2eq/kWh"]
[null,"Electricity, low voltage, Slovenia (excluding import)",10.385296869344828,"MJ/kWh",null,0.55861974788285784,"kg CO2eq/kWh"]
[null,"Electricity, low voltage, Spain (excluding import)",12.1682833954288,"MJ/kWh",null,0.60626984332910427,"kg CO2eq/kWh"]
[null,"Electricity, low voltage, Sweden (excluding import)",10.547366139084515,"MJ/kWh",null,5.1013409834418127E-2,"kg CO2eq/kWh"]
[null,"Electricity, low voltage, Switzerland (excluding import)",8.6775706429020065,"MJ/kWh",null,2.9757584878190323E-2,"kg CO2eq/kWh"]
[null,"Electricity, low voltage, United Kingdom (excluding import)",12.368906279597478,"MJ/kWh",null,0.70248916032712516,"kg CO2eq/kWh"]
[null,"Electricity, low voltage, Austria (including import)",9.0570000000000004,"MJ/kWh",null,0.44628264179845795,"kg CO2eq/kWh"]
[null,"Electricity, low voltage, Belgium (including import)",12.487508333761681,"MJ/kWh",null,0.36698828343651702,"kg CO2eq/kWh"]
[null,"Electricity, low voltage, Bulgaria (including import)",15.484510950232943,"MJ/kWh",null,0.79049813771722721,"kg CO2eq/kWh"]
[null,"Electricity, low voltage, Croatia (including import)",12.466674632278172,"MJ/kWh",null,0.59733680305879511,"kg CO2eq/kWh"]
[null,"Electricity, low voltage, Czech Republic (including import)",13.413940093805358,"MJ/kWh",null,0.92660832014875616,"kg CO2eq/kWh"]
[null,"Electricity, low voltage, Denmark (including import)",10.611012666762811,"MJ/kWh",null,0.62631499328721185,"kg CO2eq/kWh"]
[null,"Electricity, low voltage, Finland (including import)",12.664438285004245,"MJ/kWh",null,0.50175505398380593,"kg CO2eq/kWh"]
[null,"Electricity, low voltage, France (including import)",13.570799167938924,"MJ/kWh",null,0.10785301379734698,"kg CO2eq/kWh"]
[null,"Electricity, low voltage, Germany (including import)",12.579859776952199,"MJ/kWh",null,0.72292704893278159,"kg CO2eq/kWh"]
[null,"Electricity, low voltage, Greece (including import)",18.267737582218412,"MJ/kWh",null,1.1457546523555282,"kg CO2eq/kWh"]
[null,"Electricity, low voltage, Hungary (including import)",16.175904359399681,"MJ/kWh",null,0.75199437035030792,"kg CO2eq/kWh"]
[null,"Electricity, low voltage, Ireland (including import)",13.012298932181878,"MJ/kWh",null,0.88985331374594623,"kg CO2eq/kWh"]
[null,"Electricity, low voltage, Italy (including import)",10.737176848486692,"MJ/kWh",null,0.64351434382149697,"kg CO2eq/kWh"]
[null,"Electricity, low voltage, Luxembourg (including import)",12.109161825024843,"MJ/kWh",null,0.64289545899124456,"kg CO2eq/kWh"]
[null,"Electricity, low voltage, Netherlands (including import)",11.918506343818695,"MJ/kWh",null,0.72713052318501625,"kg CO2eq/kWh"]
[null,"Electricity, low voltage, Poland (including import)",14.182962694631957,"MJ/kWh",null,1.1998212414826828,"kg CO2eq/kWh"]
[null,"Electricity, low voltage, Portugal (including import)",11.61752426527986,"MJ/kWh",null,0.69596401088721815,"kg CO2eq/kWh"]
[null,"Electricity, low voltage, Romania (including import)",12.499602056222304,"MJ/kWh",null,0.80981584935508744,"kg CO2eq/kWh"]
[null,"Electricity, low voltage, Slovakia (including import)",11.93273677028558,"MJ/kWh",null,0.50579630891253646,"kg CO2eq/kWh"]
[null,"Electricity, low voltage, Slovenia (including import)",9.9503882036333451,"MJ/kWh",null,0.48728588814361151,"kg CO2eq/kWh"]
[null,"Electricity, low voltage, Spain (including import)",12.208329564976685,"MJ/kWh",null,0.59646920994123664,"kg CO2eq/kWh"]
[null,"Electricity, low voltage, Sweden (including import)",10.655937371752202,"MJ/kWh",null,0.10195832804907509,"kg CO2eq/kWh"]
[null,"Electricity, low voltage, Switzerland (including import)",10.983613037552056,"MJ/kWh",null,0.1489153097970829,"kg CO2eq/kWh"]
[null,"Electricity, low voltage, United Kingdom (including import)",12.41007063860485,"MJ/kWh",null,0.68752185894228524,"kg CO2eq/kWh"]
[null,"<Natural gas>"]
[null,"Natural gas, burned in boiler atmosferic low-NOx condensing non-modulating, <100 kW, Europe",4.6099856268892561,"MJ/kWh",null,0.27301360824915938,"kg CO2eq/kWh"]
[null,"Natural gas, burned in boiler atmosferic burner non-modulating, <100 kW, Europe",4.4439067245612724,"MJ/kWh",null,0.26523797394780751,"kg CO2eq/kWh"]
[null,"Natural gas, burned in boiler condensing modulating, <100 kW, Europe",4.4824443656403314,"MJ/kWh",null,0.26704226472645243,"kg CO2eq/kWh"]
[null,"Natural gas, burned in boiler condensing modulating, >100 kW, Europe",4.3042253200700227,"MJ/kWh",null,0.24751057733204451,"kg CO2eq/kWh"]
[null,"Natural gas, burned in boiler fan burner low-Nox non-modulating, <100 kW, Europe",4.7370681003006263,"MJ/kWh",null,0.27896347252314574,"kg CO2eq/kWh"]
[null,"Natural gas, burned in boiler fan burner non-modulating, <100 kW, Europe",4.4824443656403314,"MJ/kWh",null,0.26704226472645243,"kg CO2eq/kWh"]
[null,"Natural gas, burned in boiler modulating, <100 kW, Europe",4.4824443656403314,"MJ/kWh",null,0.26704226472645243,"kg CO2eq/kWh"]
[null,"Natural gas, burned in boiler modulating, >100 kW, Europe",4.3042253207056778,"MJ/kWh",null,0.24751057765312146,"kg CO2eq/kWh"]
[null,"Natural gas, burned in industrial furnace, >100 kW, Europe",4.3042253737743961,"MJ/kWh",null,0.24712897842382547,"kg CO2eq/kWh"]
[null,"Natural gas, burned in industrial furnace low-NOx, >100 kW, Europe",4.4446125292828027,"MJ/kWh",null,0.25370175244241888,"kg CO2eq/kWh"]
[null,"Natural gas, burned in boiler atmosferic low-NOx condensing non-modulating, <100 kW, Europe",4.6099856268892561,"MJ/kWh",null,0.27301360824915938,"kg CO2eq/kWh"]
[null,"Natural gas, burned in boiler atmosferic burner non-modulating, <100 kW, Europe",4.4439067245612724,"MJ/kWh",null,0.26523797394780751,"kg CO2eq/kWh"]
[null,"Natural gas, burned in boiler condensing modulating, <100 kW, Europe",4.4824443656403314,"MJ/kWh",null,0.26704226472645243,"kg CO2eq/kWh"]
[null,"Natural gas, burned in boiler condensing modulating, >100 kW, Europe",4.3042253200700227,"MJ/kWh",null,0.24751057733204451,"kg CO2eq/kWh"]
[null,"Natural gas, burned in boiler fan burner low-Nox non-modulating, <100 kW, Europe",4.7370681003006263,"MJ/kWh",null,0.27896347252314574,"kg CO2eq/kWh"]
[null,"Natural gas, burned in boiler fan burner non-modulating, <100 kW, Europe",4.4824443656403314,"MJ/kWh",null,0.26704226472645243,"kg CO2eq/kWh"]
[null,"Natural gas, burned in boiler modulating, <100 kW, Europe",4.4824443656403314,"MJ/kWh",null,0.26704226472645243,"kg CO2eq/kWh"]
[null,"Natural gas, burned in boiler modulating, >100 kW, Europe",4.3042253207056778,"MJ/kWh",null,0.24751057765312146,"kg CO2eq/kWh"]
[null,"Natural gas, burned in industrial furnace, >100 kW, Europe",4.3042253737743961,"MJ/kWh",null,0.24712897842382547,"kg CO2eq/kWh"]
[null,"Natural gas, burned in industrial furnace low-NOx, >100 kW, Europe",4.4446125292828027,"MJ/kWh",null,0.25370175244241888,"kg CO2eq/kWh"]

{"sheet":"Foglio2","index":2,"n_rows":2,"n_cols":21,"rows_kept":2,"cut":false,"hidden":true,"merged":[]}
["<Chiller (ad/ab-sorption)>","<Ammonia>","<Auxiliary Conventional Chiller>","<Auxiliary Gas Boiler>","<Battery>","<Chiller (conventional)>","<Cooling tower>","<Electric installation>","<Solar collector>","<Gas boiler >","<Glycol>","<Heat rejection system>","<Heat-pump>","<Heat storage>","<Inverter >","<Photovoltaic panel>","<Pipes>","<Pump>","<Water>","<Electricity>","<Natural gas>"]
["Absorption chiller 100 kW and air cooler",null,null,null,null,null,null,null,null,null,null,null,null,null,null,null,"A"]

{"sheet":"SHC system","index":3,"n_rows":74,"n_cols":28,"rows_kept":74,"cut":false,"hidden":true,"merged":[[74,2,74,3],[72,2,72,3],[73,2,73,3],[70,2,70,3],[71,2,71,3],[51,2,51,3],[52,2,52,3],[53,2,53,3],[54,2,54,3],[55,2,55,3],[56,2,56,3],[57,2,57,3],[58,2,58,3],[59,2,59,3],[60,2,60,3],[67,2,67,3],[61,2,61,3],[62,2,62,3],[68,2,68,3],[69,2,69,3],[63,2,63,3],[64,2,64,3],[65,2,65,3],[66,2,66,3],[5,27,6,28],[32,11,32,12],[24,11,24,12],[25,11,25,12],[26,11,26,12],[27,11,27,12],[28,11,28,12],[29,11,29,12],[30,11,30,12],[19,11,19,12],[20,11,20,12],[21,11,21,12],[12,11,12,12],[13,11,13,12],[14,11,14,12],[15,11,15,12],[23,11,23,12],[31,11,31,12],[19,15,19,16],[14,15,14,16],[17,11,17,12],[22,11,22,12],[18,11,18,12],[16,11,16,12],[22,15,22,16],[15,15,15,16],[16,15,16,16],[17,15,17,16],[18,15,18,16],[16,21,16,22],[16,23,16,24],[17,17,17,18],[17,19,17,20],[17,21,17,22],[17,23,17,24],[16,17,16,18],[16,19,16,20],[9,15,9,16],[10,15,10,16],[11,15,11,16],[12,15,12,16],[13,15,13,16],[8,2,9,7],[36,2,36,3],[11,2,11,3],[30,2,30,3],[35,2,35,3],[18,2,18,3],[19,2,19,3],[20,2,20,3],[21,2,21,3],[22,2,22,3],[23,2,23,3],[12,2,12,3],[13,2,13,3],[14,2,14,3],[15,2,15,3],[31,2,31,3],[46,3,46,4],[48,2,48,3],[49,2,49,3],[50,2,50,3],[10,2,10,7],[34,2,34,5],[32,2,32,3],[16,2,16,3],[24,2,24,3],[25,2,25,3],[26,2,26,3],[27,2,27,3],[29,2,29,5],[17,2,17,3],[28,2,28,3],[47,2,47,3]]}
[]
[]
[]
[]
[]
[null,null,null,null,null,null,null,null,null,null,null,null,null,null,null,null,null,null,null,null,null,null,null,null,null,null,null,"Notes"]
[null,null,null,null,null,null,null,null,null,null,null,null,null,null,null,null,null,null,null,"General Information"]
[]
[]
[]
[null,null,"COMPONENTS OF THE SHC SYSTEM"]
[null,null,"Category",null,"U.M.","Quantity",null,"n°REPLACEMENT"]
[null,null,"<Ammonia>",null,"kg",null,null,null,null,null,null,"<Ammonia>"]
[null,null,"<Auxiliary Conventional Chiller>",null,"unit",null,null,null,null,null,null,"<Auxiliary Conventional Chiller>"]
[null,null,"<Auxiliary Gas Boiler>",null,"unit",null,null,null,null,null,null,"<Auxiliary Gas Boiler>"]
[null,null,"<Chiller (ad/ab-sorption)>",null,"unit",null,null,null,null,null,null,"<Chiller (ad/ab-sorption)>"]
[null,null,"<Cooling tower>",null,"unit",null,null,null,null,null,null,"<Cooling tower>"]
[null,null,"<Glycol>",null,"kg",null,null,null,null,null,null,"<Glycol>"]
[null,null,"<Heat rejection system>",null,"unit",null,null,null,null,null,null,"<Heat rejection system>"]
[null,null,"<Heat storage>",null,"unit",null,null,null,null,null,null,"<Heat storage>"]
[null,null,"<Heat-pump>",null,"unit",null,null,null,null,null,null,"<Heat-pump>"]
[null,null,"<Pipes>",null,"m",null,null,null,null,null,null,"<Pipes>"]
[null,null,"<Pump>",null,"unit",null,null,null,null,null,null,"<Pump>",null,null,null,null,null,null,null,"LCA Results"]
[null,null,"<Solar thermal collectors>",null,"m2",null,null,null,null,null,null,"<Solar thermal collectors>"]
[null,null,"<Water>",null,"kg",null,null,null,null,null,null,"<Water>"]
[]
[]
[]
[]
[null,null,"ENERGY SOURCES"]
[null,null,"Category",null,"U.M.","Quantity"]
[null,null,"<Electricity>",null,"kWh/year",null,null,null,null,null,null,"<Electricity>"]
[null,null,"<Natural gas>",null,"kWh/year",null,null,null,null,null,null,"<Natural gas>"]
[]
[null,null,"OTHER INFORMATION"]
[null,null,"Category",null,"U.M.","Quantity"]
[null,null,"Useful life of the system",null,"year"]
[]
[]
[]
[]
[]
[]
[]
[]
[]
[null,null,null,null,null,null,null,null,null,null,null,null,null,null,null,null,null,null,"<Ammonia>"]
[null,null,null,null,null,null,null,null,null,null,null,null,null,null,null,null,null,null,"<Auxiliary Conventional Chiller>"]
[null,2,"Ammonia",null,null,15,null,null,null,null,null,null,null,null,null,null,null,null,"<Auxiliary Gas Boiler>"]
[null,1,"Auxiliary conventional chiller (10 kW)",null,null,1,null,null,null,null,null,null,null,null,null,null,null,null,"<Chiller (ad/ab-sorption)>"]
[null,null,"Auxiliary gas boiler (10 kW)",null,null,1,null,null,null,null,null,null,null,null,null,null,null,null,"<Cooling tower>"]
[null,null,"Absorption chiller (12 kW)",null,null,1,null,null,null,null,null,null,null,null,null,null,null,null,"<Glycol>"]
[null,null,"Cooling tower (32 kW)",null,null,1,null,null,null,null,null,null,null,null,null,null,null,null,"<Heat rejection system>"]
[null,null,"<Glycol>",null,null,null,null,null,null,null,null,null,null,null,null,null,null,null,"<Heat storage>"]
[null,null,"<Heat rejection system>",null,null,null,null,null,null,null,null,null,null,null,null,null,null,null,"<Heat-pump>"]
[null,null,"Heat storage (2000 l)",null,null,1,null,null,null,null,null,null,null,null,null,null,null,null,"<Pipes>"]
[null,null,"<Heat-pump>",null,null,null,null,null,null,null,null,null,null,null,null,null,null,null,"<Pump>"]
[null,null,"Pipes",null,null,60,null,null,null,null,null,null,null,null,null,null,null,null,"<Solar collector>"]
[null,null,"Pump (40 W)",null,null,8.25,null,null,null,null,null,null,null,null,null,null,null,null,"<Water>"]
[null,null,"Evacuated tube collector",null,null,35]
[null,null,"Water",null,null,10]
[]
[]
[]
[]
[]
[]
[]
[null,null,"Electricity, low voltage, Italy (including import)",null,"kWh/year",1117]
[null,null,"Natural gas, burned in boiler atmosferic low-NOx condensing non-modulating, <100 kW, Europe",null,"kWh/year",414]
[]
[]
[null,null,"Category",null,"U.M.","Quantity"]
[null,null,"Useful life of the system",null,"year",25]

{"sheet":"SHC system with PV","index":4,"n_rows":74,"n_cols":28,"rows_kept":74,"cut":false,"hidden":true,"merged":[[74,2,74,3],[48,2,48,3],[51,2,51,3],[47,2,47,3],[66,2,66,3],[67,2,67,3],[69,2,69,3],[70,2,70,3],[71,2,71,3],[72,2,72,3],[73,2,73,3],[63,2,63,3],[64,2,64,3],[65,2,65,3],[68,2,68,3],[56,2,56,3],[57,2,57,3],[58,2,58,3],[61,2,61,3],[62,2,62,3],[59,2,59,3],[60,2,60,3],[49,2,49,3],[50,2,50,3],[52,2,52,3],[54,2,54,3],[55,2,55,3],[53,2,53,3],[19,15,19,16],[22,15,22,16],[14,15,14,16],[32,11,32,12],[27,11,27,12],[28,11,28,12],[29,11,29,12],[14,11,14,12],[15,11,15,12],[16,11,16,12],[26,11,26,12],[17,11,17,12],[18,11,18,12],[19,11,19,12],[23,11,23,12],[24,11,24,12],[9,15,9,16],[10,15,10,16],[11,15,11,16],[12,15,12,16],[13,15,13,16],[30,11,30,12],[31,11,31,12],[20,2,20,3],[21,2,21,3],[20,11,20,12],[21,11,21,12],[22,11,22,12],[16,15,16,16],[17,15,17,16],[18,15,18,16],[10,2,10,7],[12,11,12,12],[13,11,13,12],[18,2,18,3],[8,2,9,7],[22,2,22,3],[11,2,11,3],[5,27,5,28],[36,2,36,3],[24,2,24,3],[25,2,25,3],[26,2,26,3],[27,2,27,3],[30,2,30,3],[31,2,31,3],[32,2,32,3],[35,2,35,3],[29,2,29,5],[34,2,34,5],[15,15,15,16],[46,3,46,4],[11,11,11,12],[42,3,42,4],[43,3,43,4],[44,3,44,4],[45,3,45,4],[12,2,12,3],[13,2,13,3],[14,2,14,3],[15,2,15,3],[16,2,16,3],[25,11,25,12],[23,2,23,3],[17,2,17,3],[19,2,19,3],[28,2,28,3]]}
[]
[]
[]
[]
[]
[null,null,null,null,null,null,null,null,null,null,null,null,null,null,null,null,null,null,null,null,null,null,null,null,null,null,null,"Notes"]
[null,null,null,null,null,null,null,null,null,null,null,null,null,null,null,null,null,null,null,"General Information"]
[]
[]
[]
[null,null,"COMPONENTS OF THE SHC SYSTEM WITH PV"]
[null,null,"Category",null,"U.M.","Quantity",null,"n°REPLACEMENT"]
[null,null,"<Ammonia>",null,"kg",null,null,null,null,null,null,"<Ammonia>"]
[null,null,"<Auxiliary Conventional Chiller>",null,"unit",null,null,null,null,null,null,"<Auxiliary Conventional Chiller>"]
[null,null,"<Auxiliary Gas Boiler>",null,"unit",null,null,null,null,null,null,"<Auxiliary Gas Boiler>"]
[null,null,"<Battery>",null,"kg",null,null,null,null,null,null,"<Battery>"]
[null,null,"<Chiller (ad/ab-sorption)>",null,"unit",null,null,null,null,null,null,"<Chiller (ad/ab-sorption)>"]
[null,null,"<Cooling tower>",null,"unit",null,null,null,null,null,null,"<Cooling tower>"]
[null,null,"<Electric installation>",null,"unit",null,null,null,null,null,null,"<Electric installation>"]
[null,null,"<Glycol>",null,"kg",null,null,null,null,null,null,"<Glycol>"]
[null,null,"<Heat rejection system>",null,"unit",null,null,null,null,null,null,"<Heat rejection system>"]
[null,null,"<Heat storage>",null,"unit",null,null,null,null,null,null,"<Heat storage>"]
[null,null,"<Heat-pump>",null,"unit",null,null,null,null,null,null,"<Heat-pump>",null,null,null,null,null,null,null,"LCA Results"]
[null,null,"<Inverter >",null,"unit",null,null,null,null,null,null,"<Inverter >"]
[null,null,"<Photovoltaic panel>",null,"m2",null,null,null,null,null,null,"<Photovoltaic panel>"]
[null,null,"<Pipes>",null,"m",null,null,null,null,null,null,"<Pipes>"]
[null,null,"<Pump>",null,"unit",null,null,null,null,null,null,"<Pump>"]
[null,null,"<Solar thermal collectors>",null,"m2",null,null,null,null,null,null,"<Solar thermal collectors>"]
[null,null,"<Water>",null,"kg",null,null,null,null,null,null,"<Water>"]
[null,null,"ENERGY SOURCES"]
[null,null,"Category",null,"U.M.","Quantity"]
[null,null,"<Electricity>",null,"kWh/year",null,null,null,null,null,null,"<Electricity>"]
[null,null,"<Natural gas>",null,"kWh/year",null,null,null,null,null,null,"<Natural gas>"]
[]
[null,null,"OTHER INFORMATION"]
[null,null,"Category",null,"U.M.","Quantity"]
[null,null,"Useful life of the system",null,"year"]
[]
[]
[]
[]
[]
[]
[]
[]
[]
[]
[]
[null,null,"Ammonia",null,null,15]
[null,null,"Auxiliary conventional chiller (10 kW)",null,null,1]
[null,null,"Auxiliary gas boiler (10 kW)",null,null,1]
[null,null,"Battery lithium-ion-manganate",null,null,135,null,1]
[null,null,"Absorption chiller (12 kW)",null,null,1]
[null,null,"Electric installation (PV system)",null,null,1]
[null,null,"Cooling tower (32 kW)",null,null,1]
[null,null,"<Glycol>"]
[null,null,"<Heat rejection system>"]
[null,null,"Heat storage (2000 l)",null,null,1]
[null,null,"<Heat-pump>"]
[null,null,"Inverter (500 W)",null,null,0.5,null,1]
[null,null,"Photovoltaic panel, multi-Si",null,null,8.1199999999999992]
[null,null,"Pipes",null,null,60]
[null,null,"Pump (40 W)",null,null,8.25]
[null,null,"Evacuated tube collector",null,null,35]
[null,null,"Water",null,null,10]
[]
[]
[]
[null,null,"<Electricity>",null,"kWh/year"]
[null,null,"Natural gas, burned in boiler atmosferic low-NOx condensing non-modulating, <100 kW, Europe",null,"kWh/year",414]
[]
[]
[null,null,"Category",null,"U.M.","Quantity"]
[null,null,"Useful life of the system",null,"year",25]

{"sheet":"Conventional System ","index":5,"n_rows":74,"n_cols":28,"rows_kept":74,"cut":false,"hidden":true,"merged":[[48,2,48,3],[62,2,62,3],[70,2,70,3],[68,2,68,3],[69,2,69,3],[60,2,60,3],[61,2,61,3],[54,2,54,3],[58,2,58,3],[59,2,59,3],[53,2,53,3],[55,2,55,3],[56,2,56,3],[57,2,57,3],[49,2,49,3],[50,2,50,3],[71,2,71,5],[72,2,72,3],[73,2,73,3],[63,2,63,3],[64,2,64,3],[65,2,65,3],[66,2,66,5],[67,2,67,3],[51,2,51,3],[52,2,52,3],[5,27,6,28],[27,11,27,12],[28,11,28,12],[29,11,29,12],[30,11,30,12],[18,11,18,12],[9,15,9,16],[10,15,10,16],[11,15,11,16],[12,15,12,16],[13,15,13,16],[19,15,19,16],[14,15,14,16],[15,15,15,16],[16,15,16,16],[17,15,17,16],[28,2,28,3],[11,2,11,3],[22,2,22,3],[23,2,23,3],[12,11,12,12],[13,11,13,12],[14,11,14,12],[16,2,16,3],[12,2,12,3],[13,2,13,3],[14,2,14,3],[15,2,15,3],[21,2,21,3],[17,2,17,3],[18,2,18,3],[19,2,19,3],[42,3,42,4],[10,2,10,7],[8,2,9,7],[31,11,31,12],[32,11,32,12],[15,11,15,12],[19,11,19,12],[20,11,20,12],[21,11,21,12],[22,11,22,12],[23,11,23,12],[24,11,24,12],[25,11,25,12],[26,11,26,12],[16,11,16,12],[17,11,17,12],[43,3,43,4],[40,3,40,4],[18,15,18,16],[36,2,36,3],[26,2,26,3],[27,2,27,3],[30,2,30,3],[31,2,31,3],[32,2,32,3],[35,2,35,3],[29,2,29,5],[34,2,34,5],[24,2,24,3],[25,2,25,3],[20,2,20,3],[41,3,41,4]]}
[]
[]
[]
[]
[]
[null,null,null,null,null,null,null,null,null,null,null,null,null,null,null,null,null,null,null,null,null,null,null,null,null,null,null,"Notes"]
[null,null,null,null,null,null,null,null,null,null,null,null,null,null,null,null,null,null,null,"General Information"]
[]
[]
[]
[null,null,"COMPONENTS OF THE CONVENTIONAL SYSTEM "]
[null,null,"Category",null,"U.M.","Quantity",null,"n°REPLACEMENT"]
[null,null,"<Chiller (conventional)>",null,"unit",null,null,null,null,null,null,"<Chiller (conventional)>"]
[null,null,"<Gas boiler >",null,"unit",null,null,null,null,null,null,"<Gas boiler >"]
[null,null,"<Heat-pump>",null,"unit",null,null,null,null,null,null,"<Heat-pump>"]
[null,null,"<Pipes>",null,"m",null,null,null,null,null,null,"<Pipes>"]
[null,null,"<Pump>",null,"unit",null,null,null,null,null,null,"<Pump>",null,null,null,null,null,null,null,"LCA Results"]
[null,null,null,null,null,null,null,null,null,null,null,null,null,null,null,null,null,null,null,"OPTION OUTPUT"]
[]
[]
[]
[]
[]
[]
[]
[]
[]
[]
[]
[null,null,"ENERGY SOURCES"]
[null,null,"Category",null,"U.M.","Quantity"]
[null,null,"<Electricity>",null,"kWh/year",null,null,null,null,null,null,"<Electricity>"]
[null,null,"<Natural gas>",null,"kWh/year",null,null,null,null,null,null,"<Natural gas>"]
[]
[null,null,"OTHER INFORMATION"]
[null,null,"Category",null,"U.M.","Quantity"]
[null,null,"Useful life of the system",null,"year"]
[]
[]
[]
[]
[]
[]
[]
[]
[]
[]
[]
[null,null,"Conventional chiller (10 kW)",null,null,1]
[null,null,"Gas boiler (10 kW)",null,null,1]
[null,null,"<Heat-pump>"]
[null,null,"<Pipes>"]
[null,null,"<Pump>"]
[]
[]
[]
[]
[]
[]
[]
[]
[]
[]
[]
[]
[]
[null,null,"ENERGY SOURCES"]
[null,null,"Category",null,"U.M.","Quantity"]
[null,null,"Electricity, low voltage, Italy (including import)",null,"kWh/year",1995]
[null,null,"Natural gas, burned in boiler modulating, <100 kW, Europe",null,"kWh/year",2882]
[]
[null,null,"OTHER INFORMATION"]
[null,null,"Category",null,"U.M.","Quantity"]
[null,null,"Useful life of the system",null,"year",25]

{"sheet":"Conventional System with PV","index":6,"n_rows":74,"n_cols":28,"rows_kept":74,"cut":false,"hidden":true,"merged":[[48,19,48,20],[75,2,75,3],[76,2,76,3],[77,2,77,3],[55,2,55,3],[66,2,66,3],[71,2,71,3],[74,2,74,3],[70,2,70,3],[68,2,68,3],[69,2,69,3],[72,2,72,3],[73,2,73,3],[63,2,63,3],[64,2,64,3],[65,2,65,3],[67,2,67,3],[48,2,48,3],[50,2,50,3],[53,2,53,3],[54,2,54,3],[49,2,49,3],[51,2,51,3],[52,2,52,3],[61,2,61,3],[62,2,62,3],[56,2,56,3],[57,2,57,3],[58,2,58,3],[59,2,59,3],[60,2,60,3],[19,15,19,16],[14,15,14,16],[15,15,15,16],[15,11,15,12],[16,11,16,12],[16,15,16,16],[17,15,17,16],[18,15,18,16],[9,15,9,16],[10,15,10,16],[11,15,11,16],[12,15,12,16],[13,15,13,16],[15,2,15,3],[32,11,32,12],[23,11,23,12],[24,11,24,12],[25,11,25,12],[26,11,26,12],[27,11,27,12],[28,11,28,12],[29,11,29,12],[30,11,30,12],[31,11,31,12],[22,11,22,12],[30,2,30,3],[20,2,20,3],[21,2,21,3],[22,2,22,3],[10,2,10,7],[8,2,9,7],[12,11,12,12],[13,11,13,12],[14,11,14,12],[11,2,11,3],[12,2,12,3],[13,2,13,3],[14,2,14,3],[29,2,29,5],[24,2,24,3],[25,2,25,3],[26,2,26,3],[27,2,27,3],[34,2,34,5],[31,2,31,3],[32,2,32,3],[35,2,35,3],[36,2,36,3],[16,2,16,3],[28,2,28,3],[17,11,17,12],[18,11,18,12],[19,11,19,12],[20,11,20,12],[21,11,21,12],[17,2,17,3],[18,2,18,3],[19,2,19,3],[23,2,23,3]]}
[]
[]
[]
[]
[]
[null,null,null,null,null,null,null,null,null,null,null,null,null,null,null,null,null,null,null,null,null,null,null,null,null,null,null,"Notes "]
[null,null,null,null,null,null,null,null,null,null,null,null,null,null,null,null,null,null,null,"General Information"]
[]
[]
[]
[null,null,"COMPONENTS OF THE CONVENTIONAL SYSTEM WITH PV"]
[null,null,"Category",null,"U.M.","Quantity",null,"n°REPLACEMENT"]
[null,null,"<Battery>",null,"kg",null,null,null,null,null,null,"<Battery>"]
[null,null,"<Chiller (conventional)>",null,"unit",null,null,null,null,null,null,"<Chiller (conventional)>"]
[null,null,"<Electric installation>",null,"unit",null,null,null,null,null,null,"<Electric installation>"]
[null,null,"<Gas boiler >",null,"unit",null,null,null,null,null,null,"<Gas boiler >"]
[null,null,"<Heat-pump>",null,"unit",null,null,null,null,null,null,"<Heat-pump>"]
[null,null,"<Inverter >",null,"unit",null,null,null,null,null,null,"<Inverter >"]
[null,null,"<Photovoltaic panel>",null,"m2",null,null,null,null,null,null,"<Photovoltaic panel>"]
[null,null,"<Pipes>",null,"m",null,null,null,null,null,null,"<Pipes>",null,null,null,null,null,null,null,"LCA Results"]
[null,null,"<Pump>",null,"unit",null,null,null,null,null,null,"<Pump>"]
[]
[]
[]
[]
[]
[]
[]
[]
[null,null,"ENERGY SOURCES"]
[null,null,"Category",null,"U.M.","Quantity"]
[null,null,"<Electricity>",null,"kWh/year",null,null,null,null,null,null,"<Electricity>"]
[null,null,"<Natural gas>",null,"kWh/year",null,null,null,null,null,null,"<Natural gas>"]
[]
[null,null,"OTHER INFORMATION"]
[null,null,"Category",null,"U.M.","Quantity"]
[null,null,"Useful life of the system",null,"year"]
[]
[]
[]
[]
[]
[]
[]
[]
[]
[]
[]
[null,null,"Battery lithium-ion-manganate",null,null,{"$f":"450/2","v":225},null,1]
[null,null,"Conventional chiller (10 kW)",null,null,1]
[null,null,"Electric installation (PV system)",null,null,1]
[null,null,"Gas boiler (10 kW)",null,null,1]
[null,null,"<Heat-pump>"]
[null,null,"Inverter (500 W)",null,null,1.5,null,1]
[null,null,"Photovoltaic panel, multi-Si",null,null,14.5]
[null,null,"<Pipes>"]
[null,null,"<Pump>"]
[]
[]
[]
[]
[]
[]
[]
[]
[]
[null,null,"ENERGY SOURCES"]
[null,null,"Category",null,"U.M.","Quantity"]
[null,null,"Electricity, low voltage, Italy (including import)",null,"kWh/year"]
[null,null,"Natural gas, burned in boiler modulating, <100 kW, Europe",null,"kWh/year",2882]
[]
[null,null,"OTHER INFORMATION"]
[null,null,"Category",null,"U.M.","Quantity"]
[null,null,"Useful life of the system",null,"year",25]

{"sheet":"Library","index":7,"n_rows":118,"n_cols":34,"rows_kept":118,"cut":false,"hidden":true,"merged":[]}
[null,"COMPONENTS","Manufacturing Step","End-Of-Life Step","U.M.","Manufacturing Step","End-Of-Life Step","U.M."]
[null,"<Chiller (ad/ab-sorption)>",null,null,"MJ/unit",null,null,"kgCO2eq/unit"]
[null,"Absorption chiller (100 kW) and air cooler",332434.99,67239.27,"MJ/unit",18811.099999999999,5468.48,"kgCO2eq/unit",null,null,{"$f":"+ROUND(C3,2)","v":332434.99},{"$f":"+ROUND(D3,2)","v":67239.27},{"$f":"+ROUND(E3,2)","v":{"$error":"#VALUE!"}},{"$f":"+ROUND(F3,2)","v":18811.099999999999},{"$f":"+ROUND(G3,2)","v":5468.48}]
[null,"Absorption chiller (12 kW)",26005.37,3.13,"MJ/unit",1382.34,12.55,"kgCO2eq/unit",null,null,26005.37,3.13,{"$error":"#VALUE!"},1382.34,12.55,null,null,null,null,null,null,null,null,null,null,null,"Adsorption chiller (8 kW)","Absorption chiller (12 kW)","Absorption chiller (19 kW)"]
[null,"Absorption chiller (19 kW)",42850.54,4.6900000000000004,"MJ/unit",1996,18.829999999999998,"kgCO2eq/unit",null,null,42850.54,4.6900000000000004,{"$error":"#VALUE!"},1996,18.829999999999998,null,null,null,null,null,null,null,null,null,null,null,"Ammonia"]
[null,"Adsorption chiller (8 kW)",24187,12,"MJ/unit",1380,21,"kgCO2eq/unit",null,null,24187,12,{"$error":"#VALUE!"},1380,21,null,null,null,null,null,null,null,null,null,null,null,"Auxiliary conventional chiller (10 kW)","Auxiliary gas boiler (10 kW)"]
[null,"<Ammonia>",0,0,"MJ/kg",0,0,"kgCO2eq/kg",null,null,0,0,{"$error":"#VALUE!"},0,0,null,null,null,null,null,null,null,null,null,null,null,"Battery lead-acid","Battery lithium-ion-manganate","Battery lithium-iron-phosphate","Battery nickel cadmium","Battery nickel cobalt manganese","Battery nickel metal hydride","Battery sodium-nickel-chloride","Battery v-redox"]
[null,"Ammonia",41.95,0,"MJ/kg",2.1,0,"kgCO2eq/kg",null,null,41.95,0,{"$error":"#VALUE!"},2.1,0,null,null,null,null,null,null,null,null,null,null,null,"Conventional chiller (10 kW)"]
[null,"<Auxiliary Conventional Chiller>",0,0,"MJ/unit",0,0,"kgCO2eq/unit",null,null,0,0,{"$error":"#VALUE!"},0,0,null,null,null,null,null,null,null,null,null,null,null,"Cooling tower (32 kW)"]
[null,"Auxiliary conventional chiller (10 kW)",8131.1,7.83,"MJ/unit",1550.46,25.82,"kgCO2eq/unit",null,null,8131.1,7.83,{"$error":"#VALUE!"},1550.46,25.82,null,null,null,null,null,null,null,null,null,null,null,"Electric installation (PV system)"]
[null,"<Auxiliary Gas Boiler>",0,0,"MJ/unit",0,0,"kgCO2eq/unit",null,null,0,0,{"$error":"#VALUE!"},0,0,null,null,null,null,null,null,null,null,null,null,null,"Cooling tower (32 kW)"]
[null,"Auxiliary gas boiler (10 kW)",6781.86,61.51,"MJ/unit",365.71,12.04,"kgCO2eq/unit",null,null,6781.86,61.51,{"$error":"#VALUE!"},365.71,12.04,null,null,null,null,null,null,null,null,null,null,null,"Evacuated tube collector","Flat plate collector"]
[null,"<Battery>",0,0,"MJ/kg",0,0,"kgCO2eq/kg",null,null,0,0,{"$error":"#VALUE!"},0,0,null,null,null,null,null,null,null,null,null,null,null,"Gas boiler (10 kW)"]
[null,"Battery lead-acid",17,12,"MJ/kg",0.9,0.93,"kgCO2eq/kg",null,null,17,12,{"$error":"#VALUE!"},0.9,0.93,null,null,null,null,null,null,null,null,null,null,null,"Glycol"]
[null,"Battery lithium-ion-manganate",104,12,"MJ/kg",6,0.93,"kgCO2eq/kg",null,null,104,12,{"$error":"#VALUE!"},6,0.93,null,null,null,null,null,null,null,null,null,null,null,"Heat rejection system (24 kW)"]
[null,"Battery lithium-iron-phosphate",192.59,12,"MJ/kg",22,0.93,"kgCO2eq/kg",null,null,192.59,12,{"$error":"#VALUE!"},22,0.93,null,null,null,null,null,null,null,null,null,null,null,"Heat storage (2000 l)"]
[null,"Battery nickel cadmium",37,12,"MJ/kg",2.1,0.93,"kgCO2eq/kg",null,null,37,12,{"$error":"#VALUE!"},2.1,0.93,null,null,null,null,null,null,null,null,null,null,null,"Inverter (2500 W)","Inverter (500 W)"]
[null,"Battery nickel cobalt manganese",196.78,12,"MJ/kg",22,0.93,"kgCO2eq/kg",null,null,196.78,12,{"$error":"#VALUE!"},22,0.93,null,null,null,null,null,null,null,null,null,null,null,"Photovoltaic panel, a-Si","Photovoltaic panel, CdTe","Photovoltaic panel, CIS","Photovoltaic panel, multi-Si","Photovoltaic panel, ribbon-Si","Photovoltaic panel, single-Si"]
[null,"Battery nickel metal hydride",226.09,12,"MJ/kg",20,0.93,"kgCO2eq/kg",null,null,226.09,12,{"$error":"#VALUE!"},20,0.93,null,null,null,null,null,null,null,null,null,null,null,"Pipes (m)"]
[null,"Battery sodium-nickel-chloride",234.3,11.04,"MJ/kg",14.32,0.77,"kgCO2eq/kg",null,null,234.3,11.04,{"$error":"#VALUE!"},14.32,0.77,null,null,null,null,null,null,null,null,null,null,null,"Pump (40 W)"]
[null,"Battery v-redox",67.790000000000006,9.8800000000000008,"MJ/kg",6.8,1.17,"kgCO2eq/unit",null,null,67.790000000000006,9.8800000000000008,{"$error":"#VALUE!"},6.8,1.17,null,null,null,null,null,null,null,null,null,null,null,"Water"]
[null,"<Chiller (conventional)>",0,0,"MJ/unit",0,0,"kgCO2eq/unit",null,null,0,0,{"$error":"#VALUE!"},0,0]
[null,"Conventional chiller (10 kW)",8131.1,7.83,"MJ/unit",1550.46,25.82,"kgCO2eq/unit",null,null,{"$f":"+ROUND(C23,2)","v":8131.1},{"$f":"+ROUND(D23,2)","v":7.83},{"$f":"+ROUND(E23,2)","v":{"$error":"#VALUE!"}},{"$f":"+ROUND(F23,2)","v":1550.46},{"$f":"+ROUND(G23,2)","v":25.82},{"$f":"+ROUND(H23,2)","v":{"$error":"#VALUE!"}}]
[null,"<Cooling tower>",0,0,"MJ/unit",0,0,"kgCO2eq/unit",null,null,0,0,{"$error":"#VALUE!"},0,0,{"$error":"#VALUE!"}]
[null,"Cooling tower (32 kW)",2950.69,10.74,"MJ/unit",149.97999999999999,3.13,"kgCO2eq/unit",null,null,2950.69,10.74,{"$error":"#VALUE!"},149.97999999999999,3.13,{"$error":"#VALUE!"}]
[null,"<Electric installation>",0,0,"MJ/unit",0,0,"kgCO2eq/unit",null,null,0,0,{"$error":"#VALUE!"},0,0,{"$error":"#VALUE!"}]
[null,"Electric installation (PV system)",2221.35,11.16,"MJ/unit",79.739999999999995,60.15,"kgCO2eq/unit",null,null,2221.35,11.16,{"$error":"#VALUE!"},79.739999999999995,60.15,{"$error":"#VALUE!"}]
[null,"<Solar thermal collectors>",0,0,"MJ/m2",0,0,"kgCO2eq/m2",null,null,0,0,{"$error":"#VALUE!"},0,0,{"$error":"#VALUE!"}]
[null,"Evacuated tube collector",1579.69,12.98,"MJ/m2",86.97,3.94,"kgCO2eq/m2",null,null,1579.69,12.98,{"$error":"#VALUE!"},86.97,3.94,{"$error":"#VALUE!"}]
[null,"Flat plate collector",1742.09,10.18,"MJ/m2",99.03,4.24,"kgCO2eq/m2",null,null,1742.09,10.18,{"$error":"#VALUE!"},99.03,4.24,{"$error":"#VALUE!"}]
[null,"<Gas boiler >",0,0,"MJ/unit",0,0,"kgCO2eq/unit",null,null,0,0,{"$error":"#VALUE!"},0,0,{"$error":"#VALUE!"}]
[null,"Gas boiler (10 kW)",6781.86,61.51,"MJ/unit",365.71,12.04,"kgCO2eq/unit",null,null,6781.86,61.51,{"$error":"#VALUE!"},365.71,12.04,{"$error":"#VALUE!"}]
[null,"<Glycol>",0,0,"MJ/kg",0,0,"kgCO2eq/kg",null,null,0,0,{"$error":"#VALUE!"},0,0,{"$error":"#VALUE!"}]
[null,"Glycol",52.17,0.18,"MJ/kg",1.59,1.43,"kgCO2eq/l",null,null,52.17,0.18,{"$error":"#VALUE!"},1.59,1.43,{"$error":"#VALUE!"}]
[null,"<Heat rejection system>",0,0,"MJ/unit",0,0,"kgCO2eq/unit",null,null,0,0,{"$error":"#VALUE!"},0,0,{"$error":"#VALUE!"}]
[null,"Heat rejection system (24 kW)",14348,9,"MJ/unit",770,105,"kgCO2eq/unit",null,null,14348,9,{"$error":"#VALUE!"},770,105,{"$error":"#VALUE!"}]
[null,"<Heat-pump>",0,0,"MJ/unit",0,0,"kgCO2eq/unit",null,null,0,0,{"$error":"#VALUE!"},0,0,{"$error":"#VALUE!"}]
[null,"Heat-pump, brine water (10 kW)",8131.1,1992.4,"MJ/unit",1656.87,167.66,"kgCO2eq/unit",null,null,8131.1,1992.4,{"$error":"#VALUE!"},1656.87,167.66,{"$error":"#VALUE!"}]
[null,"Heat pump (30 kW)",24393.29,5977.2,"MJ/unit",4970.6099999999997,502.99,"kgCO2eq/unit",null,null,24393.29,5977.2,{"$error":"#VALUE!"},4970.6099999999997,502.99,{"$error":"#VALUE!"}]
[null,"<Heat storage>",0,0,"MJ/unit",0,0,"kgCO2eq/unit",null,null,0,0,{"$error":"#VALUE!"},0,0,{"$error":"#VALUE!"}]
[null,"Heat storage (2000 l)",14811.72,21.32,"MJ/unit",783.31,12.71,"kgCO2eq/unit",null,null,14811.72,21.32,{"$error":"#VALUE!"},783.31,12.71,{"$error":"#VALUE!"}]
[null,"<Inverter >",0,0,"MJ/unit",0,0,"kgCO2eq/unit",null,null,0,0,{"$error":"#VALUE!"},0,0,{"$error":"#VALUE!"}]
[null,"Inverter (2500 W)",3212.4,3.72,"MJ/unit",173.72,1.37,"kgCO2eq/unit",null,null,3212.4,3.72,{"$error":"#VALUE!"},173.72,1.37,{"$error":"#VALUE!"}]
[null,"Inverter (500 W)",685.25,1.68,"MJ/unit",36.31,1.28,"kgCO2eq/unit",null,null,685.25,1.68,{"$error":"#VALUE!"},36.31,1.28,{"$error":"#VALUE!"}]
[null,"<Photovoltaic panel>",0,0,"MJ/m2",0,0,"kgCO2eq/m2",null,null,0,0,{"$error":"#VALUE!"},0,0,{"$error":"#VALUE!"}]
[null,"Photovoltaic panel, a-Si",1181.7,1.55,"MJ/m2",72.959999999999994,4.2300000000000004,"kgCO2eq/m2",null,null,1181.7,1.55,{"$error":"#VALUE!"},72.959999999999994,4.2300000000000004,{"$error":"#VALUE!"}]
[null,"Photovoltaic panel, CdTe",1515.69,1.55,"MJ/m2",96.28,4.2300000000000004,"kgCO2eq/m2",null,null,1515.69,1.55,{"$error":"#VALUE!"},96.28,4.2300000000000004,{"$error":"#VALUE!"}]
[null,"Photovoltaic panel, CIS",2029.44,1.55,"MJ/m2",121.68,4.2300000000000004,"kgCO2eq/m2",null,null,2029.44,1.55,{"$error":"#VALUE!"},121.68,4.2300000000000004,{"$error":"#VALUE!"}]
[null,"Photovoltaic panel, multi-Si",3060.77,1.55,"MJ/m2",156.66999999999999,4.2300000000000004,"kgCO2eq/m2",null,null,3060.77,1.55,{"$error":"#VALUE!"},156.66999999999999,4.2300000000000004,{"$error":"#VALUE!"}]
[null,"Photovoltaic panel, ribbon-Si",2414.6999999999998,1.55,"MJ/m2",126.67,4.2300000000000004,"kgCO2eq/m2",null,null,2414.6999999999998,1.55,{"$error":"#VALUE!"},126.67,4.2300000000000004,{"$error":"#VALUE!"}]
[null,"Photovoltaic panel, single-Si",3854.8,1.55,"MJ/m2",196.06,4.2300000000000004,"kgCO2eq/m2",null,null,3854.8,1.55,{"$error":"#VALUE!"},196.06,4.2300000000000004,{"$error":"#VALUE!"}]
[null,"<Pipes>",0,0,"MJ/m",0,0,"kgCO2eq/m",null,null,0,0,{"$error":"#VALUE!"},0,0,{"$error":"#VALUE!"}]
[null,"Pipes",65.48,0.33,"MJ/m",2.63,0.1,"kgCO2eq/m",null,null,65.48,0.33,{"$error":"#VALUE!"},2.63,0.1,{"$error":"#VALUE!"}]
[null,"<Pump>",0,0,"MJ/unit",0,0,"kgCO2eq/unit",null,null,0,0,{"$error":"#VALUE!"},0,0,{"$error":"#VALUE!"}]
[null,"Pump (40 W)",118.18,0.37,"MJ/unit",6.91,0.08,"kgCO2eq/unit",null,null,118.18,0.37,{"$error":"#VALUE!"},6.91,0.08,{"$error":"#VALUE!"}]
[null,"<Water>",0,0,"MJ/kg",0,0,"kgCO2eq/kg",null,null,0,0,{"$error":"#VALUE!"},0,0,{"$error":"#VALUE!"}]
[null,"Water",0.02,0,"MJ/kg",0,0,"kgCO2eq/kg",null,null,{"$f":"+ROUND(C57,2)","v":0.02},{"$f":"+ROUND(D57,2)","v":0},{"$error":"#VALUE!"},0,0,{"$error":"#VALUE!"}]
[null,"<Electricity>",null,null,"MJ/kWh",null,null,"kg CO2eq/kWh"]
[null,"Electricity, low voltage, Austria (excluding import)",8.07,null,"MJ/kWh",0.36,null,"kg CO2eq/kWh",null,null,{"$f":"+ROUND(C59,2)","v":8.07},null,null,{"$f":"+ROUND(F59,2)","v":0.36}]
[null,"Electricity, low voltage, Austria (including import)",9.06,null,"MJ/kWh",0.45,null,"kg CO2eq/kWh",null,null,{"$f":"+ROUND(C60,2)","v":9.06},null,null,{"$f":"+ROUND(F60,2)","v":0.45}]
[null,"Electricity, low voltage, Belgium (excluding import)",12.51,null,"MJ/kWh",0.36,null,"kg CO2eq/kWh",null,null,12.51,null,null,0.36]
[null,"Electricity, low voltage, Belgium (including import)",12.49,null,"MJ/kWh",0.37,null,"kg CO2eq/kWh",null,null,12.49,null,null,0.37]
[null,"Electricity, low voltage, Bulgaria (excluding import)",15.52,null,"MJ/kWh",0.79,null,"kg CO2eq/kWh",null,null,15.52,null,null,0.79]
[null,"Electricity, low voltage, Bulgaria (including import)",15.48,null,"MJ/kWh",0.79,null,"kg CO2eq/kWh",null,null,15.48,null,null,0.79]
[null,"Electricity, low voltage, Croatia (excluding import)",10.84,null,"MJ/kWh",0.42,null,"kg CO2eq/kWh",null,null,10.84,null,null,0.42]
[null,"Electricity, low voltage, Croatia (including import)",12.47,null,"MJ/kWh",0.6,null,"kg CO2eq/kWh",null,null,12.47,null,null,0.6]
[null,"Electricity, low voltage, Czech Republic (excluding import)",13.19,null,"MJ/kWh",0.88,null,"kg CO2eq/kWh",null,null,13.19,null,null,0.88]
[null,"Electricity, low voltage, Czech Republic (including import)",13.41,null,"MJ/kWh",0.93,null,"kg CO2eq/kWh",null,null,13.41,null,null,0.93]
[null,"Electricity, low voltage, Denmark (excluding import)",10.74,null,"MJ/kWh",0.7,null,"kg CO2eq/kWh",null,null,10.74,null,null,0.7]
[null,"Electricity, low voltage, Denmark (including import)",10.61,null,"MJ/kWh",0.63,null,"kg CO2eq/kWh",null,null,10.61,null,null,0.63]
[null,"Electricity, low voltage, Europe",12.29,null,"MJ/kWh",0.56000000000000005,null,"kg CO2eq/kWh",null,null,12.29,null,null,0.56000000000000005]
[null,"Electricity, low voltage, Finland (excluding import)",12.49,null,"MJ/kWh",0.44,null,"kg CO2eq/kWh",null,null,12.49,null,null,0.44]
[null,"Electricity, low voltage, Finland (including import)",12.66,null,"MJ/kWh",0.5,null,"kg CO2eq/kWh",null,null,12.66,null,null,0.5]
[null,"Electricity, low voltage, France (excluding import)",13.63,null,"MJ/kWh",0.11,null,"kg CO2eq/kWh",null,null,13.63,null,null,0.11]
[null,"Electricity, low voltage, France (including import)",13.57,null,"MJ/kWh",0.11,null,"kg CO2eq/kWh",null,null,13.57,null,null,0.11]
[null,"Electricity, low voltage, Germany (excluding import)",12.66,null,"MJ/kWh",0.75,null,"kg CO2eq/kWh",null,null,12.66,null,null,0.75]
[null,"Electricity, low voltage, Germany (including import)",12.58,null,"MJ/kWh",0.72,null,"kg CO2eq/kWh",null,null,12.58,null,null,0.72]
[null,"Electricity, low voltage, Greece (excluding import)",18.66,null,"MJ/kWh",1.18,null,"kg CO2eq/kWh",null,null,18.66,null,null,1.18]
[null,"Electricity, low voltage, Greece (including import)",18.27,null,"MJ/kWh",1.1499999999999999,null,"kg CO2eq/kWh",null,null,18.27,null,null,1.1499999999999999]
[null,"Electricity, low voltage, Hungary (excluding import)",17.05,null,"MJ/kWh",0.84,null,"kg CO2eq/kWh",null,null,17.05,null,null,0.84]
[null,"Electricity, low voltage, Hungary (including import)",16.18,null,"MJ/kWh",0.75,null,"kg CO2eq/kWh",null,null,16.18,null,null,0.75]
[null,"Electricity, low voltage, Ireland (excluding import)",13.06,null,"MJ/kWh",0.9,null,"kg CO2eq/kWh",null,null,13.06,null,null,0.9]
[null,"Electricity, low voltage, Ireland (including import)",13.01,null,"MJ/kWh",0.89,null,"kg CO2eq/kWh",null,null,13.01,null,null,0.89]
[null,"Electricity, low voltage, Italy (excluding import)",10.71,null,"MJ/kWh",0.72,null,"kg CO2eq/kWh",null,null,10.71,null,null,0.72]
[null,"Electricity, low voltage, Italy (including import)",10.74,null,"MJ/kWh",0.64,null,"kg CO2eq/kWh",null,null,10.74,null,null,0.64]
[null,"Electricity, low voltage, Luxembourg (excluding import)",10.82,null,"MJ/kWh",0.6,null,"kg CO2eq/kWh",null,null,10.82,null,null,0.6]
[null,"Electricity, low voltage, Luxembourg (including import)",12.11,null,"MJ/kWh",0.64,null,"kg CO2eq/kWh",null,null,12.11,null,null,0.64]
[null,"Electricity, low voltage, Netherlands (excluding import)",11.85,null,"MJ/kWh",0.74,null,"kg CO2eq/kWh",null,null,11.85,null,null,0.74]
[null,"Electricity, low voltage, Netherlands (including import)",11.92,null,"MJ/kWh",0.73,null,"kg CO2eq/kWh",null,null,11.92,null,null,0.73]
[null,"Electricity, low voltage, Poland (excluding import)",16.05,null,"MJ/kWh",1.37,null,"kg CO2eq/kWh",null,null,16.05,null,null,1.37]
[null,"Electricity, low voltage, Poland (including import)",14.18,null,"MJ/kWh",1.2,null,"kg CO2eq/kWh",null,null,14.18,null,null,1.2]
[null,"Electricity, low voltage, Portugal (excluding import)",11.52,null,"MJ/kWh",0.71,null,"kg CO2eq/kWh",null,null,11.52,null,null,0.71]
[null,"Electricity, low voltage, Portugal (including import)",11.62,null,"MJ/kWh",0.7,null,"kg CO2eq/kWh",null,null,11.62,null,null,0.7]
[null,"Electricity, low voltage, Romania (excluding import)",12.42,null,"MJ/kWh",0.81,null,"kg CO2eq/kWh",null,null,12.42,null,null,0.81]
[null,"Electricity, low voltage, Romania (including import)",12.5,null,"MJ/kWh",0.81,null,"kg CO2eq/kWh",null,null,12.5,null,null,0.81]
[null,"Electricity, low voltage, Slovakia (excluding import)",12.81,null,"MJ/kWh",0.41,null,"kg CO2eq/kWh",null,null,12.81,null,null,0.41]
[null,"Electricity, low voltage, Slovakia (including import)",11.93,null,"MJ/kWh",0.51,null,"kg CO2eq/kWh",null,null,11.93,null,null,0.51]
[null,"Electricity, low voltage, Slovenia (excluding import)",10.39,null,"MJ/kWh",0.56000000000000005,null,"kg CO2eq/kWh",null,null,10.39,null,null,0.56000000000000005]
[null,"Electricity, low voltage, Slovenia (including import)",9.9499999999999993,null,"MJ/kWh",0.49,null,"kg CO2eq/kWh",null,null,9.9499999999999993,null,null,0.49]
[null,"Electricity, low voltage, Spain (excluding import)",12.17,null,"MJ/kWh",0.61,null,"kg CO2eq/kWh",null,null,12.17,null,null,0.61]
[null,"Electricity, low voltage, Spain (including import)",12.21,null,"MJ/kWh",0.6,null,"kg CO2eq/kWh",null,null,12.21,null,null,0.6]
[null,"Electricity, low voltage, Sweden (excluding import)",10.55,null,"MJ/kWh",0.05,null,"kg CO2eq/kWh",null,null,10.55,null,null,0.05]
[null,"Electricity, low voltage, Sweden (including import)",10.66,null,"MJ/kWh",0.1,null,"kg CO2eq/kWh",null,null,10.66,null,null,0.1]
[null,"Electricity, low voltage, Switzerland (excluding import)",8.68,null,"MJ/kWh",0.03,null,"kg CO2eq/kWh",null,null,8.68,null,null,0.03]
[null,"Electricity, low voltage, Switzerland (including import)",10.98,null,"MJ/kWh",0.15,null,"kg CO2eq/kWh",null,null,10.98,null,null,0.15]
[null,"Electricity, low voltage, United Kingdom (excluding import)",12.37,null,"MJ/kWh",0.7,null,"kg CO2eq/kWh",null,null,12.37,null,null,0.7]
[null,"Electricity, low voltage, United Kingdom (including import)",12.41,null,"MJ/kWh",0.69,null,"kg CO2eq/kWh",null,null,12.41,null,null,0.69]
[null,"<Natural gas>",0,null,null,0,null,null,null,null,0,null,null,0]
[null,"Natural gas, burned in boiler atmosferic burner non-modulating, <100 kW, Europe",4.4400000000000004,null,"MJ/kWh",0.27,null,"kg CO2eq/kWh",null,null,4.4400000000000004,null,null,0.27]
[null,"Natural gas, burned in boiler atmosferic low-NOx condensing non-modulating, <100 kW, Europe",4.6100000000000003,null,"MJ/kWh",0.27,null,"kg CO2eq/kWh",null,null,4.6100000000000003,null,null,0.27]
[null,"Natural gas, burned in boiler condensing modulating, <100 kW, Europe",4.4800000000000004,null,"MJ/kWh",0.27,null,"kg CO2eq/kWh",null,null,4.4800000000000004,null,null,0.27]
[null,"Natural gas, burned in boiler condensing modulating, >100 kW, Europe",4.3,null,"MJ/kWh",0.25,null,"kg CO2eq/kWh",null,null,4.3,null,null,0.25]
[null,"Natural gas, burned in boiler fan burner low-Nox non-modulating, <100 kW, Europe",4.74,null,"MJ/kWh",0.28000000000000003,null,"kg CO2eq/kWh",null,null,4.74,null,null,0.28000000000000003]
[null,"Natural gas, burned in boiler fan burner non-modulating, <100 kW, Europe",4.4800000000000004,null,"MJ/kWh",0.27,null,"kg CO2eq/kWh",null,null,4.4800000000000004,null,null,0.27]
[null,"Natural gas, burned in boiler modulating, <100 kW, Europe",4.4800000000000004,null,"MJ/kWh",0.27,null,"kg CO2eq/kWh",null,null,4.4800000000000004,null,null,0.27]
[null,"Natural gas, burned in boiler modulating, >100 kW, Europe",4.3,null,"MJ/kWh",0.25,null,"kg CO2eq/kWh",null,null,4.3,null,null,0.25]
[null,"Natural gas, burned in industrial furnace low-NOx, >100 kW, Europe",4.4400000000000004,null,"MJ/kWh",0.25,null,"kg CO2eq/kWh",null,null,4.4400000000000004,null,null,0.25]
[null,"Natural gas, burned in industrial furnace, >100 kW, Europe",4.3,null,"MJ/kWh",0.25,null,"kg CO2eq/kWh",null,null,4.3,null,null,0.25]

{"sheet":"Calcolo a","index":8,"n_rows":24,"n_cols":18,"rows_kept":24,"cut":false,"hidden":true,"merged":[]}
[null,{"$f":"+'SHC system'!C11","v":"COMPONENTS OF THE SHC SYSTEM"},"Global Energy Requirement (Ger)",null,"Global Warming Potential (Gwp)",null,null,"Calcolo xxx",null,"tabella1",null,null,null,null,null,"Tabella 2"]
[null,{"$f":"+'SHC system'!C12","v":"Category"},"Manufacturing Step","End-Of-Life Step","Manufacturing Step","End-Of-Life Step","","Manufacturing Step","Use phase","End-Of-Life Step","Manufacturing Step","Use phase","End-Of-Life Step",null,null,"Type","Global Energy Requirement (Ger)","Global Warming Potential (Gwp)"]
[null,{"$f":"+IF('SHC system'!C13=0,\"\",'SHC system'!C13)","v":"<Ammonia>"},{"$f":"+IFERROR(IF(VLOOKUP('Calcolo a'!$B3,Library!$B$2:$H$57,2,FALSE)=0,\"\",VLOOKUP('Calcolo a'!$B3,Library!$B$2:$H$57,2,FALSE)),\"\")","v":""},{"$f":"+IFERROR(IF(VLOOKUP('Calcolo a'!$B3,Library!$B$2:$H$57,3,FALSE)=0,\"\",VLOOKUP('Calcolo a'!$B3,Library!$B$2:$H$57,3,FALSE)),\"\")","v":""},{"$f":"+IFERROR(IF(VLOOKUP('Calcolo a'!$B3,Library!$B$2:$H$57,5,FALSE)=0,\"\",VLOOKUP('Calcolo a'!$B3,Library!$B$2:$H$57,5,FALSE)),\"\")","v":""},{"$f":"+IFERROR(IF(VLOOKUP('Calcolo a'!$B3,Library!$B$2:$H$57,6,FALSE)=0,\"\",VLOOKUP('Calcolo a'!$B3,Library!$B$2:$H$57,6,FALSE)),\"\")","v":""},{"$f":"+IF(H3=\"\",\"\",'SHC system'!C13)","v":""},{"$f":"+IF(C3=0,\"\",IFERROR(C3*'SHC system'!$F13*('SHC system'!$H13+1),\"\"))","v":""},null,{"$f":"+IFERROR(D3*'SHC system'!$F13*('SHC system'!$H13+1),\"\")","v":""},{"$f":"+IFERROR(E3*'SHC system'!$F13*('SHC system'!$H13+1),\"\")","v":""},null,{"$f":"+IFERROR(F3*'SHC system'!$F13*('SHC system'!$H13+1),\"\")","v":""},null,null,{"$f":"+PROPER(B1)","v":"Components Of The Shc System"},{"$f":"+SUM(H3:J19)","v":0},{"$f":"+SUM(K3:M19)","v":0}]
[null,{"$f":"+IF('SHC system'!C14=0,\"\",'SHC system'!C14)","v":"<Auxiliary Conventional Chiller>"},{"$f":"+IFERROR(IF(VLOOKUP('Calcolo a'!$B4,Library!$B$2:$H$57,2,FALSE)=0,\"\",VLOOKUP('Calcolo a'!$B4,Library!$B$2:$H$57,2,FALSE)),\"\")","v":""},{"$f":"+IFERROR(IF(VLOOKUP('Calcolo a'!$B4,Library!$B$2:$H$57,3,FALSE)=0,\"\",VLOOKUP('Calcolo a'!$B4,Library!$B$2:$H$57,3,FALSE)),\"\")","v":""},{"$f":"+IFERROR(IF(VLOOKUP('Calcolo a'!$B4,Library!$B$2:$H$57,5,FALSE)=0,\"\",VLOOKUP('Calcolo a'!$B4,Library!$B$2:$H$57,5,FALSE)),\"\")","v":""},{"$f":"+IFERROR(IF(VLOOKUP('Calcolo a'!$B4,Library!$B$2:$H$57,6,FALSE)=0,\"\",VLOOKUP('Calcolo a'!$B4,Library!$B$2:$H$57,6,FALSE)),\"\")","v":""},{"$f":"+IF(H4=\"\",\"\",'SHC system'!C14)","v":""},{"$f":"+IF(C4=0,\"\",IFERROR(C4*'SHC system'!$F14*('SHC system'!$H14+1),\"\"))","v":""},null,{"$f":"+IFERROR(D4*'SHC system'!$F14*('SHC system'!$H14+1),\"\")","v":""},{"$f":"+IFERROR(E4*'SHC system'!$F14*('SHC system'!$H14+1),\"\")","v":""},null,{"$f":"+IFERROR(F4*'SHC system'!$F14*('SHC system'!$H14+1),\"\")","v":""},null,null,{"$f":"+CONCATENATE(PROPER(B20),\" \",\"(\",'Calcolo a'!F21,\" years)\")","v":"Energy Sources (0 years)"},{"$f":"+SUM(I22:I23)","v":0},{"$f":"+SUM(L22:L23)","v":0}]
[null,{"$f":"+IF('SHC system'!C15=0,\"\",'SHC system'!C15)","v":"<Auxiliary Gas Boiler>"},{"$f":"+IFERROR(IF(VLOOKUP('Calcolo a'!$B5,Library!$B$2:$H$57,2,FALSE)=0,\"\",VLOOKUP('Calcolo a'!$B5,Library!$B$2:$H$57,2,FALSE)),\"\")","v":""},{"$f":"+IFERROR(IF(VLOOKUP('Calcolo a'!$B5,Library!$B$2:$H$57,3,FALSE)=0,\"\",VLOOKUP('Calcolo a'!$B5,Library!$B$2:$H$57,3,FALSE)),\"\")","v":""},{"$f":"+IFERROR(IF(VLOOKUP('Calcolo a'!$B5,Library!$B$2:$H$57,5,FALSE)=0,\"\",VLOOKUP('Calcolo a'!$B5,Library!$B$2:$H$57,5,FALSE)),\"\")","v":""},{"$f":"+IFERROR(IF(VLOOKUP('Calcolo a'!$B5,Library!$B$2:$H$57,6,FALSE)=0,\"\",VLOOKUP('Calcolo a'!$B5,Library!$B$2:$H$57,6,FALSE)),\"\")","v":""},{"$f":"+IF(H5=\"\",\"\",'SHC system'!C15)","v":""},{"$f":"+IF(C5=0,\"\",IFERROR(C5*'SHC system'!$F15*('SHC system'!$H15+1),\"\"))","v":""},null,{"$f":"+IFERROR(D5*'SHC system'!$F15*('SHC system'!$H15+1),\"\")","v":""},{"$f":"+IFERROR(E5*'SHC system'!$F15*('SHC system'!$H15+1),\"\")","v":""},null,{"$f":"+IFERROR(F5*'SHC system'!$F15*('SHC system'!$H15+1),\"\")","v":""}]
[null,{"$f":"+IF('SHC system'!C16=0,\"\",'SHC system'!C16)","v":"<Chiller (ad/ab-sorption)>"},{"$f":"+IFERROR(IF(VLOOKUP('Calcolo a'!$B6,Library!$B$2:$H$57,2,FALSE)=0,\"\",VLOOKUP('Calcolo a'!$B6,Library!$B$2:$H$57,2,FALSE)),\"\")","v":""},{"$f":"+IFERROR(IF(VLOOKUP('Calcolo a'!$B6,Library!$B$2:$H$57,3,FALSE)=0,\"\",VLOOKUP('Calcolo a'!$B6,Library!$B$2:$H$57,3,FALSE)),\"\")","v":""},{"$f":"+IFERROR(IF(VLOOKUP('Calcolo a'!$B6,Library!$B$2:$H$57,5,FALSE)=0,\"\",VLOOKUP('Calcolo a'!$B6,Library!$B$2:$H$57,5,FALSE)),\"\")","v":""},{"$f":"+IFERROR(IF(VLOOKUP('Calcolo a'!$B6,Library!$B$2:$H$57,6,FALSE)=0,\"\",VLOOKUP('Calcolo a'!$B6,Library!$B$2:$H$57,6,FALSE)),\"\")","v":""},{"$f":"+IF(H6=\"\",\"\",'SHC system'!C16)","v":""},{"$f":"+IF(C6=0,\"\",IFERROR(C6*'SHC system'!$F16*('SHC system'!$H16+1),\"\"))","v":""},null,{"$f":"+IFERROR(D6*'SHC system'!$F16*('SHC system'!$H16+1),\"\")","v":""},{"$f":"+IFERROR(E6*'SHC system'!$F16*('SHC system'!$H16+1),\"\")","v":""},null,{"$f":"+IFERROR(F6*'SHC system'!$F16*('SHC system'!$H16+1),\"\")","v":""}]
[null,{"$f":"+IF('SHC system'!C17=0,\"\",'SHC system'!C17)","v":"<Cooling tower>"},{"$f":"+IFERROR(IF(VLOOKUP('Calcolo a'!$B7,Library!$B$2:$H$57,2,FALSE)=0,\"\",VLOOKUP('Calcolo a'!$B7,Library!$B$2:$H$57,2,FALSE)),\"\")","v":""},{"$f":"+IFERROR(IF(VLOOKUP('Calcolo a'!$B7,Library!$B$2:$H$57,3,FALSE)=0,\"\",VLOOKUP('Calcolo a'!$B7,Library!$B$2:$H$57,3,FALSE)),\"\")","v":""},{"$f":"+IFERROR(IF(VLOOKUP('Calcolo a'!$B7,Library!$B$2:$H$57,5,FALSE)=0,\"\",VLOOKUP('Calcolo a'!$B7,Library!$B$2:$H$57,5,FALSE)),\"\")","v":""},{"$f":"+IFERROR(IF(VLOOKUP('Calcolo a'!$B7,Library!$B$2:$H$57,6,FALSE)=0,\"\",VLOOKUP('Calcolo a'!$B7,Library!$B$2:$H$57,6,FALSE)),\"\")","v":""},{"$f":"+IF(H7=\"\",\"\",'SHC system'!C17)","v":""},{"$f":"+IF(C7=0,\"\",IFERROR(C7*'SHC system'!$F17*('SHC system'!$H17+1),\"\"))","v":""},null,{"$f":"+IFERROR(D7*'SHC system'!$F17*('SHC system'!$H17+1),\"\")","v":""},{"$f":"+IFERROR(E7*'SHC system'!$F17*('SHC system'!$H17+1),\"\")","v":""},null,{"$f":"+IFERROR(F7*'SHC system'!$F17*('SHC system'!$H17+1),\"\")","v":""}]
[null,{"$f":"+IF('SHC system'!C18=0,\"\",'SHC system'!C18)","v":"<Glycol>"},{"$f":"+IFERROR(IF(VLOOKUP('Calcolo a'!$B8,Library!$B$2:$H$57,2,FALSE)=0,\"\",VLOOKUP('Calcolo a'!$B8,Library!$B$2:$H$57,2,FALSE)),\"\")","v":""},{"$f":"+IFERROR(IF(VLOOKUP('Calcolo a'!$B8,Library!$B$2:$H$57,3,FALSE)=0,\"\",VLOOKUP('Calcolo a'!$B8,Library!$B$2:$H$57,3,FALSE)),\"\")","v":""},{"$f":"+IFERROR(IF(VLOOKUP('Calcolo a'!$B8,Library!$B$2:$H$57,5,FALSE)=0,\"\",VLOOKUP('Calcolo a'!$B8,Library!$B$2:$H$57,5,FALSE)),\"\")","v":""},{"$f":"+IFERROR(IF(VLOOKUP('Calcolo a'!$B8,Library!$B$2:$H$57,6,FALSE)=0,\"\",VLOOKUP('Calcolo a'!$B8,Library!$B$2:$H$57,6,FALSE)),\"\")","v":""},{"$f":"+IF(H8=\"\",\"\",'SHC system'!C18)","v":""},{"$f":"+IF(C8=0,\"\",IFERROR(C8*'SHC system'!$F18*('SHC system'!$H18+1),\"\"))","v":""},null,{"$f":"+IFERROR(D8*'SHC system'!$F18*('SHC system'!$H18+1),\"\")","v":""},{"$f":"+IFERROR(E8*'SHC system'!$F18*('SHC system'!$H18+1),\"\")","v":""},null,{"$f":"+IFERROR(F8*'SHC system'!$F18*('SHC system'!$H18+1),\"\")","v":""}]
[null,{"$f":"+IF('SHC system'!C19=0,\"\",'SHC system'!C19)","v":"<Heat rejection system>"},{"$f":"+IFERROR(IF(VLOOKUP('Calcolo a'!$B9,Library!$B$2:$H$57,2,FALSE)=0,\"\",VLOOKUP('Calcolo a'!$B9,Library!$B$2:$H$57,2,FALSE)),\"\")","v":""},{"$f":"+IFERROR(IF(VLOOKUP('Calcolo a'!$B9,Library!$B$2:$H$57,3,FALSE)=0,\"\",VLOOKUP('Calcolo a'!$B9,Library!$B$2:$H$57,3,FALSE)),\"\")","v":""},{"$f":"+IFERROR(IF(VLOOKUP('Calcolo a'!$B9,Library!$B$2:$H$57,5,FALSE)=0,\"\",VLOOKUP('Calcolo a'!$B9,Library!$B$2:$H$57,5,FALSE)),\"\")","v":""},{"$f":"+IFERROR(IF(VLOOKUP('Calcolo a'!$B9,Library!$B$2:$H$57,6,FALSE)=0,\"\",VLOOKUP('Calcolo a'!$B9,Library!$B$2:$H$57,6,FALSE)),\"\")","v":""},{"$f":"+IF(H9=\"\",\"\",'SHC system'!C19)","v":""},{"$f":"+IF(C9=0,\"\",IFERROR(C9*'SHC system'!$F19*('SHC system'!$H19+1),\"\"))","v":""},null,{"$f":"+IFERROR(D9*'SHC system'!$F19*('SHC system'!$H19+1),\"\")","v":""},{"$f":"+IFERROR(E9*'SHC system'!$F19*('SHC system'!$H19+1),\"\")","v":""},null,{"$f":"+IFERROR(F9*'SHC system'!$F19*('SHC system'!$H19+1),\"\")","v":""}]
[null,{"$f":"+IF('SHC system'!C20=0,\"\",'SHC system'!C20)","v":"<Heat storage>"},{"$f":"+IFERROR(IF(VLOOKUP('Calcolo a'!$B10,Library!$B$2:$H$57,2,FALSE)=0,\"\",VLOOKUP('Calcolo a'!$B10,Library!$B$2:$H$57,2,FALSE)),\"\")","v":""},{"$f":"+IFERROR(IF(VLOOKUP('Calcolo a'!$B10,Library!$B$2:$H$57,3,FALSE)=0,\"\",VLOOKUP('Calcolo a'!$B10,Library!$B$2:$H$57,3,FALSE)),\"\")","v":""},{"$f":"+IFERROR(IF(VLOOKUP('Calcolo a'!$B10,Library!$B$2:$H$57,5,FALSE)=0,\"\",VLOOKUP('Calcolo a'!$B10,Library!$B$2:$H$57,5,FALSE)),\"\")","v":""},{"$f":"+IFERROR(IF(VLOOKUP('Calcolo a'!$B10,Library!$B$2:$H$57,6,FALSE)=0,\"\",VLOOKUP('Calcolo a'!$B10,Library!$B$2:$H$57,6,FALSE)),\"\")","v":""},{"$f":"+IF(H10=\"\",\"\",'SHC system'!C20)","v":""},{"$f":"+IF(C10=0,\"\",IFERROR(C10*'SHC system'!$F20*('SHC system'!$H20+1),\"\"))","v":""},null,{"$f":"+IFERROR(D10*'SHC system'!$F20*('SHC system'!$H20+1),\"\")","v":""},{"$f":"+IFERROR(E10*'SHC system'!$F20*('SHC system'!$H20+1),\"\")","v":""},null,{"$f":"+IFERROR(F10*'SHC system'!$F20*('SHC system'!$H20+1),\"\")","v":""}]
[null,{"$f":"+IF('SHC system'!C21=0,\"\",'SHC system'!C21)","v":"<Heat-pump>"},{"$f":"+IFERROR(IF(VLOOKUP('Calcolo a'!$B11,Library!$B$2:$H$57,2,FALSE)=0,\"\",VLOOKUP('Calcolo a'!$B11,Library!$B$2:$H$57,2,FALSE)),\"\")","v":""},{"$f":"+IFERROR(IF(VLOOKUP('Calcolo a'!$B11,Library!$B$2:$H$57,3,FALSE)=0,\"\",VLOOKUP('Calcolo a'!$B11,Library!$B$2:$H$57,3,FALSE)),\"\")","v":""},{"$f":"+IFERROR(IF(VLOOKUP('Calcolo a'!$B11,Library!$B$2:$H$57,5,FALSE)=0,\"\",VLOOKUP('Calcolo a'!$B11,Library!$B$2:$H$57,5,FALSE)),\"\")","v":""},{"$f":"+IFERROR(IF(VLOOKUP('Calcolo a'!$B11,Library!$B$2:$H$57,6,FALSE)=0,\"\",VLOOKUP('Calcolo a'!$B11,Library!$B$2:$H$57,6,FALSE)),\"\")","v":""},{"$f":"+IF(H11=\"\",\"\",'SHC system'!C21)","v":""},{"$f":"+IF(C11=0,\"\",IFERROR(C11*'SHC system'!$F21*('SHC system'!$H21+1),\"\"))","v":""},null,{"$f":"+IFERROR(D11*'SHC system'!$F21*('SHC system'!$H21+1),\"\")","v":""},{"$f":"+IFERROR(E11*'SHC system'!$F21*('SHC system'!$H21+1),\"\")","v":""},null,{"$f":"+IFERROR(F11*'SHC system'!$F21*('SHC system'!$H21+1),\"\")","v":""}]
[null,{"$f":"+IF('SHC system'!C22=0,\"\",'SHC system'!C22)","v":"<Pipes>"},{"$f":"+IFERROR(IF(VLOOKUP('Calcolo a'!$B12,Library!$B$2:$H$57,2,FALSE)=0,\"\",VLOOKUP('Calcolo a'!$B12,Library!$B$2:$H$57,2,FALSE)),\"\")","v":""},{"$f":"+IFERROR(IF(VLOOKUP('Calcolo a'!$B12,Library!$B$2:$H$57,3,FALSE)=0,\"\",VLOOKUP('Calcolo a'!$B12,Library!$B$2:$H$57,3,FALSE)),\"\")","v":""},{"$f":"+IFERROR(IF(VLOOKUP('Calcolo a'!$B12,Library!$B$2:$H$57,5,FALSE)=0,\"\",VLOOKUP('Calcolo a'!$B12,Library!$B$2:$H$57,5,FALSE)),\"\")","v":""},{"$f":"+IFERROR(IF(VLOOKUP('Calcolo a'!$B12,Library!$B$2:$H$57,6,FALSE)=0,\"\",VLOOKUP('Calcolo a'!$B12,Library!$B$2:$H$57,6,FALSE)),\"\")","v":""},{"$f":"+IF(H12=\"\",\"\",'SHC system'!C22)","v":""},{"$f":"+IF(C12=0,\"\",IFERROR(C12*'SHC system'!$F22*('SHC system'!$H22+1),\"\"))","v":""},null,{"$f":"+IFERROR(D12*'SHC system'!$F22*('SHC system'!$H22+1),\"\")","v":""},{"$f":"+IFERROR(E12*'SHC system'!$F22*('SHC system'!$H22+1),\"\")","v":""},null,{"$f":"+IFERROR(F12*'SHC system'!$F22*('SHC system'!$H22+1),\"\")","v":""}]
[null,{"$f":"+IF('SHC system'!C23=0,\"\",'SHC system'!C23)","v":"<Pump>"},{"$f":"+IFERROR(IF(VLOOKUP('Calcolo a'!$B13,Library!$B$2:$H$57,2,FALSE)=0,\"\",VLOOKUP('Calcolo a'!$B13,Library!$B$2:$H$57,2,FALSE)),\"\")","v":""},{"$f":"+IFERROR(IF(VLOOKUP('Calcolo a'!$B13,Library!$B$2:$H$57,3,FALSE)=0,\"\",VLOOKUP('Calcolo a'!$B13,Library!$B$2:$H$57,3,FALSE)),\"\")","v":""},{"$f":"+IFERROR(IF(VLOOKUP('Calcolo a'!$B13,Library!$B$2:$H$57,5,FALSE)=0,\"\",VLOOKUP('Calcolo a'!$B13,Library!$B$2:$H$57,5,FALSE)),\"\")","v":""},{"$f":"+IFERROR(IF(VLOOKUP('Calcolo a'!$B13,Library!$B$2:$H$57,6,FALSE)=0,\"\",VLOOKUP('Calcolo a'!$B13,Library!$B$2:$H$57,6,FALSE)),\"\")","v":""},{"$f":"+IF(H13=\"\",\"\",'SHC system'!C23)","v":""},{"$f":"+IF(C13=0,\"\",IFERROR(C13*'SHC system'!$F23*('SHC system'!$H23+1),\"\"))","v":""},null,{"$f":"+IFERROR(D13*'SHC system'!$F23*('SHC system'!$H23+1),\"\")","v":""},{"$f":"+IFERROR(E13*'SHC system'!$F23*('SHC system'!$H23+1),\"\")","v":""},null,{"$f":"+IFERROR(F13*'SHC system'!$F23*('SHC system'!$H23+1),\"\")","v":""}]
[null,{"$f":"+IF('SHC system'!C24=0,\"\",'SHC system'!C24)","v":"<Solar thermal collectors>"},{"$f":"+IFERROR(IF(VLOOKUP('Calcolo a'!$B14,Library!$B$2:$H$57,2,FALSE)=0,\"\",VLOOKUP('Calcolo a'!$B14,Library!$B$2:$H$57,2,FALSE)),\"\")","v":""},{"$f":"+IFERROR(IF(VLOOKUP('Calcolo a'!$B14,Library!$B$2:$H$57,3,FALSE)=0,\"\",VLOOKUP('Calcolo a'!$B14,Library!$B$2:$H$57,3,FALSE)),\"\")","v":""},{"$f":"+IFERROR(IF(VLOOKUP('Calcolo a'!$B14,Library!$B$2:$H$57,5,FALSE)=0,\"\",VLOOKUP('Calcolo a'!$B14,Library!$B$2:$H$57,5,FALSE)),\"\")","v":""},{"$f":"+IFERROR(IF(VLOOKUP('Calcolo a'!$B14,Library!$B$2:$H$57,6,FALSE)=0,\"\",VLOOKUP('Calcolo a'!$B14,Library!$B$2:$H$57,6,FALSE)),\"\")","v":""},{"$f":"+IF(H14=\"\",\"\",'SHC system'!C24)","v":""},{"$f":"+IF(C14=0,\"\",IFERROR(C14*'SHC system'!$F24*('SHC system'!$H24+1),\"\"))","v":""},null,{"$f":"+IFERROR(D14*'SHC system'!$F24*('SHC system'!$H24+1),\"\")","v":""},{"$f":"+IFERROR(E14*'SHC system'!$F24*('SHC system'!$H24+1),\"\")","v":""},null,{"$f":"+IFERROR(F14*'SHC system'!$F24*('SHC system'!$H24+1),\"\")","v":""}]
[null,{"$f":"+IF('SHC system'!C25=0,\"\",'SHC system'!C25)","v":"<Water>"},{"$f":"+IFERROR(IF(VLOOKUP('Calcolo a'!$B15,Library!$B$2:$H$57,2,FALSE)=0,\"\",VLOOKUP('Calcolo a'!$B15,Library!$B$2:$H$57,2,FALSE)),\"\")","v":""},{"$f":"+IFERROR(IF(VLOOKUP('Calcolo a'!$B15,Library!$B$2:$H$57,3,FALSE)=0,\"\",VLOOKUP('Calcolo a'!$B15,Library!$B$2:$H$57,3,FALSE)),\"\")","v":""},{"$f":"+IFERROR(IF(VLOOKUP('Calcolo a'!$B15,Library!$B$2:$H$57,5,FALSE)=0,\"\",VLOOKUP('Calcolo a'!$B15,Library!$B$2:$H$57,5,FALSE)),\"\")","v":""},{"$f":"+IFERROR(IF(VLOOKUP('Calcolo a'!$B15,Library!$B$2:$H$57,6,FALSE)=0,\"\",VLOOKUP('Calcolo a'!$B15,Library!$B$2:$H$57,6,FALSE)),\"\")","v":""},{"$f":"+IF(H15=\"\",\"\",'SHC system'!C25)","v":""},{"$f":"+IF(C15=0,\"\",IFERROR(C15*'SHC system'!$F$13,\"\"))","v":""},null,{"$f":"+IFERROR(D15*'SHC system'!$F25*('SHC system'!$H25+1),\"\")","v":""},{"$f":"+IFERROR(E15*'SHC system'!$F25*('SHC system'!$H25+1),\"\")","v":""},null,{"$f":"+IFERROR(F15*'SHC system'!$F25*('SHC system'!$H25+1),\"\")","v":""}]
[null,{"$f":"+IF('SHC system'!C26=0,\"\",'SHC system'!C26)","v":""},{"$f":"+IFERROR(IF(VLOOKUP('Calcolo a'!$B16,Library!$B$2:$H$57,2,FALSE)=0,\"\",VLOOKUP('Calcolo a'!$B16,Library!$B$2:$H$57,2,FALSE)),\"\")","v":""},{"$f":"+IFERROR(IF(VLOOKUP('Calcolo a'!$B16,Library!$B$2:$H$57,3,FALSE)=0,\"\",VLOOKUP('Calcolo a'!$B16,Library!$B$2:$H$57,3,FALSE)),\"\")","v":""},{"$f":"+IFERROR(IF(VLOOKUP('Calcolo a'!$B16,Library!$B$2:$H$57,5,FALSE)=0,\"\",VLOOKUP('Calcolo a'!$B16,Library!$B$2:$H$57,5,FALSE)),\"\")","v":""},{"$f":"+IFERROR(IF(VLOOKUP('Calcolo a'!$B16,Library!$B$2:$H$57,6,FALSE)=0,\"\",VLOOKUP('Calcolo a'!$B16,Library!$B$2:$H$57,6,FALSE)),\"\")","v":""},{"$f":"+IF(H16=\"\",\"\",'SHC system'!C26)","v":""},{"$f":"+IF(C16=0,\"\",IFERROR(C16*'SHC system'!$F$13,\"\"))","v":""},null,{"$f":"+IFERROR(D16*'SHC system'!$F$13,\"\")","v":""},{"$f":"+IFERROR(E16*'SHC system'!$F26*('SHC system'!$H26+1),\"\")","v":""},null,{"$f":"+IFERROR(F16*'SHC system'!$F26*('SHC system'!$H26+1),\"\")","v":""}]
[null,{"$f":"+IF('SHC system'!C27=0,\"\",'SHC system'!C27)","v":""},{"$f":"+IFERROR(IF(VLOOKUP('Calcolo a'!$B17,Library!$B$2:$H$57,2,FALSE)=0,\"\",VLOOKUP('Calcolo a'!$B17,Library!$B$2:$H$57,2,FALSE)),\"\")","v":""},{"$f":"+IFERROR(IF(VLOOKUP('Calcolo a'!$B17,Library!$B$2:$H$57,3,FALSE)=0,\"\",VLOOKUP('Calcolo a'!$B17,Library!$B$2:$H$57,3,FALSE)),\"\")","v":""},{"$f":"+IFERROR(IF(VLOOKUP('Calcolo a'!$B17,Library!$B$2:$H$57,5,FALSE)=0,\"\",VLOOKUP('Calcolo a'!$B17,Library!$B$2:$H$57,5,FALSE)),\"\")","v":""},{"$f":"+IFERROR(IF(VLOOKUP('Calcolo a'!$B17,Library!$B$2:$H$57,6,FALSE)=0,\"\",VLOOKUP('Calcolo a'!$B17,Library!$B$2:$H$57,6,FALSE)),\"\")","v":""},{"$f":"+IF(H17=\"\",\"\",'SHC system'!C27)","v":""},{"$f":"+IF(C17=0,\"\",IFERROR(C17*'SHC system'!$F$13,\"\"))","v":""},null,{"$f":"+IFERROR(D17*'SHC system'!$F$13,\"\")","v":""},{"$f":"+IFERROR(E17*'SHC system'!$F$13,\"\")","v":""},null,{"$f":"+IFERROR(F17*'SHC system'!$F27*('SHC system'!$H27+1),\"\")","v":""}]
[null,{"$f":"+IF('SHC system'!C28=0,\"\",'SHC system'!C28)","v":""},{"$f":"+IFERROR(IF(VLOOKUP('Calcolo a'!$B18,Library!$B$2:$H$57,2,FALSE)=0,\"\",VLOOKUP('Calcolo a'!$B18,Library!$B$2:$H$57,2,FALSE)),\"\")","v":""},{"$f":"+IFERROR(IF(VLOOKUP('Calcolo a'!$B18,Library!$B$2:$H$57,3,FALSE)=0,\"\",VLOOKUP('Calcolo a'!$B18,Library!$B$2:$H$57,3,FALSE)),\"\")","v":""},{"$f":"+IFERROR(IF(VLOOKUP('Calcolo a'!$B18,Library!$B$2:$H$57,5,FALSE)=0,\"\",VLOOKUP('Calcolo a'!$B18,Library!$B$2:$H$57,5,FALSE)),\"\")","v":""},{"$f":"+IFERROR(IF(VLOOKUP('Calcolo a'!$B18,Library!$B$2:$H$57,6,FALSE)=0,\"\",VLOOKUP('Calcolo a'!$B18,Library!$B$2:$H$57,6,FALSE)),\"\")","v":""},{"$f":"+IF(H18=\"\",\"\",'SHC system'!C28)","v":""},{"$f":"+IF(C18=0,\"\",IFERROR(C18*'SHC system'!$F$13,\"\"))","v":""},null,{"$f":"+IFERROR(D18*'SHC system'!$F$13,\"\")","v":""},{"$f":"+IFERROR(E18*'SHC system'!$F$13,\"\")","v":""},null,{"$f":"+IFERROR(F18*'SHC system'!$F$13,\"\")","v":""}]
[null,{"$f":"+IF('SHC system'!C29=0,\"\",'SHC system'!C29)","v":""},{"$f":"+IFERROR(IF(VLOOKUP('Calcolo a'!$B19,Library!$B$2:$H$57,2,FALSE)=0,\"\",VLOOKUP('Calcolo a'!$B19,Library!$B$2:$H$57,2,FALSE)),\"\")","v":""},{"$f":"+IFERROR(IF(VLOOKUP('Calcolo a'!$B19,Library!$B$2:$H$57,3,FALSE)=0,\"\",VLOOKUP('Calcolo a'!$B19,Library!$B$2:$H$57,3,FALSE)),\"\")","v":""},{"$f":"+IFERROR(IF(VLOOKUP('Calcolo a'!$B19,Library!$B$2:$H$57,5,FALSE)=0,\"\",VLOOKUP('Calcolo a'!$B19,Library!$B$2:$H$57,5,FALSE)),\"\")","v":""},{"$f":"+IFERROR(IF(VLOOKUP('Calcolo a'!$B19,Library!$B$2:$H$57,6,FALSE)=0,\"\",VLOOKUP('Calcolo a'!$B19,Library!$B$2:$H$57,6,FALSE)),\"\")","v":""},{"$f":"+IF(H19=\"\",\"\",'SHC system'!C29)","v":""},{"$f":"+IFERROR(C19*'SHC system'!$F$13,\"\")","v":""},null,{"$f":"+IFERROR(D19*'SHC system'!$F$13,\"\")","v":""},{"$f":"+IFERROR(E19*'SHC system'!$F$13,\"\")","v":""},null,{"$f":"+IFERROR(F19*'SHC system'!$F$13,\"\")","v":""}]
[null,{"$f":"+'SHC system'!C30","v":"ENERGY SOURCES"},"Global Energy Requirement (Ger)",null,"Global Warming Potential (Gwp)","numbers years",null,{"$f":"+IFERROR(C20*'SHC system'!$F$13,\"\")","v":""},null,null,{"$f":"+IFERROR(E20*'SHC system'!$F$13,\"\")","v":""},null,{"$f":"+IFERROR(F20*'SHC system'!$F$13,\"\")","v":""}]
[null,null,{"$f":"+IFERROR(IF(VLOOKUP('Calcolo a'!$B21,Library!$B$2:$H$57,2,FALSE)=0,\"\",VLOOKUP('Calcolo a'!$B21,Library!$B$2:$H$57,2,FALSE)),\"\")","v":""},{"$f":"+IFERROR(IF(VLOOKUP('Calcolo a'!$B21,Library!$B$2:$H$57,3,FALSE)=0,\"\",VLOOKUP('Calcolo a'!$B21,Library!$B$2:$H$57,3,FALSE)),\"\")","v":""},{"$f":"+IFERROR(IF(VLOOKUP('Calcolo a'!$B21,Library!$B$2:$H$57,5,FALSE)=0,\"\",VLOOKUP('Calcolo a'!$B21,Library!$B$2:$H$57,5,FALSE)),\"\")","v":""},{"$f":"+'SHC system'!F37","v":0},{"$f":"+IF(H21=\"\",\"\",'SHC system'!C31)","v":""},null,null,{"$f":"+IFERROR(D21*'SHC system'!$F$13,\"\")","v":""},{"$f":"+IFERROR(E21*'SHC system'!$F$13,\"\")","v":""},null,{"$f":"+IFERROR(#REF!*'SHC system'!$F$13,\"\")","v":""},null,{"$f":"+PROPER(A19)","v":""},{"$f":"+PROPER(B19)","v":""}]
[null,{"$f":"+'SHC system'!C32","v":"<Electricity>"},{"$f":"+IFERROR(IF(VLOOKUP('Calcolo a'!$B22,Library!$B$58:$H$118,2,FALSE)=0,\"\",VLOOKUP('Calcolo a'!$B22,Library!$B$58:$H$118,2,FALSE)),\"\")","v":""},null,{"$f":"+IFERROR(IF(VLOOKUP('Calcolo a'!$B22,Library!$B$58:$H$118,5,FALSE)=0,\"\",VLOOKUP('Calcolo a'!$B22,Library!$B$58:$H$118,5,FALSE)),\"\")","v":""},null,{"$f":"+IF(I22=\"\",\"\",'SHC system'!C32)","v":""},null,{"$f":"+IFERROR(C22*'SHC system'!$F$32*'SHC system'!$F$37,\"\")","v":""},null,null,{"$f":"+IFERROR(E22*'SHC system'!$F$32*'SHC system'!$F$37,\"\")","v":""}]
[null,{"$f":"+'SHC system'!C33","v":"<Natural gas>"},{"$f":"+IFERROR(IF(VLOOKUP('Calcolo a'!$B23,Library!$B$58:$H$118,2,FALSE)=0,\"\",VLOOKUP('Calcolo a'!$B23,Library!$B$58:$H$118,2,FALSE)),\"\")","v":""},null,{"$f":"+IFERROR(IF(VLOOKUP('Calcolo a'!$B23,Library!$B$58:$H$118,5,FALSE)=0,\"\",VLOOKUP('Calcolo a'!$B23,Library!$B$58:$H$118,5,FALSE)),\"\")","v":""},null,{"$f":"+IF(I23=\"\",\"\",'SHC system'!C33)","v":""},null,{"$f":"+IFERROR(C23*'SHC system'!$F$33*'SHC system'!$F$37,\"\")","v":""},null,null,{"$f":"+IFERROR(E23*'SHC system'!$F$33*'SHC system'!$F$37,\"\")","v":""}]
[null,{"$f":"+'SHC system'!C34","v":0},{"$f":"+IFERROR(IF(VLOOKUP('Calcolo a'!$B24,Library!$B$2:$H$57,2,FALSE)=0,\"\",VLOOKUP('Calcolo a'!$B24,Library!$B$2:$H$57,2,FALSE)),\"\")","v":""},null,{"$f":"+IFERROR(IF(VLOOKUP('Calcolo a'!$B24,Library!$B$2:$H$57,5,FALSE)=0,\"\",VLOOKUP('Calcolo a'!$B24,Library!$B$2:$H$57,5,FALSE)),\"\")","v":""}]

{"sheet":"Calcolo b","index":9,"n_rows":24,"n_cols":18,"rows_kept":24,"cut":false,"hidden":true,"merged":[]}
[null,{"$f":"+'SHC system with PV'!C11","v":"COMPONENTS OF THE SHC SYSTEM WITH PV"},"Global Energy Requirement (Ger)",null,"Global Warming Potential (Gwp)",null,null,"Calcolo xxx",null,"tabella1",null,null,null,null,null,"Tabella 2"]
[null,{"$f":"+'SHC system with PV'!C12","v":"Category"},"Manufacturing Step","End-Of-Life Step","Manufacturing Step","End-Of-Life Step","","Manufacturing Step","Use phase","End-Of-Life Step","Manufacturing Step","Use phase","End-Of-Life Step",null,null,"Type","Global Energy Requirement (Ger)","Global Warming Potential (Gwp)"]
[null,{"$f":"+IF('SHC system with PV'!C13=0,\"\",'SHC system with PV'!C13)","v":"<Ammonia>"},{"$f":"+IFERROR(IF(VLOOKUP('Calcolo b'!$B3,Library!$B$2:$H$57,2,FALSE)=0,\"\",VLOOKUP('Calcolo b'!$B3,Library!$B$2:$H$57,2,FALSE)),\"\")","v":""},{"$f":"+IFERROR(IF(VLOOKUP('Calcolo b'!$B3,Library!$B$2:$H$57,3,FALSE)=0,\"\",VLOOKUP('Calcolo b'!$B3,Library!$B$2:$H$57,3,FALSE)),\"\")","v":""},{"$f":"+IFERROR(IF(VLOOKUP('Calcolo b'!$B3,Library!$B$2:$H$57,5,FALSE)=0,\"\",VLOOKUP('Calcolo b'!$B3,Library!$B$2:$H$57,5,FALSE)),\"\")","v":""},{"$f":"+IFERROR(IF(VLOOKUP('Calcolo b'!$B3,Library!$B$2:$H$57,6,FALSE)=0,\"\",VLOOKUP('Calcolo b'!$B3,Library!$B$2:$H$57,6,FALSE)),\"\")","v":""},{"$f":"+IF(H3=\"\",\"\",'SHC system with PV'!C13)","v":""},{"$f":"+IFERROR(C3*'SHC system with PV'!$F13*('SHC system with PV'!$H13+1),\"\")","v":""},null,{"$f":"+IFERROR(D3*'SHC system with PV'!$F13*('SHC system with PV'!$H13+1),\"\")","v":""},{"$f":"+IFERROR(E3*'SHC system with PV'!$F13*('SHC system with PV'!$H13+1),\"\")","v":""},null,{"$f":"+IFERROR(F3*'SHC system with PV'!$F13*('SHC system with PV'!$H13+1),\"\")","v":""},null,null,{"$f":"+PROPER(B1)","v":"Components Of The Shc System With Pv"},{"$f":"+SUM(H3:J19)","v":0},{"$f":"+SUM(K3:M19)","v":0}]
[null,{"$f":"+IF('SHC system with PV'!C14=0,\"\",'SHC system with PV'!C14)","v":"<Auxiliary Conventional Chiller>"},{"$f":"+IFERROR(IF(VLOOKUP('Calcolo b'!$B4,Library!$B$2:$H$57,2,FALSE)=0,\"\",VLOOKUP('Calcolo b'!$B4,Library!$B$2:$H$57,2,FALSE)),\"\")","v":""},{"$f":"+IFERROR(IF(VLOOKUP('Calcolo b'!$B4,Library!$B$2:$H$57,3,FALSE)=0,\"\",VLOOKUP('Calcolo b'!$B4,Library!$B$2:$H$57,3,FALSE)),\"\")","v":""},{"$f":"+IFERROR(IF(VLOOKUP('Calcolo b'!$B4,Library!$B$2:$H$57,5,FALSE)=0,\"\",VLOOKUP('Calcolo b'!$B4,Library!$B$2:$H$57,5,FALSE)),\"\")","v":""},{"$f":"+IFERROR(IF(VLOOKUP('Calcolo b'!$B4,Library!$B$2:$H$57,6,FALSE)=0,\"\",VLOOKUP('Calcolo b'!$B4,Library!$B$2:$H$57,6,FALSE)),\"\")","v":""},{"$f":"+IF(H4=\"\",\"\",'SHC system with PV'!C14)","v":""},{"$f":"+IFERROR(C4*'SHC system with PV'!$F14*('SHC system with PV'!$H14+1),\"\")","v":""},null,{"$f":"+IFERROR(D4*'SHC system with PV'!$F14*('SHC system with PV'!$H14+1),\"\")","v":""},{"$f":"+IFERROR(E4*'SHC system with PV'!$F14*('SHC system with PV'!$H14+1),\"\")","v":""},null,{"$f":"+IFERROR(F4*'SHC system with PV'!$F14*('SHC system with PV'!$H14+1),\"\")","v":""},null,null,{"$f":"+CONCATENATE(PROPER(B20),\" \",\"(\",'Calcolo b'!F21,\" years)\")","v":"Energy Sources (0 years)"},{"$f":"+SUM(I22:I23)","v":0},{"$f":"+SUM(L22:L23)","v":0}]
[null,{"$f":"+IF('SHC system with PV'!C15=0,\"\",'SHC system with PV'!C15)","v":"<Auxiliary Gas Boiler>"},{"$f":"+IFERROR(IF(VLOOKUP('Calcolo b'!$B5,Library!$B$2:$H$57,2,FALSE)=0,\"\",VLOOKUP('Calcolo b'!$B5,Library!$B$2:$H$57,2,FALSE)),\"\")","v":""},{"$f":"+IFERROR(IF(VLOOKUP('Calcolo b'!$B5,Library!$B$2:$H$57,3,FALSE)=0,\"\",VLOOKUP('Calcolo b'!$B5,Library!$B$2:$H$57,3,FALSE)),\"\")","v":""},{"$f":"+IFERROR(IF(VLOOKUP('Calcolo b'!$B5,Library!$B$2:$H$57,5,FALSE)=0,\"\",VLOOKUP('Calcolo b'!$B5,Library!$B$2:$H$57,5,FALSE)),\"\")","v":""},{"$f":"+IFERROR(IF(VLOOKUP('Calcolo b'!$B5,Library!$B$2:$H$57,6,FALSE)=0,\"\",VLOOKUP('Calcolo b'!$B5,Library!$B$2:$H$57,6,FALSE)),\"\")","v":""},{"$f":"+IF(H5=\"\",\"\",'SHC system with PV'!C15)","v":""},{"$f":"+IFERROR(C5*'SHC system with PV'!$F15*('SHC system with PV'!$H15+1),\"\")","v":""},null,{"$f":"+IFERROR(D5*'SHC system with PV'!$F15*('SHC system with PV'!$H15+1),\"\")","v":""},{"$f":"+IFERROR(E5*'SHC system with PV'!$F15*('SHC system with PV'!$H15+1),\"\")","v":""},null,{"$f":"+IFERROR(F5*'SHC system with PV'!$F15*('SHC system with PV'!$H15+1),\"\")","v":""}]
[null,{"$f":"+IF('SHC system with PV'!C16=0,\"\",'SHC system with PV'!C16)","v":"<Battery>"},{"$f":"+IFERROR(IF(VLOOKUP('Calcolo b'!$B6,Library!$B$2:$H$57,2,FALSE)=0,\"\",VLOOKUP('Calcolo b'!$B6,Library!$B$2:$H$57,2,FALSE)),\"\")","v":""},{"$f":"+IFERROR(IF(VLOOKUP('Calcolo b'!$B6,Library!$B$2:$H$57,3,FALSE)=0,\"\",VLOOKUP('Calcolo b'!$B6,Library!$B$2:$H$57,3,FALSE)),\"\")","v":""},{"$f":"+IFERROR(IF(VLOOKUP('Calcolo b'!$B6,Library!$B$2:$H$57,5,FALSE)=0,\"\",VLOOKUP('Calcolo b'!$B6,Library!$B$2:$H$57,5,FALSE)),\"\")","v":""},{"$f":"+IFERROR(IF(VLOOKUP('Calcolo b'!$B6,Library!$B$2:$H$57,6,FALSE)=0,\"\",VLOOKUP('Calcolo b'!$B6,Library!$B$2:$H$57,6,FALSE)),\"\")","v":""},{"$f":"+IF(H6=\"\",\"\",'SHC system with PV'!C16)","v":""},{"$f":"+IFERROR(C6*'SHC system with PV'!$F16*('SHC system with PV'!$H16+1),\"\")","v":""},null,{"$f":"+IFERROR(D6*'SHC system with PV'!$F16*('SHC system with PV'!$H16+1),\"\")","v":""},{"$f":"+IFERROR(E6*'SHC system with PV'!$F16*('SHC system with PV'!$H16+1),\"\")","v":""},null,{"$f":"+IFERROR(F6*'SHC system with PV'!$F16*('SHC system with PV'!$H16+1),\"\")","v":""}]
[null,{"$f":"+IF('SHC system with PV'!C17=0,\"\",'SHC system with PV'!C17)","v":"<Chiller (ad/ab-sorption)>"},{"$f":"+IFERROR(IF(VLOOKUP('Calcolo b'!$B7,Library!$B$2:$H$57,2,FALSE)=0,\"\",VLOOKUP('Calcolo b'!$B7,Library!$B$2:$H$57,2,FALSE)),\"\")","v":""},{"$f":"+IFERROR(IF(VLOOKUP('Calcolo b'!$B7,Library!$B$2:$H$57,3,FALSE)=0,\"\",VLOOKUP('Calcolo b'!$B7,Library!$B$2:$H$57,3,FALSE)),\"\")","v":""},{"$f":"+IFERROR(IF(VLOOKUP('Calcolo b'!$B7,Library!$B$2:$H$57,5,FALSE)=0,\"\",VLOOKUP('Calcolo b'!$B7,Library!$B$2:$H$57,5,FALSE)),\"\")","v":""},{"$f":"+IFERROR(IF(VLOOKUP('Calcolo b'!$B7,Library!$B$2:$H$57,6,FALSE)=0,\"\",VLOOKUP('Calcolo b'!$B7,Library!$B$2:$H$57,6,FALSE)),\"\")","v":""},{"$f":"+IF(H7=\"\",\"\",'SHC system with PV'!C17)","v":""},{"$f":"+IFERROR(C7*'SHC system with PV'!$F17*('SHC system with PV'!$H17+1),\"\")","v":""},null,{"$f":"+IFERROR(D7*'SHC system with PV'!$F17*('SHC system with PV'!$H17+1),\"\")","v":""},{"$f":"+IFERROR(E7*'SHC system with PV'!$F17*('SHC system with PV'!$H17+1),\"\")","v":""},null,{"$f":"+IFERROR(F7*'SHC system with PV'!$F17*('SHC system with PV'!$H17+1),\"\")","v":""}]
[null,{"$f":"+IF('SHC system with PV'!C18=0,\"\",'SHC system with PV'!C18)","v":"<Cooling tower>"},{"$f":"+IFERROR(IF(VLOOKUP('Calcolo b'!$B8,Library!$B$2:$H$57,2,FALSE)=0,\"\",VLOOKUP('Calcolo b'!$B8,Library!$B$2:$H$57,2,FALSE)),\"\")","v":""},{"$f":"+IFERROR(IF(VLOOKUP('Calcolo b'!$B8,Library!$B$2:$H$57,3,FALSE)=0,\"\",VLOOKUP('Calcolo b'!$B8,Library!$B$2:$H$57,3,FALSE)),\"\")","v":""},{"$f":"+IFERROR(IF(VLOOKUP('Calcolo b'!$B8,Library!$B$2:$H$57,5,FALSE)=0,\"\",VLOOKUP('Calcolo b'!$B8,Library!$B$2:$H$57,5,FALSE)),\"\")","v":""},{"$f":"+IFERROR(IF(VLOOKUP('Calcolo b'!$B8,Library!$B$2:$H$57,6,FALSE)=0,\"\",VLOOKUP('Calcolo b'!$B8,Library!$B$2:$H$57,6,FALSE)),\"\")","v":""},{"$f":"+IF(H8=\"\",\"\",'SHC system with PV'!C18)","v":""},{"$f":"+IFERROR(C8*'SHC system with PV'!$F18*('SHC system with PV'!$H18+1),\"\")","v":""},null,{"$f":"+IFERROR(D8*'SHC system with PV'!$F18*('SHC system with PV'!$H18+1),\"\")","v":""},{"$f":"+IFERROR(E8*'SHC system with PV'!$F18*('SHC system with PV'!$H18+1),\"\")","v":""},null,{"$f":"+IFERROR(F8*'SHC system with PV'!$F18*('SHC system with PV'!$H18+1),\"\")","v":""}]
[null,{"$f":"+IF('SHC system with PV'!C19=0,\"\",'SHC system with PV'!C19)","v":"<Electric installation>"},{"$f":"+IFERROR(IF(VLOOKUP('Calcolo b'!$B9,Library!$B$2:$H$57,2,FALSE)=0,\"\",VLOOKUP('Calcolo b'!$B9,Library!$B$2:$H$57,2,FALSE)),\"\")","v":""},{"$f":"+IFERROR(IF(VLOOKUP('Calcolo b'!$B9,Library!$B$2:$H$57,3,FALSE)=0,\"\",VLOOKUP('Calcolo b'!$B9,Library!$B$2:$H$57,3,FALSE)),\"\")","v":""},{"$f":"+IFERROR(IF(VLOOKUP('Calcolo b'!$B9,Library!$B$2:$H$57,5,FALSE)=0,\"\",VLOOKUP('Calcolo b'!$B9,Library!$B$2:$H$57,5,FALSE)),\"\")","v":""},{"$f":"+IFERROR(IF(VLOOKUP('Calcolo b'!$B9,Library!$B$2:$H$57,6,FALSE)=0,\"\",VLOOKUP('Calcolo b'!$B9,Library!$B$2:$H$57,6,FALSE)),\"\")","v":""},{"$f":"+IF(H9=\"\",\"\",'SHC system with PV'!C19)","v":""},{"$f":"+IFERROR(C9*'SHC system with PV'!$F19*('SHC system with PV'!$H19+1),\"\")","v":""},null,{"$f":"+IFERROR(D9*'SHC system with PV'!$F19*('SHC system with PV'!$H19+1),\"\")","v":""},{"$f":"+IFERROR(E9*'SHC system with PV'!$F19*('SHC system with PV'!$H19+1),\"\")","v":""},null,{"$f":"+IFERROR(F9*'SHC system with PV'!$F19*('SHC system with PV'!$H19+1),\"\")","v":""}]
[null,{"$f":"+IF('SHC system with PV'!C20=0,\"\",'SHC system with PV'!C20)","v":"<Glycol>"},{"$f":"+IFERROR(IF(VLOOKUP('Calcolo b'!$B10,Library!$B$2:$H$57,2,FALSE)=0,\"\",VLOOKUP('Calcolo b'!$B10,Library!$B$2:$H$57,2,FALSE)),\"\")","v":""},{"$f":"+IFERROR(IF(VLOOKUP('Calcolo b'!$B10,Library!$B$2:$H$57,3,FALSE)=0,\"\",VLOOKUP('Calcolo b'!$B10,Library!$B$2:$H$57,3,FALSE)),\"\")","v":""},{"$f":"+IFERROR(IF(VLOOKUP('Calcolo b'!$B10,Library!$B$2:$H$57,5,FALSE)=0,\"\",VLOOKUP('Calcolo b'!$B10,Library!$B$2:$H$57,5,FALSE)),\"\")","v":""},{"$f":"+IFERROR(IF(VLOOKUP('Calcolo b'!$B10,Library!$B$2:$H$57,6,FALSE)=0,\"\",VLOOKUP('Calcolo b'!$B10,Library!$B$2:$H$57,6,FALSE)),\"\")","v":""},{"$f":"+IF(H10=\"\",\"\",'SHC system with PV'!C20)","v":""},{"$f":"+IFERROR(C10*'SHC system with PV'!$F20*('SHC system with PV'!$H20+1),\"\")","v":""},null,{"$f":"+IFERROR(D10*'SHC system with PV'!$F20*('SHC system with PV'!$H20+1),\"\")","v":""},{"$f":"+IFERROR(E10*'SHC system with PV'!$F20*('SHC system with PV'!$H20+1),\"\")","v":""},null,{"$f":"+IFERROR(F10*'SHC system with PV'!$F20*('SHC system with PV'!$H20+1),\"\")","v":""}]
[null,{"$f":"+IF('SHC system with PV'!C21=0,\"\",'SHC system with PV'!C21)","v":"<Heat rejection system>"},{"$f":"+IFERROR(IF(VLOOKUP('Calcolo b'!$B11,Library!$B$2:$H$57,2,FALSE)=0,\"\",VLOOKUP('Calcolo b'!$B11,Library!$B$2:$H$57,2,FALSE)),\"\")","v":""},{"$f":"+IFERROR(IF(VLOOKUP('Calcolo b'!$B11,Library!$B$2:$H$57,3,FALSE)=0,\"\",VLOOKUP('Calcolo b'!$B11,Library!$B$2:$H$57,3,FALSE)),\"\")","v":""},{"$f":"+IFERROR(IF(VLOOKUP('Calcolo b'!$B11,Library!$B$2:$H$57,5,FALSE)=0,\"\",VLOOKUP('Calcolo b'!$B11,Library!$B$2:$H$57,5,FALSE)),\"\")","v":""},{"$f":"+IFERROR(IF(VLOOKUP('Calcolo b'!$B11,Library!$B$2:$H$57,6,FALSE)=0,\"\",VLOOKUP('Calcolo b'!$B11,Library!$B$2:$H$57,6,FALSE)),\"\")","v":""},{"$f":"+IF(H11=\"\",\"\",'SHC system with PV'!C21)","v":""},{"$f":"+IFERROR(C11*'SHC system with PV'!$F21*('SHC system with PV'!$H21+1),\"\")","v":""},null,{"$f":"+IFERROR(D11*'SHC system with PV'!$F21*('SHC system with PV'!$H21+1),\"\")","v":""},{"$f":"+IFERROR(E11*'SHC system with PV'!$F21*('SHC system with PV'!$H21+1),\"\")","v":""},null,{"$f":"+IFERROR(F11*'SHC system with PV'!$F21*('SHC system with PV'!$H21+1),\"\")","v":""}]
[null,{"$f":"+IF('SHC system with PV'!C22=0,\"\",'SHC system with PV'!C22)","v":"<Heat storage>"},{"$f":"+IFERROR(IF(VLOOKUP('Calcolo b'!$B12,Library!$B$2:$H$57,2,FALSE)=0,\"\",VLOOKUP('Calcolo b'!$B12,Library!$B$2:$H$57,2,FALSE)),\"\")","v":""},{"$f":"+IFERROR(IF(VLOOKUP('Calcolo b'!$B12,Library!$B$2:$H$57,3,FALSE)=0,\"\",VLOOKUP('Calcolo b'!$B12,Library!$B$2:$H$57,3,FALSE)),\"\")","v":""},{"$f":"+IFERROR(IF(VLOOKUP('Calcolo b'!$B12,Library!$B$2:$H$57,5,FALSE)=0,\"\",VLOOKUP('Calcolo b'!$B12,Library!$B$2:$H$57,5,FALSE)),\"\")","v":""},{"$f":"+IFERROR(IF(VLOOKUP('Calcolo b'!$B12,Library!$B$2:$H$57,6,FALSE)=0,\"\",VLOOKUP('Calcolo b'!$B12,Library!$B$2:$H$57,6,FALSE)),\"\")","v":""},{"$f":"+IF(H12=\"\",\"\",'SHC system with PV'!C22)","v":""},{"$f":"+IFERROR(C12*'SHC system with PV'!$F22*('SHC system with PV'!$H22+1),\"\")","v":""},null,{"$f":"+IFERROR(D12*'SHC system with PV'!$F22*('SHC system with PV'!$H22+1),\"\")","v":""},{"$f":"+IFERROR(E12*'SHC system with PV'!$F22*('SHC system with PV'!$H22+1),\"\")","v":""},null,{"$f":"+IFERROR(F12*'SHC system with PV'!$F22*('SHC system with PV'!$H22+1),\"\")","v":""}]
[null,{"$f":"+IF('SHC system with PV'!C23=0,\"\",'SHC system with PV'!C23)","v":"<Heat-pump>"},{"$f":"+IFERROR(IF(VLOOKUP('Calcolo b'!$B13,Library!$B$2:$H$57,2,FALSE)=0,\"\",VLOOKUP('Calcolo b'!$B13,Library!$B$2:$H$57,2,FALSE)),\"\")","v":""},{"$f":"+IFERROR(IF(VLOOKUP('Calcolo b'!$B13,Library!$B$2:$H$57,3,FALSE)=0,\"\",VLOOKUP('Calcolo b'!$B13,Library!$B$2:$H$57,3,FALSE)),\"\")","v":""},{"$f":"+IFERROR(IF(VLOOKUP('Calcolo b'!$B13,Library!$B$2:$H$57,5,FALSE)=0,\"\",VLOOKUP('Calcolo b'!$B13,Library!$B$2:$H$57,5,FALSE)),\"\")","v":""},{"$f":"+IFERROR(IF(VLOOKUP('Calcolo b'!$B13,Library!$B$2:$H$57,6,FALSE)=0,\"\",VLOOKUP('Calcolo b'!$B13,Library!$B$2:$H$57,6,FALSE)),\"\")","v":""},{"$f":"+IF(H13=\"\",\"\",'SHC system with PV'!C23)","v":""},{"$f":"+IFERROR(C13*'SHC system with PV'!$F23*('SHC system with PV'!$H23+1),\"\")","v":""},null,{"$f":"+IFERROR(D13*'SHC system with PV'!$F23*('SHC system with PV'!$H23+1),\"\")","v":""},{"$f":"+IFERROR(E13*'SHC system with PV'!$F23*('SHC system with PV'!$H23+1),\"\")","v":""},null,{"$f":"+IFERROR(F13*'SHC system with PV'!$F23*('SHC system with PV'!$H23+1),\"\")","v":""}]
[null,{"$f":"+IF('SHC system with PV'!C24=0,\"\",'SHC system with PV'!C24)","v":"<Inverter >"},{"$f":"+IFERROR(IF(VLOOKUP('Calcolo b'!$B14,Library!$B$2:$H$57,2,FALSE)=0,\"\",VLOOKUP('Calcolo b'!$B14,Library!$B$2:$H$57,2,FALSE)),\"\")","v":""},{"$f":"+IFERROR(IF(VLOOKUP('Calcolo b'!$B14,Library!$B$2:$H$57,3,FALSE)=0,\"\",VLOOKUP('Calcolo b'!$B14,Library!$B$2:$H$57,3,FALSE)),\"\")","v":""},{"$f":"+IFERROR(IF(VLOOKUP('Calcolo b'!$B14,Library!$B$2:$H$57,5,FALSE)=0,\"\",VLOOKUP('Calcolo b'!$B14,Library!$B$2:$H$57,5,FALSE)),\"\")","v":""},{"$f":"+IFERROR(IF(VLOOKUP('Calcolo b'!$B14,Library!$B$2:$H$57,6,FALSE)=0,\"\",VLOOKUP('Calcolo b'!$B14,Library!$B$2:$H$57,6,FALSE)),\"\")","v":""},{"$f":"+IF(H14=\"\",\"\",'SHC system with PV'!C24)","v":""},{"$f":"+IFERROR(C14*'SHC system with PV'!$F24*('SHC system with PV'!$H24+1),\"\")","v":""},null,{"$f":"+IFERROR(D14*'SHC system with PV'!$F24*('SHC system with PV'!$H24+1),\"\")","v":""},{"$f":"+IFERROR(E14*'SHC system with PV'!$F24*('SHC system with PV'!$H24+1),\"\")","v":""},null,{"$f":"+IFERROR(F14*'SHC system with PV'!$F24*('SHC system with PV'!$H24+1),\"\")","v":""}]
[null,{"$f":"+IF('SHC system with PV'!C25=0,\"\",'SHC system with PV'!C25)","v":"<Photovoltaic panel>"},{"$f":"+IFERROR(IF(VLOOKUP('Calcolo b'!$B15,Library!$B$2:$H$57,2,FALSE)=0,\"\",VLOOKUP('Calcolo b'!$B15,Library!$B$2:$H$57,2,FALSE)),\"\")","v":""},{"$f":"+IFERROR(IF(VLOOKUP('Calcolo b'!$B15,Library!$B$2:$H$57,3,FALSE)=0,\"\",VLOOKUP('Calcolo b'!$B15,Library!$B$2:$H$57,3,FALSE)),\"\")","v":""},{"$f":"+IFERROR(IF(VLOOKUP('Calcolo b'!$B15,Library!$B$2:$H$57,5,FALSE)=0,\"\",VLOOKUP('Calcolo b'!$B15,Library!$B$2:$H$57,5,FALSE)),\"\")","v":""},{"$f":"+IFERROR(IF(VLOOKUP('Calcolo b'!$B15,Library!$B$2:$H$57,6,FALSE)=0,\"\",VLOOKUP('Calcolo b'!$B15,Library!$B$2:$H$57,6,FALSE)),\"\")","v":""},{"$f":"+IF(H15=\"\",\"\",'SHC system with PV'!C25)","v":""},{"$f":"+IFERROR(C15*'SHC system with PV'!$F25*('SHC system with PV'!$H25+1),\"\")","v":""},null,{"$f":"+IFERROR(D15*'SHC system with PV'!$F25*('SHC system with PV'!$H25+1),\"\")","v":""},{"$f":"+IFERROR(E15*'SHC system with PV'!$F25*('SHC system with PV'!$H25+1),\"\")","v":""},null,{"$f":"+IFERROR(F15*'SHC system with PV'!$F25*('SHC system with PV'!$H25+1),\"\")","v":""}]
[null,{"$f":"+IF('SHC system with PV'!C26=0,\"\",'SHC system with PV'!C26)","v":"<Pipes>"},{"$f":"+IFERROR(IF(VLOOKUP('Calcolo b'!$B16,Library!$B$2:$H$57,2,FALSE)=0,\"\",VLOOKUP('Calcolo b'!$B16,Library!$B$2:$H$57,2,FALSE)),\"\")","v":""},{"$f":"+IFERROR(IF(VLOOKUP('Calcolo b'!$B16,Library!$B$2:$H$57,3,FALSE)=0,\"\",VLOOKUP('Calcolo b'!$B16,Library!$B$2:$H$57,3,FALSE)),\"\")","v":""},{"$f":"+IFERROR(IF(VLOOKUP('Calcolo b'!$B16,Library!$B$2:$H$57,5,FALSE)=0,\"\",VLOOKUP('Calcolo b'!$B16,Library!$B$2:$H$57,5,FALSE)),\"\")","v":""},{"$f":"+IFERROR(IF(VLOOKUP('Calcolo b'!$B16,Library!$B$2:$H$57,6,FALSE)=0,\"\",VLOOKUP('Calcolo b'!$B16,Library!$B$2:$H$57,6,FALSE)),\"\")","v":""},{"$f":"+IF(H16=\"\",\"\",'SHC system with PV'!C26)","v":""},{"$f":"+IFERROR(C16*'SHC system with PV'!$F26*('SHC system with PV'!$H26+1),\"\")","v":""},null,{"$f":"+IFERROR(D16*'SHC system with PV'!$F26*('SHC system with PV'!$H26+1),\"\")","v":""},{"$f":"+IFERROR(E16*'SHC system with PV'!$F26*('SHC system with PV'!$H26+1),\"\")","v":""},null,{"$f":"+IFERROR(F16*'SHC system with PV'!$F26*('SHC system with PV'!$H26+1),\"\")","v":""}]
[null,{"$f":"+IF('SHC system with PV'!C27=0,\"\",'SHC system with PV'!C27)","v":"<Pump>"},{"$f":"+IFERROR(IF(VLOOKUP('Calcolo b'!$B17,Library!$B$2:$H$57,2,FALSE)=0,\"\",VLOOKUP('Calcolo b'!$B17,Library!$B$2:$H$57,2,FALSE)),\"\")","v":""},{"$f":"+IFERROR(IF(VLOOKUP('Calcolo b'!$B17,Library!$B$2:$H$57,3,FALSE)=0,\"\",VLOOKUP('Calcolo b'!$B17,Library!$B$2:$H$57,3,FALSE)),\"\")","v":""},{"$f":"+IFERROR(IF(VLOOKUP('Calcolo b'!$B17,Library!$B$2:$H$57,5,FALSE)=0,\"\",VLOOKUP('Calcolo b'!$B17,Library!$B$2:$H$57,5,FALSE)),\"\")","v":""},{"$f":"+IFERROR(IF(VLOOKUP('Calcolo b'!$B17,Library!$B$2:$H$57,6,FALSE)=0,\"\",VLOOKUP('Calcolo b'!$B17,Library!$B$2:$H$57,6,FALSE)),\"\")","v":""},{"$f":"+IF(H17=\"\",\"\",'SHC system with PV'!C27)","v":""},{"$f":"+IFERROR(C17*'SHC system with PV'!$F27*('SHC system with PV'!$H27+1),\"\")","v":""},null,{"$f":"+IFERROR(D17*'SHC system with PV'!$F27*('SHC system with PV'!$H27+1),\"\")","v":""},{"$f":"+IFERROR(E17*'SHC system with PV'!$F27*('SHC system with PV'!$H27+1),\"\")","v":""},null,{"$f":"+IFERROR(F17*'SHC system with PV'!$F27*('SHC system with PV'!$H27+1),\"\")","v":""}]
[null,{"$f":"+IF('SHC system with PV'!C28=0,\"\",'SHC system with PV'!C28)","v":"<Solar thermal collectors>"},{"$f":"+IFERROR(IF(VLOOKUP('Calcolo b'!$B18,Library!$B$2:$H$57,2,FALSE)=0,\"\",VLOOKUP('Calcolo b'!$B18,Library!$B$2:$H$57,2,FALSE)),\"\")","v":""},{"$f":"+IFERROR(IF(VLOOKUP('Calcolo b'!$B18,Library!$B$2:$H$57,3,FALSE)=0,\"\",VLOOKUP('Calcolo b'!$B18,Library!$B$2:$H$57,3,FALSE)),\"\")","v":""},{"$f":"+IFERROR(IF(VLOOKUP('Calcolo b'!$B18,Library!$B$2:$H$57,5,FALSE)=0,\"\",VLOOKUP('Calcolo b'!$B18,Library!$B$2:$H$57,5,FALSE)),\"\")","v":""},{"$f":"+IFERROR(IF(VLOOKUP('Calcolo b'!$B18,Library!$B$2:$H$57,6,FALSE)=0,\"\",VLOOKUP('Calcolo b'!$B18,Library!$B$2:$H$57,6,FALSE)),\"\")","v":""},{"$f":"+IF(H18=\"\",\"\",'SHC system with PV'!C28)","v":""},{"$f":"+IFERROR(C18*'SHC system with PV'!$F28*('SHC system with PV'!$H28+1),\"\")","v":""},null,{"$f":"+IFERROR(D18*'SHC system with PV'!$F28*('SHC system with PV'!$H28+1),\"\")","v":""},{"$f":"+IFERROR(E18*'SHC system with PV'!$F28*('SHC system with PV'!$H28+1),\"\")","v":""},null,{"$f":"+IFERROR(F18*'SHC system with PV'!$F28*('SHC system with PV'!$H28+1),\"\")","v":""}]
[null,{"$f":"+IF('SHC system with PV'!C29=0,\"\",'SHC system with PV'!C29)","v":"<Water>"},{"$f":"+IFERROR(IF(VLOOKUP('Calcolo b'!$B19,Library!$B$2:$H$57,2,FALSE)=0,\"\",VLOOKUP('Calcolo b'!$B19,Library!$B$2:$H$57,2,FALSE)),\"\")","v":""},{"$f":"+IFERROR(IF(VLOOKUP('Calcolo b'!$B19,Library!$B$2:$H$57,3,FALSE)=0,\"\",VLOOKUP('Calcolo b'!$B19,Library!$B$2:$H$57,3,FALSE)),\"\")","v":""},{"$f":"+IFERROR(IF(VLOOKUP('Calcolo b'!$B19,Library!$B$2:$H$57,5,FALSE)=0,\"\",VLOOKUP('Calcolo b'!$B19,Library!$B$2:$H$57,5,FALSE)),\"\")","v":""},{"$f":"+IFERROR(IF(VLOOKUP('Calcolo b'!$B19,Library!$B$2:$H$57,6,FALSE)=0,\"\",VLOOKUP('Calcolo b'!$B19,Library!$B$2:$H$57,6,FALSE)),\"\")","v":""},{"$f":"+IF(H19=\"\",\"\",'SHC system with PV'!C29)","v":""},{"$f":"+IFERROR(C19*'SHC system with PV'!$F29*('SHC system with PV'!$H29+1),\"\")","v":""},null,{"$f":"+IFERROR(D19*'SHC system with PV'!$F$13,\"\")","v":""},{"$f":"+IFERROR(E19*'SHC system with PV'!$F$13,\"\")","v":""},null,{"$f":"+IFERROR(F19*'SHC system with PV'!$F29*('SHC system with PV'!$H29+1),\"\")","v":""}]
[null,{"$f":"+'SHC system with PV'!C30","v":"ENERGY SOURCES"},"Global Energy Requirement (Ger)",null,"Global Warming Potential (Gwp)","numbers years",null,{"$f":"+IFERROR(C20*'SHC system with PV'!$F$13,\"\")","v":""},null,null,{"$f":"+IFERROR(E20*'SHC system with PV'!$F$13,\"\")","v":""},null,{"$f":"+IFERROR(F20*'SHC system with PV'!$F$13,\"\")","v":""}]
[null,null,{"$f":"+IFERROR(IF(VLOOKUP('Calcolo b'!$B21,Library!$B$2:$H$57,2,FALSE)=0,\"\",VLOOKUP('Calcolo b'!$B21,Library!$B$2:$H$57,2,FALSE)),\"\")","v":""},{"$f":"+IFERROR(IF(VLOOKUP('Calcolo b'!$B21,Library!$B$2:$H$57,3,FALSE)=0,\"\",VLOOKUP('Calcolo b'!$B21,Library!$B$2:$H$57,3,FALSE)),\"\")","v":""},{"$f":"+IFERROR(IF(VLOOKUP('Calcolo b'!$B21,Library!$B$2:$H$57,5,FALSE)=0,\"\",VLOOKUP('Calcolo b'!$B21,Library!$B$2:$H$57,5,FALSE)),\"\")","v":""},{"$f":"+'SHC system with PV'!F37","v":0},{"$f":"+IF(H21=\"\",\"\",'SHC system with PV'!C31)","v":""},{"$f":"+IFERROR(C21*'SHC system with PV'!$F$13,\"\")","v":""},null,{"$f":"+IFERROR(D21*'SHC system with PV'!$F$13,\"\")","v":""},{"$f":"+IFERROR(E21*'SHC system with PV'!$F$13,\"\")","v":""},null,{"$f":"+IFERROR(#REF!*'SHC system with PV'!$F$13,\"\")","v":""},null,{"$f":"+PROPER(A19)","v":""},{"$f":"+PROPER(B19)","v":"<Water>"}]
[null,{"$f":"+'SHC system with PV'!C32","v":"<Electricity>"},{"$f":"+IFERROR(IF(VLOOKUP('Calcolo b'!$B22,Library!$B$58:$H$118,2,FALSE)=0,\"\",VLOOKUP('Calcolo b'!$B22,Library!$B$58:$H$118,2,FALSE)),\"\")","v":""},null,{"$f":"+IFERROR(IF(VLOOKUP('Calcolo b'!$B22,Library!$B$58:$H$118,5,FALSE)=0,\"\",VLOOKUP('Calcolo b'!$B22,Library!$B$58:$H$118,5,FALSE)),\"\")","v":""},null,{"$f":"+IF(I22=\"\",\"\",'SHC system with PV'!C32)","v":""},null,{"$f":"+IFERROR(C22*'SHC system with PV'!$F$32*'SHC system with PV'!$F$37,\"\")","v":""},null,null,{"$f":"+IFERROR(E22*'SHC system with PV'!$F$32*'SHC system with PV'!$F$37,\"\")","v":""}]
[null,{"$f":"+'SHC system with PV'!C33","v":"<Natural gas>"},{"$f":"+IFERROR(IF(VLOOKUP('Calcolo b'!$B23,Library!$B$58:$H$118,2,FALSE)=0,\"\",VLOOKUP('Calcolo b'!$B23,Library!$B$58:$H$118,2,FALSE)),\"\")","v":""},null,{"$f":"+IFERROR(IF(VLOOKUP('Calcolo b'!$B23,Library!$B$58:$H$118,5,FALSE)=0,\"\",VLOOKUP('Calcolo b'!$B23,Library!$B$58:$H$118,5,FALSE)),\"\")","v":""},null,{"$f":"+IF(I23=\"\",\"\",'SHC system with PV'!C33)","v":""},null,{"$f":"+IFERROR(C23*'SHC system with PV'!$F$33*'SHC system with PV'!$F$37,\"\")","v":""},null,null,{"$f":"+IFERROR(E23*'SHC system with PV'!$F$33*'SHC system with PV'!$F$37,\"\")","v":""}]
[null,{"$f":"+'SHC system with PV'!C34","v":0},{"$f":"+IFERROR(IF(VLOOKUP('Calcolo b'!$B24,Library!$B$2:$H$57,2,FALSE)=0,\"\",VLOOKUP('Calcolo b'!$B24,Library!$B$2:$H$57,2,FALSE)),\"\")","v":""},null,{"$f":"+IFERROR(IF(VLOOKUP('Calcolo b'!$B24,Library!$B$2:$H$57,5,FALSE)=0,\"\",VLOOKUP('Calcolo b'!$B24,Library!$B$2:$H$57,5,FALSE)),\"\")","v":""}]

{"sheet":"Calcolo c","index":10,"n_rows":24,"n_cols":18,"rows_kept":24,"cut":false,"hidden":true,"merged":[]}
[null,{"$f":"+'Conventional System with PV'!C11","v":"COMPONENTS OF THE CONVENTIONAL SYSTEM WITH PV"},"Global Energy Requirement (Ger)",null,"Global Warming Potential (Gwp)",null,null,"Calcolo xxx",null,"tabella1",null,null,null,null,null,"Tabella 2"]
[null,{"$f":"+'Conventional System with PV'!C12","v":"Category"},"Manufacturing Step","End-Of-Life Step","Manufacturing Step","End-Of-Life Step","","Manufacturing Step","Use phase","End-Of-Life Step","Manufacturing Step","Use phase","End-Of-Life Step",null,null,"Type","Global Energy Requirement (Ger)","Global Warming Potential (Gwp)"]
[null,{"$f":"+IF('Conventional System with PV'!C13=0,\"\",'Conventional System with PV'!C13)","v":"<Battery>"},{"$f":"+IFERROR(IF(VLOOKUP('Calcolo c'!$B3,Library!$B$2:$H$57,2,FALSE)=0,\"\",VLOOKUP('Calcolo c'!$B3,Library!$B$2:$H$57,2,FALSE)),\"\")","v":""},{"$f":"+IFERROR(IF(VLOOKUP('Calcolo c'!$B3,Library!$B$2:$H$57,3,FALSE)=0,\"\",VLOOKUP('Calcolo c'!$B3,Library!$B$2:$H$57,3,FALSE)),\"\")","v":""},{"$f":"+IFERROR(IF(VLOOKUP('Calcolo c'!$B3,Library!$B$2:$H$57,5,FALSE)=0,\"\",VLOOKUP('Calcolo c'!$B3,Library!$B$2:$H$57,5,FALSE)),\"\")","v":""},{"$f":"+IFERROR(IF(VLOOKUP('Calcolo c'!$B3,Library!$B$2:$H$57,6,FALSE)=0,\"\",VLOOKUP('Calcolo c'!$B3,Library!$B$2:$H$57,6,FALSE)),\"\")","v":""},{"$f":"+IF(H3=\"\",\"\",'Conventional System with PV'!C13)","v":""},{"$f":"+IFERROR(C3*'Conventional System with PV'!$F13*('Conventional System with PV'!$H13+1),\"\")","v":""},null,{"$f":"+IFERROR(D3*'Conventional System with PV'!$F13*('Conventional System with PV'!$H13+1),\"\")","v":""},{"$f":"+IFERROR(E3*'Conventional System with PV'!$F13*('Conventional System with PV'!$H13+1),\"\")","v":""},null,{"$f":"+IFERROR(F3*'Conventional System with PV'!$F13*('Conventional System with PV'!$H13+1),\"\")","v":""},null,null,{"$f":"+PROPER(B1)","v":"Components Of The Conventional System With Pv"},{"$f":"+SUM(H3:J19)","v":0},{"$f":"+SUM(K3:M19)","v":0}]
[null,{"$f":"+IF('Conventional System with PV'!C14=0,\"\",'Conventional System with PV'!C14)","v":"<Chiller (conventional)>"},{"$f":"+IFERROR(IF(VLOOKUP('Calcolo c'!$B4,Library!$B$2:$H$57,2,FALSE)=0,\"\",VLOOKUP('Calcolo c'!$B4,Library!$B$2:$H$57,2,FALSE)),\"\")","v":""},{"$f":"+IFERROR(IF(VLOOKUP('Calcolo c'!$B4,Library!$B$2:$H$57,3,FALSE)=0,\"\",VLOOKUP('Calcolo c'!$B4,Library!$B$2:$H$57,3,FALSE)),\"\")","v":""},{"$f":"+IFERROR(IF(VLOOKUP('Calcolo c'!$B4,Library!$B$2:$H$57,5,FALSE)=0,\"\",VLOOKUP('Calcolo c'!$B4,Library!$B$2:$H$57,5,FALSE)),\"\")","v":""},{"$f":"+IFERROR(IF(VLOOKUP('Calcolo c'!$B4,Library!$B$2:$H$57,6,FALSE)=0,\"\",VLOOKUP('Calcolo c'!$B4,Library!$B$2:$H$57,6,FALSE)),\"\")","v":""},{"$f":"+IF(H4=\"\",\"\",'Conventional System with PV'!C14)","v":""},{"$f":"+IFERROR(C4*'Conventional System with PV'!$F14*('Conventional System with PV'!$H14+1),\"\")","v":""},null,{"$f":"+IFERROR(D4*'Conventional System with PV'!$F14*('Conventional System with PV'!$H14+1),\"\")","v":""},{"$f":"+IFERROR(E4*'Conventional System with PV'!$F14*('Conventional System with PV'!$H14+1),\"\")","v":""},null,{"$f":"+IFERROR(F4*'Conventional System with PV'!$F14*('Conventional System with PV'!$H14+1),\"\")","v":""},null,null,{"$f":"+CONCATENATE(PROPER(B20),\" \",\"(\",'Calcolo c'!F21,\" years)\")","v":"Energy Sources (0 years)"},{"$f":"+SUM(I22:I23)","v":0},{"$f":"+SUM(L22:L23)","v":0}]
[null,{"$f":"+IF('Conventional System with PV'!C15=0,\"\",'Conventional System with PV'!C15)","v":"<Electric installation>"},{"$f":"+IFERROR(IF(VLOOKUP('Calcolo c'!$B5,Library!$B$2:$H$57,2,FALSE)=0,\"\",VLOOKUP('Calcolo c'!$B5,Library!$B$2:$H$57,2,FALSE)),\"\")","v":""},{"$f":"+IFERROR(IF(VLOOKUP('Calcolo c'!$B5,Library!$B$2:$H$57,3,FALSE)=0,\"\",VLOOKUP('Calcolo c'!$B5,Library!$B$2:$H$57,3,FALSE)),\"\")","v":""},{"$f":"+IFERROR(IF(VLOOKUP('Calcolo c'!$B5,Library!$B$2:$H$57,5,FALSE)=0,\"\",VLOOKUP('Calcolo c'!$B5,Library!$B$2:$H$57,5,FALSE)),\"\")","v":""},{"$f":"+IFERROR(IF(VLOOKUP('Calcolo c'!$B5,Library!$B$2:$H$57,6,FALSE)=0,\"\",VLOOKUP('Calcolo c'!$B5,Library!$B$2:$H$57,6,FALSE)),\"\")","v":""},{"$f":"+IF(H5=\"\",\"\",'Conventional System with PV'!C15)","v":""},{"$f":"+IFERROR(C5*'Conventional System with PV'!$F15*('Conventional System with PV'!$H15+1),\"\")","v":""},null,{"$f":"+IFERROR(D5*'Conventional System with PV'!$F15*('Conventional System with PV'!$H15+1),\"\")","v":""},{"$f":"+IFERROR(E5*'Conventional System with PV'!$F15*('Conventional System with PV'!$H15+1),\"\")","v":""},null,{"$f":"+IFERROR(F5*'Conventional System with PV'!$F15*('Conventional System with PV'!$H15+1),\"\")","v":""}]
[null,{"$f":"+IF('Conventional System with PV'!C16=0,\"\",'Conventional System with PV'!C16)","v":"<Gas boiler >"},{"$f":"+IFERROR(IF(VLOOKUP('Calcolo c'!$B6,Library!$B$2:$H$57,2,FALSE)=0,\"\",VLOOKUP('Calcolo c'!$B6,Library!$B$2:$H$57,2,FALSE)),\"\")","v":""},{"$f":"+IFERROR(IF(VLOOKUP('Calcolo c'!$B6,Library!$B$2:$H$57,3,FALSE)=0,\"\",VLOOKUP('Calcolo c'!$B6,Library!$B$2:$H$57,3,FALSE)),\"\")","v":""},{"$f":"+IFERROR(IF(VLOOKUP('Calcolo c'!$B6,Library!$B$2:$H$57,5,FALSE)=0,\"\",VLOOKUP('Calcolo c'!$B6,Library!$B$2:$H$57,5,FALSE)),\"\")","v":""},{"$f":"+IFERROR(IF(VLOOKUP('Calcolo c'!$B6,Library!$B$2:$H$57,6,FALSE)=0,\"\",VLOOKUP('Calcolo c'!$B6,Library!$B$2:$H$57,6,FALSE)),\"\")","v":""},{"$f":"+IF(H6=\"\",\"\",'Conventional System with PV'!C16)","v":""},{"$f":"+IFERROR(C6*'Conventional System with PV'!$F16*('Conventional System with PV'!$H16+1),\"\")","v":""},null,{"$f":"+IFERROR(D6*'Conventional System with PV'!$F16*('Conventional System with PV'!$H16+1),\"\")","v":""},{"$f":"+IFERROR(E6*'Conventional System with PV'!$F16*('Conventional System with PV'!$H16+1),\"\")","v":""},null,{"$f":"+IFERROR(F6*'Conventional System with PV'!$F16*('Conventional System with PV'!$H16+1),\"\")","v":""}]
[null,{"$f":"+IF('Conventional System with PV'!C17=0,\"\",'Conventional System with PV'!C17)","v":"<Heat-pump>"},{"$f":"+IFERROR(IF(VLOOKUP('Calcolo c'!$B7,Library!$B$2:$H$57,2,FALSE)=0,\"\",VLOOKUP('Calcolo c'!$B7,Library!$B$2:$H$57,2,FALSE)),\"\")","v":""},{"$f":"+IFERROR(IF(VLOOKUP('Calcolo c'!$B7,Library!$B$2:$H$57,3,FALSE)=0,\"\",VLOOKUP('Calcolo c'!$B7,Library!$B$2:$H$57,3,FALSE)),\"\")","v":""},{"$f":"+IFERROR(IF(VLOOKUP('Calcolo c'!$B7,Library!$B$2:$H$57,5,FALSE)=0,\"\",VLOOKUP('Calcolo c'!$B7,Library!$B$2:$H$57,5,FALSE)),\"\")","v":""},{"$f":"+IFERROR(IF(VLOOKUP('Calcolo c'!$B7,Library!$B$2:$H$57,6,FALSE)=0,\"\",VLOOKUP('Calcolo c'!$B7,Library!$B$2:$H$57,6,FALSE)),\"\")","v":""},{"$f":"+IF(H7=\"\",\"\",'Conventional System with PV'!C17)","v":""},{"$f":"+IFERROR(C7*'Conventional System with PV'!$F17*('Conventional System with PV'!$H17+1),\"\")","v":""},null,{"$f":"+IFERROR(D7*'Conventional System with PV'!$F17*('Conventional System with PV'!$H17+1),\"\")","v":""},{"$f":"+IFERROR(E7*'Conventional System with PV'!$F17*('Conventional System with PV'!$H17+1),\"\")","v":""},null,{"$f":"+IFERROR(F7*'Conventional System with PV'!$F17*('Conventional System with PV'!$H17+1),\"\")","v":""}]
[null,{"$f":"+IF('Conventional System with PV'!C18=0,\"\",'Conventional System with PV'!C18)","v":"<Inverter >"},{"$f":"+IFERROR(IF(VLOOKUP('Calcolo c'!$B8,Library!$B$2:$H$57,2,FALSE)=0,\"\",VLOOKUP('Calcolo c'!$B8,Library!$B$2:$H$57,2,FALSE)),\"\")","v":""},{"$f":"+IFERROR(IF(VLOOKUP('Calcolo c'!$B8,Library!$B$2:$H$57,3,FALSE)=0,\"\",VLOOKUP('Calcolo c'!$B8,Library!$B$2:$H$57,3,FALSE)),\"\")","v":""},{"$f":"+IFERROR(IF(VLOOKUP('Calcolo c'!$B8,Library!$B$2:$H$57,5,FALSE)=0,\"\",VLOOKUP('Calcolo c'!$B8,Library!$B$2:$H$57,5,FALSE)),\"\")","v":""},{"$f":"+IFERROR(IF(VLOOKUP('Calcolo c'!$B8,Library!$B$2:$H$57,6,FALSE)=0,\"\",VLOOKUP('Calcolo c'!$B8,Library!$B$2:$H$57,6,FALSE)),\"\")","v":""},{"$f":"+IF(H8=\"\",\"\",'Conventional System with PV'!C18)","v":""},{"$f":"+IFERROR(C8*'Conventional System with PV'!$F18*('Conventional System with PV'!$H18+1),\"\")","v":""},null,{"$f":"+IFERROR(D8*'Conventional System with PV'!$F18*('Conventional System with PV'!$H18+1),\"\")","v":""},{"$f":"+IFERROR(E8*'Conventional System with PV'!$F18*('Conventional System with PV'!$H18+1),\"\")","v":""},null,{"$f":"+IFERROR(F8*'Conventional System with PV'!$F18*('Conventional System with PV'!$H18+1),\"\")","v":""}]
[null,{"$f":"+IF('Conventional System with PV'!C19=0,\"\",'Conventional System with PV'!C19)","v":"<Photovoltaic panel>"},{"$f":"+IFERROR(IF(VLOOKUP('Calcolo c'!$B9,Library!$B$2:$H$57,2,FALSE)=0,\"\",VLOOKUP('Calcolo c'!$B9,Library!$B$2:$H$57,2,FALSE)),\"\")","v":""},{"$f":"+IFERROR(IF(VLOOKUP('Calcolo c'!$B9,Library!$B$2:$H$57,3,FALSE)=0,\"\",VLOOKUP('Calcolo c'!$B9,Library!$B$2:$H$57,3,FALSE)),\"\")","v":""},{"$f":"+IFERROR(IF(VLOOKUP('Calcolo c'!$B9,Library!$B$2:$H$57,5,FALSE)=0,\"\",VLOOKUP('Calcolo c'!$B9,Library!$B$2:$H$57,5,FALSE)),\"\")","v":""},{"$f":"+IFERROR(IF(VLOOKUP('Calcolo c'!$B9,Library!$B$2:$H$57,6,FALSE)=0,\"\",VLOOKUP('Calcolo c'!$B9,Library!$B$2:$H$57,6,FALSE)),\"\")","v":""},{"$f":"+IF(H9=\"\",\"\",'Conventional System with PV'!C19)","v":""},{"$f":"+IFERROR(C9*'Conventional System with PV'!$F19*('Conventional System with PV'!$H19+1),\"\")","v":""},null,{"$f":"+IFERROR(D9*'Conventional System with PV'!$F19*('Conventional System with PV'!$H19+1),\"\")","v":""},{"$f":"+IFERROR(E9*'Conventional System with PV'!$F19*('Conventional System with PV'!$H19+1),\"\")","v":""},null,{"$f":"+IFERROR(F9*'Conventional System with PV'!$F19*('Conventional System with PV'!$H19+1),\"\")","v":""}]
[null,{"$f":"+IF('Conventional System with PV'!C20=0,\"\",'Conventional System with PV'!C20)","v":"<Pipes>"},{"$f":"+IFERROR(IF(VLOOKUP('Calcolo c'!$B10,Library!$B$2:$H$57,2,FALSE)=0,\"\",VLOOKUP('Calcolo c'!$B10,Library!$B$2:$H$57,2,FALSE)),\"\")","v":""},{"$f":"+IFERROR(IF(VLOOKUP('Calcolo c'!$B10,Library!$B$2:$H$57,3,FALSE)=0,\"\",VLOOKUP('Calcolo c'!$B10,Library!$B$2:$H$57,3,FALSE)),\"\")","v":""},{"$f":"+IFERROR(IF(VLOOKUP('Calcolo c'!$B10,Library!$B$2:$H$57,5,FALSE)=0,\"\",VLOOKUP('Calcolo c'!$B10,Library!$B$2:$H$57,5,FALSE)),\"\")","v":""},{"$f":"+IFERROR(IF(VLOOKUP('Calcolo c'!$B10,Library!$B$2:$H$57,6,FALSE)=0,\"\",VLOOKUP('Calcolo c'!$B10,Library!$B$2:$H$57,6,FALSE)),\"\")","v":""},{"$f":"+IF(H10=\"\",\"\",'Conventional System with PV'!C20)","v":""},{"$f":"+IFERROR(C10*'Conventional System with PV'!$F20*('Conventional System with PV'!$H20+1),\"\")","v":""},null,{"$f":"+IFERROR(D10*'Conventional System with PV'!$F20*('Conventional System with PV'!$H20+1),\"\")","v":""},{"$f":"+IFERROR(E10*'Conventional System with PV'!$F20*('Conventional System with PV'!$H20+1),\"\")","v":""},null,{"$f":"+IFERROR(F10*'Conventional System with PV'!$F20*('Conventional System with PV'!$H20+1),\"\")","v":""}]
[null,{"$f":"+IF('Conventional System with PV'!C21=0,\"\",'Conventional System with PV'!C21)","v":"<Pump>"},{"$f":"+IFERROR(IF(VLOOKUP('Calcolo c'!$B11,Library!$B$2:$H$57,2,FALSE)=0,\"\",VLOOKUP('Calcolo c'!$B11,Library!$B$2:$H$57,2,FALSE)),\"\")","v":""},{"$f":"+IFERROR(IF(VLOOKUP('Calcolo c'!$B11,Library!$B$2:$H$57,3,FALSE)=0,\"\",VLOOKUP('Calcolo c'!$B11,Library!$B$2:$H$57,3,FALSE)),\"\")","v":""},{"$f":"+IFERROR(IF(VLOOKUP('Calcolo c'!$B11,Library!$B$2:$H$57,5,FALSE)=0,\"\",VLOOKUP('Calcolo c'!$B11,Library!$B$2:$H$57,5,FALSE)),\"\")","v":""},{"$f":"+IFERROR(IF(VLOOKUP('Calcolo c'!$B11,Library!$B$2:$H$57,6,FALSE)=0,\"\",VLOOKUP('Calcolo c'!$B11,Library!$B$2:$H$57,6,FALSE)),\"\")","v":""},{"$f":"+IF(H11=\"\",\"\",'Conventional System with PV'!C21)","v":""},{"$f":"+IFERROR(C11*'Conventional System with PV'!$F21*('Conventional System with PV'!$H21+1),\"\")","v":""},null,{"$f":"+IFERROR(D11*'Conventional System with PV'!$F21*('Conventional System with PV'!$H21+1),\"\")","v":""},{"$f":"+IFERROR(E11*'Conventional System with PV'!$F21*('Conventional System with PV'!$H21+1),\"\")","v":""},null,{"$f":"+IFERROR(F11*'Conventional System with PV'!$F21*('Conventional System with PV'!$H21+1),\"\")","v":""}]
[null,{"$f":"+IF('Conventional System with PV'!C22=0,\"\",'Conventional System with PV'!C22)","v":""},{"$f":"+IFERROR(IF(VLOOKUP('Calcolo c'!$B12,Library!$B$2:$H$57,2,FALSE)=0,\"\",VLOOKUP('Calcolo c'!$B12,Library!$B$2:$H$57,2,FALSE)),\"\")","v":""},{"$f":"+IFERROR(IF(VLOOKUP('Calcolo c'!$B12,Library!$B$2:$H$57,3,FALSE)=0,\"\",VLOOKUP('Calcolo c'!$B12,Library!$B$2:$H$57,3,FALSE)),\"\")","v":""},{"$f":"+IFERROR(IF(VLOOKUP('Calcolo c'!$B12,Library!$B$2:$H$57,5,FALSE)=0,\"\",VLOOKUP('Calcolo c'!$B12,Library!$B$2:$H$57,5,FALSE)),\"\")","v":""},{"$f":"+IFERROR(IF(VLOOKUP('Calcolo c'!$B12,Library!$B$2:$H$57,6,FALSE)=0,\"\",VLOOKUP('Calcolo c'!$B12,Library!$B$2:$H$57,6,FALSE)),\"\")","v":""},{"$f":"+IF(H12=\"\",\"\",'Conventional System with PV'!C22)","v":""},{"$f":"+IFERROR(C12*'Conventional System with PV'!$F22*('Conventional System with PV'!$H22+1),\"\")","v":""},null,{"$f":"+IFERROR(D12*'Conventional System with PV'!$F22*('Conventional System with PV'!$H22+1),\"\")","v":""},{"$f":"+IFERROR(E12*'Conventional System with PV'!$F22*('Conventional System with PV'!$H22+1),\"\")","v":""},null,{"$f":"+IFERROR(F12*'Conventional System with PV'!$F22*('Conventional System with PV'!$H22+1),\"\")","v":""}]
[null,{"$f":"+IF('Conventional System with PV'!C23=0,\"\",'Conventional System with PV'!C23)","v":""},{"$f":"+IFERROR(IF(VLOOKUP('Calcolo c'!$B13,Library!$B$2:$H$57,2,FALSE)=0,\"\",VLOOKUP('Calcolo c'!$B13,Library!$B$2:$H$57,2,FALSE)),\"\")","v":""},{"$f":"+IFERROR(IF(VLOOKUP('Calcolo c'!$B13,Library!$B$2:$H$57,3,FALSE)=0,\"\",VLOOKUP('Calcolo c'!$B13,Library!$B$2:$H$57,3,FALSE)),\"\")","v":""},{"$f":"+IFERROR(IF(VLOOKUP('Calcolo c'!$B13,Library!$B$2:$H$57,5,FALSE)=0,\"\",VLOOKUP('Calcolo c'!$B13,Library!$B$2:$H$57,5,FALSE)),\"\")","v":""},{"$f":"+IFERROR(IF(VLOOKUP('Calcolo c'!$B13,Library!$B$2:$H$57,6,FALSE)=0,\"\",VLOOKUP('Calcolo c'!$B13,Library!$B$2:$H$57,6,FALSE)),\"\")","v":""},{"$f":"+IF(H13=\"\",\"\",'Conventional System with PV'!C23)","v":""},{"$f":"+IFERROR(C13*'Conventional System with PV'!$F23*('Conventional System with PV'!$H23+1),\"\")","v":""},null,{"$f":"+IFERROR(D13*'Conventional System with PV'!$F23*('Conventional System with PV'!$H23+1),\"\")","v":""},{"$f":"+IFERROR(E13*'Conventional System with PV'!$F23*('Conventional System with PV'!$H23+1),\"\")","v":""},null,{"$f":"+IFERROR(F13*'Conventional System with PV'!$F23*('Conventional System with PV'!$H23+1),\"\")","v":""}]
[null,{"$f":"+IF('Conventional System with PV'!C24=0,\"\",'Conventional System with PV'!C24)","v":""},{"$f":"+IFERROR(IF(VLOOKUP('Calcolo c'!$B14,Library!$B$2:$H$57,2,FALSE)=0,\"\",VLOOKUP('Calcolo c'!$B14,Library!$B$2:$H$57,2,FALSE)),\"\")","v":""},{"$f":"+IFERROR(IF(VLOOKUP('Calcolo c'!$B14,Library!$B$2:$H$57,3,FALSE)=0,\"\",VLOOKUP('Calcolo c'!$B14,Library!$B$2:$H$57,3,FALSE)),\"\")","v":""},{"$f":"+IFERROR(IF(VLOOKUP('Calcolo c'!$B14,Library!$B$2:$H$57,5,FALSE)=0,\"\",VLOOKUP('Calcolo c'!$B14,Library!$B$2:$H$57,5,FALSE)),\"\")","v":""},{"$f":"+IFERROR(IF(VLOOKUP('Calcolo c'!$B14,Library!$B$2:$H$57,6,FALSE)=0,\"\",VLOOKUP('Calcolo c'!$B14,Library!$B$2:$H$57,6,FALSE)),\"\")","v":""},{"$f":"+IF(H14=\"\",\"\",'Conventional System with PV'!C24)","v":""},{"$f":"+IFERROR(C14*'Conventional System with PV'!$F$13,\"\")","v":""},null,{"$f":"+IFERROR(D14*'Conventional System with PV'!$F$13,\"\")","v":""},{"$f":"+IFERROR(E14*'Conventional System with PV'!$F$13,\"\")","v":""},null,{"$f":"+IFERROR(F14*'Conventional System with PV'!$F$13,\"\")","v":""}]
[null,{"$f":"+IF('Conventional System with PV'!C25=0,\"\",'Conventional System with PV'!C25)","v":""},{"$f":"+IFERROR(IF(VLOOKUP('Calcolo c'!$B15,Library!$B$2:$H$57,2,FALSE)=0,\"\",VLOOKUP('Calcolo c'!$B15,Library!$B$2:$H$57,2,FALSE)),\"\")","v":""},{"$f":"+IFERROR(IF(VLOOKUP('Calcolo c'!$B15,Library!$B$2:$H$57,3,FALSE)=0,\"\",VLOOKUP('Calcolo c'!$B15,Library!$B$2:$H$57,3,FALSE)),\"\")","v":""},{"$f":"+IFERROR(IF(VLOOKUP('Calcolo c'!$B15,Library!$B$2:$H$57,5,FALSE)=0,\"\",VLOOKUP('Calcolo c'!$B15,Library!$B$2:$H$57,5,FALSE)),\"\")","v":""},{"$f":"+IFERROR(IF(VLOOKUP('Calcolo c'!$B15,Library!$B$2:$H$57,6,FALSE)=0,\"\",VLOOKUP('Calcolo c'!$B15,Library!$B$2:$H$57,6,FALSE)),\"\")","v":""},{"$f":"+IF(H15=\"\",\"\",'Conventional System with PV'!C25)","v":""},{"$f":"+IFERROR(C15*'Conventional System with PV'!$F$13,\"\")","v":""},null,{"$f":"+IFERROR(D15*'Conventional System with PV'!$F$13,\"\")","v":""},{"$f":"+IFERROR(E15*'Conventional System with PV'!$F$13,\"\")","v":""},null,{"$f":"+IFERROR(F15*'Conventional System with PV'!$F$13,\"\")","v":""}]
[null,{"$f":"+IF('Conventional System with PV'!C26=0,\"\",'Conventional System with PV'!C26)","v":""},{"$f":"+IFERROR(IF(VLOOKUP('Calcolo c'!$B16,Library!$B$2:$H$57,2,FALSE)=0,\"\",VLOOKUP('Calcolo c'!$B16,Library!$B$2:$H$57,2,FALSE)),\"\")","v":""},{"$f":"+IFERROR(IF(VLOOKUP('Calcolo c'!$B16,Library!$B$2:$H$57,3,FALSE)=0,\"\",VLOOKUP('Calcolo c'!$B16,Library!$B$2:$H$57,3,FALSE)),\"\")","v":""},{"$f":"+IFERROR(IF(VLOOKUP('Calcolo c'!$B16,Library!$B$2:$H$57,5,FALSE)=0,\"\",VLOOKUP('Calcolo c'!$B16,Library!$B$2:$H$57,5,FALSE)),\"\")","v":""},{"$f":"+IFERROR(IF(VLOOKUP('Calcolo c'!$B16,Library!$B$2:$H$57,6,FALSE)=0,\"\",VLOOKUP('Calcolo c'!$B16,Library!$B$2:$H$57,6,FALSE)),\"\")","v":""},{"$f":"+IF(H16=\"\",\"\",'Conventional System with PV'!C26)","v":""},{"$f":"+IFERROR(C16*'Conventional System with PV'!$F$13,\"\")","v":""},null,{"$f":"+IFERROR(D16*'Conventional System with PV'!$F$13,\"\")","v":""},{"$f":"+IFERROR(E16*'Conventional System with PV'!$F$13,\"\")","v":""},null,{"$f":"+IFERROR(F16*'Conventional System with PV'!$F$13,\"\")","v":""}]
[null,{"$f":"+IF('Conventional System with PV'!C27=0,\"\",'Conventional System with PV'!C27)","v":""},{"$f":"+IFERROR(IF(VLOOKUP('Calcolo c'!$B17,Library!$B$2:$H$57,2,FALSE)=0,\"\",VLOOKUP('Calcolo c'!$B17,Library!$B$2:$H$57,2,FALSE)),\"\")","v":""},{"$f":"+IFERROR(IF(VLOOKUP('Calcolo c'!$B17,Library!$B$2:$H$57,3,FALSE)=0,\"\",VLOOKUP('Calcolo c'!$B17,Library!$B$2:$H$57,3,FALSE)),\"\")","v":""},{"$f":"+IFERROR(IF(VLOOKUP('Calcolo c'!$B17,Library!$B$2:$H$57,5,FALSE)=0,\"\",VLOOKUP('Calcolo c'!$B17,Library!$B$2:$H$57,5,FALSE)),\"\")","v":""},{"$f":"+IFERROR(IF(VLOOKUP('Calcolo c'!$B17,Library!$B$2:$H$57,6,FALSE)=0,\"\",VLOOKUP('Calcolo c'!$B17,Library!$B$2:$H$57,6,FALSE)),\"\")","v":""},{"$f":"+IF(H17=\"\",\"\",'Conventional System with PV'!C27)","v":""},{"$f":"+IFERROR(C17*'Conventional System with PV'!$F$13,\"\")","v":""},null,{"$f":"+IFERROR(D17*'Conventional System with PV'!$F$13,\"\")","v":""},{"$f":"+IFERROR(E17*'Conventional System with PV'!$F$13,\"\")","v":""},null,{"$f":"+IFERROR(F17*'Conventional System with PV'!$F$13,\"\")","v":""}]
[null,{"$f":"+IF('Conventional System with PV'!C28=0,\"\",'Conventional System with PV'!C28)","v":""},{"$f":"+IFERROR(IF(VLOOKUP('Calcolo c'!$B18,Library!$B$2:$H$57,2,FALSE)=0,\"\",VLOOKUP('Calcolo c'!$B18,Library!$B$2:$H$57,2,FALSE)),\"\")","v":""},{"$f":"+IFERROR(IF(VLOOKUP('Calcolo c'!$B18,Library!$B$2:$H$57,3,FALSE)=0,\"\",VLOOKUP('Calcolo c'!$B18,Library!$B$2:$H$57,3,FALSE)),\"\")","v":""},{"$f":"+IFERROR(IF(VLOOKUP('Calcolo c'!$B18,Library!$B$2:$H$57,5,FALSE)=0,\"\",VLOOKUP('Calcolo c'!$B18,Library!$B$2:$H$57,5,FALSE)),\"\")","v":""},{"$f":"+IFERROR(IF(VLOOKUP('Calcolo c'!$B18,Library!$B$2:$H$57,6,FALSE)=0,\"\",VLOOKUP('Calcolo c'!$B18,Library!$B$2:$H$57,6,FALSE)),\"\")","v":""},{"$f":"+IF(H18=\"\",\"\",'Conventional System with PV'!C28)","v":""},{"$f":"+IFERROR(C18*'Conventional System with PV'!$F$13,\"\")","v":""},null,{"$f":"+IFERROR(D18*'Conventional System with PV'!$F$13,\"\")","v":""},{"$f":"+IFERROR(E18*'Conventional System with PV'!$F$13,\"\")","v":""},null,{"$f":"+IFERROR(F18*'Conventional System with PV'!$F$13,\"\")","v":""}]
[null,{"$f":"+IF('Conventional System with PV'!C29=0,\"\",'Conventional System with PV'!C29)","v":""},{"$f":"+IFERROR(IF(VLOOKUP('Calcolo c'!$B19,Library!$B$2:$H$57,2,FALSE)=0,\"\",VLOOKUP('Calcolo c'!$B19,Library!$B$2:$H$57,2,FALSE)),\"\")","v":""},{"$f":"+IFERROR(IF(VLOOKUP('Calcolo c'!$B19,Library!$B$2:$H$57,3,FALSE)=0,\"\",VLOOKUP('Calcolo c'!$B19,Library!$B$2:$H$57,3,FALSE)),\"\")","v":""},{"$f":"+IFERROR(IF(VLOOKUP('Calcolo c'!$B19,Library!$B$2:$H$57,5,FALSE)=0,\"\",VLOOKUP('Calcolo c'!$B19,Library!$B$2:$H$57,5,FALSE)),\"\")","v":""},{"$f":"+IFERROR(IF(VLOOKUP('Calcolo c'!$B19,Library!$B$2:$H$57,6,FALSE)=0,\"\",VLOOKUP('Calcolo c'!$B19,Library!$B$2:$H$57,6,FALSE)),\"\")","v":""},{"$f":"+IF(H19=\"\",\"\",'Conventional System with PV'!C29)","v":""},{"$f":"+IFERROR(C19*'Conventional System with PV'!$F$13,\"\")","v":""},null,{"$f":"+IFERROR(D19*'Conventional System with PV'!$F$13,\"\")","v":""},{"$f":"+IFERROR(E19*'Conventional System with PV'!$F$13,\"\")","v":""},null,{"$f":"+IFERROR(F19*'Conventional System with PV'!$F$13,\"\")","v":""}]
[null,{"$f":"+'Conventional System with PV'!C30","v":"ENERGY SOURCES"},"Global Energy Requirement (Ger)",null,"Global Warming Potential (Gwp)","numbers years",null,{"$f":"+IFERROR(C20*'Conventional System with PV'!$F$13,\"\")","v":""},null,null,{"$f":"+IFERROR(E20*'Conventional System with PV'!$F$13,\"\")","v":""},null,{"$f":"+IFERROR(F20*'Conventional System with PV'!$F$13,\"\")","v":""}]
[null,null,{"$f":"+IFERROR(IF(VLOOKUP('Calcolo c'!$B21,Library!$B$2:$H$57,2,FALSE)=0,\"\",VLOOKUP('Calcolo c'!$B21,Library!$B$2:$H$57,2,FALSE)),\"\")","v":""},{"$f":"+IFERROR(IF(VLOOKUP('Calcolo c'!$B21,Library!$B$2:$H$57,3,FALSE)=0,\"\",VLOOKUP('Calcolo c'!$B21,Library!$B$2:$H$57,3,FALSE)),\"\")","v":""},{"$f":"+IFERROR(IF(VLOOKUP('Calcolo c'!$B21,Library!$B$2:$H$57,5,FALSE)=0,\"\",VLOOKUP('Calcolo c'!$B21,Library!$B$2:$H$57,5,FALSE)),\"\")","v":""},{"$f":"+'Conventional System with PV'!F37","v":0},{"$f":"+IF(H21=\"\",\"\",'Conventional System with PV'!C31)","v":""},{"$f":"+IFERROR(C21*'Conventional System with PV'!$F$13,\"\")","v":""},null,{"$f":"+IFERROR(D21*'Conventional System with PV'!$F$13,\"\")","v":""},{"$f":"+IFERROR(E21*'Conventional System with PV'!$F$13,\"\")","v":""},null,{"$f":"+IFERROR(#REF!*'Conventional System with PV'!$F$13,\"\")","v":""},null,{"$f":"+PROPER(A19)","v":""},{"$f":"+PROPER(B19)","v":""}]
[null,{"$f":"+'Conventional System with PV'!C32","v":"<Electricity>"},{"$f":"+IFERROR(IF(VLOOKUP('Calcolo c'!$B22,Library!$B$58:$H$118,2,FALSE)=0,\"\",VLOOKUP('Calcolo c'!$B22,Library!$B$58:$H$118,2,FALSE)),\"\")","v":""},null,{"$f":"+IFERROR(IF(VLOOKUP('Calcolo c'!$B22,Library!$B$58:$H$118,5,FALSE)=0,\"\",VLOOKUP('Calcolo c'!$B22,Library!$B$58:$H$118,5,FALSE)),\"\")","v":""},null,{"$f":"+IF(I22=\"\",\"\",'Conventional System with PV'!C32)","v":""},null,{"$f":"+IFERROR(C22*'Conventional System with PV'!$F$32*'Conventional System with PV'!$F$37,\"\")","v":""},null,null,{"$f":"+IFERROR(E22*'Conventional System with PV'!$F$32*'Conventional System with PV'!$F$37,\"\")","v":""}]
[null,{"$f":"+'Conventional System with PV'!C33","v":"<Natural gas>"},{"$f":"+IFERROR(IF(VLOOKUP('Calcolo c'!$B23,Library!$B$58:$H$118,2,FALSE)=0,\"\",VLOOKUP('Calcolo c'!$B23,Library!$B$58:$H$118,2,FALSE)),\"\")","v":""},null,{"$f":"+IFERROR(IF(VLOOKUP('Calcolo c'!$B23,Library!$B$58:$H$118,5,FALSE)=0,\"\",VLOOKUP('Calcolo c'!$B23,Library!$B$58:$H$118,5,FALSE)),\"\")","v":""},null,{"$f":"+IF(I23=\"\",\"\",'Conventional System with PV'!C33)","v":""},null,{"$f":"+IFERROR(C23*'Conventional System with PV'!$F$33*'Conventional System with PV'!$F$37,\"\")","v":""},null,null,{"$f":"+IFERROR(E23*'Conventional System with PV'!$F$33*'Conventional System with PV'!$F$37,\"\")","v":""}]
[null,{"$f":"+'Conventional System with PV'!C34","v":0},{"$f":"+IFERROR(IF(VLOOKUP('Calcolo c'!$B24,Library!$B$2:$H$57,2,FALSE)=0,\"\",VLOOKUP('Calcolo c'!$B24,Library!$B$2:$H$57,2,FALSE)),\"\")","v":""},null,{"$f":"+IFERROR(IF(VLOOKUP('Calcolo c'!$B24,Library!$B$2:$H$57,5,FALSE)=0,\"\",VLOOKUP('Calcolo c'!$B24,Library!$B$2:$H$57,5,FALSE)),\"\")","v":""}]

{"sheet":"Calcolo d","index":11,"n_rows":24,"n_cols":18,"rows_kept":24,"cut":false,"hidden":true,"merged":[]}
[null,{"$f":"+'Conventional System '!C11","v":"COMPONENTS OF THE CONVENTIONAL SYSTEM "},"Global Energy Requirement (Ger)",null,"Global Warming Potential (Gwp)",null,null,"Calcolo xxx",null,"tabella1",null,null,null,null,null,"Tabella 2"]
[null,{"$f":"+'Conventional System '!C12","v":"Category"},"Manufacturing Step","End-Of-Life Step","Manufacturing Step","End-Of-Life Step","","Manufacturing Step","Use phase","End-Of-Life Step","Manufacturing Step","Use phase","End-Of-Life Step",null,null,"Type","Global Energy Requirement (Ger)","Global Warming Potential (Gwp)"]
[null,{"$f":"+IF('Conventional System '!C13=0,\"\",'Conventional System '!C13)","v":"<Chiller (conventional)>"},{"$f":"+IFERROR(IF(VLOOKUP('Calcolo d'!$B3,Library!$B$2:$H$57,2,FALSE)=0,\"\",VLOOKUP('Calcolo d'!$B3,Library!$B$2:$H$57,2,FALSE)),\"\")","v":""},{"$f":"+IFERROR(IF(VLOOKUP('Calcolo d'!$B3,Library!$B$2:$H$57,3,FALSE)=0,\"\",VLOOKUP('Calcolo d'!$B3,Library!$B$2:$H$57,3,FALSE)),\"\")","v":""},{"$f":"+IFERROR(IF(VLOOKUP('Calcolo d'!$B3,Library!$B$2:$H$57,5,FALSE)=0,\"\",VLOOKUP('Calcolo d'!$B3,Library!$B$2:$H$57,5,FALSE)),\"\")","v":""},{"$f":"+IFERROR(IF(VLOOKUP('Calcolo d'!$B3,Library!$B$2:$H$57,6,FALSE)=0,\"\",VLOOKUP('Calcolo d'!$B3,Library!$B$2:$H$57,6,FALSE)),\"\")","v":""},{"$f":"+IF(H3=\"\",\"\",'Conventional System '!C13)","v":""},{"$f":"+IFERROR(C3*'Conventional System '!$F13*('Conventional System '!$H13+1),\"\")","v":""},null,{"$f":"+IFERROR(D3*'Conventional System '!$F13*('Conventional System '!$H13+1),\"\")","v":""},{"$f":"+IFERROR(E3*'Conventional System '!$F13*('Conventional System '!$H13+1),\"\")","v":""},null,{"$f":"+IFERROR(F3*'Conventional System '!$F13*('Conventional System '!$H13+1),\"\")","v":""},null,null,{"$f":"+PROPER(B1)","v":"Components Of The Conventional System "},{"$f":"+SUM(H3:J19)","v":0},{"$f":"+SUM(K3:M19)","v":0}]
[null,{"$f":"+IF('Conventional System '!C14=0,\"\",'Conventional System '!C14)","v":"<Gas boiler >"},{"$f":"+IFERROR(IF(VLOOKUP('Calcolo d'!$B4,Library!$B$2:$H$57,2,FALSE)=0,\"\",VLOOKUP('Calcolo d'!$B4,Library!$B$2:$H$57,2,FALSE)),\"\")","v":""},{"$f":"+IFERROR(IF(VLOOKUP('Calcolo d'!$B4,Library!$B$2:$H$57,3,FALSE)=0,\"\",VLOOKUP('Calcolo d'!$B4,Library!$B$2:$H$57,3,FALSE)),\"\")","v":""},{"$f":"+IFERROR(IF(VLOOKUP('Calcolo d'!$B4,Library!$B$2:$H$57,5,FALSE)=0,\"\",VLOOKUP('Calcolo d'!$B4,Library!$B$2:$H$57,5,FALSE)),\"\")","v":""},{"$f":"+IFERROR(IF(VLOOKUP('Calcolo d'!$B4,Library!$B$2:$H$57,6,FALSE)=0,\"\",VLOOKUP('Calcolo d'!$B4,Library!$B$2:$H$57,6,FALSE)),\"\")","v":""},{"$f":"+IF(H4=\"\",\"\",'Conventional System '!C14)","v":""},{"$f":"+IFERROR(C4*'Conventional System '!$F14*('Conventional System '!$H14+1),\"\")","v":""},null,{"$f":"+IFERROR(D4*'Conventional System '!$F14*('Conventional System '!$H14+1),\"\")","v":""},{"$f":"+IFERROR(E4*'Conventional System '!$F14*('Conventional System '!$H14+1),\"\")","v":""},null,{"$f":"+IFERROR(F4*'Conventional System '!$F14*('Conventional System '!$H14+1),\"\")","v":""},null,null,{"$f":"+CONCATENATE(PROPER(B20),\" \",\"(\",'Calcolo d'!F21,\" years)\")","v":"Energy Sources (0 years)"},{"$f":"+SUM(I22:I23)","v":0},{"$f":"+SUM(L22:L23)","v":0}]
[null,{"$f":"+IF('Conventional System '!C15=0,\"\",'Conventional System '!C15)","v":"<Heat-pump>"},{"$f":"+IFERROR(IF(VLOOKUP('Calcolo d'!$B5,Library!$B$2:$H$57,2,FALSE)=0,\"\",VLOOKUP('Calcolo d'!$B5,Library!$B$2:$H$57,2,FALSE)),\"\")","v":""},{"$f":"+IFERROR(IF(VLOOKUP('Calcolo d'!$B5,Library!$B$2:$H$57,3,FALSE)=0,\"\",VLOOKUP('Calcolo d'!$B5,Library!$B$2:$H$57,3,FALSE)),\"\")","v":""},{"$f":"+IFERROR(IF(VLOOKUP('Calcolo d'!$B5,Library!$B$2:$H$57,5,FALSE)=0,\"\",VLOOKUP('Calcolo d'!$B5,Library!$B$2:$H$57,5,FALSE)),\"\")","v":""},{"$f":"+IFERROR(IF(VLOOKUP('Calcolo d'!$B5,Library!$B$2:$H$57,6,FALSE)=0,\"\",VLOOKUP('Calcolo d'!$B5,Library!$B$2:$H$57,6,FALSE)),\"\")","v":""},{"$f":"+IF(H5=\"\",\"\",'Conventional System '!C15)","v":""},{"$f":"+IFERROR(C5*'Conventional System '!$F15*('Conventional System '!$H15+1),\"\")","v":""},null,{"$f":"+IFERROR(D5*'Conventional System '!$F15*('Conventional System '!$H15+1),\"\")","v":""},{"$f":"+IFERROR(E5*'Conventional System '!$F15*('Conventional System '!$H15+1),\"\")","v":""},null,{"$f":"+IFERROR(F5*'Conventional System '!$F15*('Conventional System '!$H15+1),\"\")","v":""}]
[null,{"$f":"+IF('Conventional System '!C16=0,\"\",'Conventional System '!C16)","v":"<Pipes>"},{"$f":"+IFERROR(IF(VLOOKUP('Calcolo d'!$B6,Library!$B$2:$H$57,2,FALSE)=0,\"\",VLOOKUP('Calcolo d'!$B6,Library!$B$2:$H$57,2,FALSE)),\"\")","v":""},{"$f":"+IFERROR(IF(VLOOKUP('Calcolo d'!$B6,Library!$B$2:$H$57,3,FALSE)=0,\"\",VLOOKUP('Calcolo d'!$B6,Library!$B$2:$H$57,3,FALSE)),\"\")","v":""},{"$f":"+IFERROR(IF(VLOOKUP('Calcolo d'!$B6,Library!$B$2:$H$57,5,FALSE)=0,\"\",VLOOKUP('Calcolo d'!$B6,Library!$B$2:$H$57,5,FALSE)),\"\")","v":""},{"$f":"+IFERROR(IF(VLOOKUP('Calcolo d'!$B6,Library!$B$2:$H$57,6,FALSE)=0,\"\",VLOOKUP('Calcolo d'!$B6,Library!$B$2:$H$57,6,FALSE)),\"\")","v":""},{"$f":"+IF(H6=\"\",\"\",'Conventional System '!C16)","v":""},{"$f":"+IFERROR(C6*'Conventional System '!$F16*('Conventional System '!$H16+1),\"\")","v":""},null,{"$f":"+IFERROR(D6*'Conventional System '!$F16*('Conventional System '!$H16+1),\"\")","v":""},{"$f":"+IFERROR(E6*'Conventional System '!$F16*('Conventional System '!$H16+1),\"\")","v":""},null,{"$f":"+IFERROR(F6*'Conventional System '!$F16*('Conventional System '!$H16+1),\"\")","v":""}]
[null,{"$f":"+IF('Conventional System '!C17=0,\"\",'Conventional System '!C17)","v":"<Pump>"},{"$f":"+IFERROR(IF(VLOOKUP('Calcolo d'!$B7,Library!$B$2:$H$57,2,FALSE)=0,\"\",VLOOKUP('Calcolo d'!$B7,Library!$B$2:$H$57,2,FALSE)),\"\")","v":""},{"$f":"+IFERROR(IF(VLOOKUP('Calcolo d'!$B7,Library!$B$2:$H$57,3,FALSE)=0,\"\",VLOOKUP('Calcolo d'!$B7,Library!$B$2:$H$57,3,FALSE)),\"\")","v":""},{"$f":"+IFERROR(IF(VLOOKUP('Calcolo d'!$B7,Library!$B$2:$H$57,5,FALSE)=0,\"\",VLOOKUP('Calcolo d'!$B7,Library!$B$2:$H$57,5,FALSE)),\"\")","v":""},{"$f":"+IFERROR(IF(VLOOKUP('Calcolo d'!$B7,Library!$B$2:$H$57,6,FALSE)=0,\"\",VLOOKUP('Calcolo d'!$B7,Library!$B$2:$H$57,6,FALSE)),\"\")","v":""},{"$f":"+IF(H7=\"\",\"\",'Conventional System '!C17)","v":""},{"$f":"+IFERROR(C7*'Conventional System '!$F17*('Conventional System '!$H17+1),\"\")","v":""},null,{"$f":"+IFERROR(D7*'Conventional System '!$F17*('Conventional System '!$H17+1),\"\")","v":""},{"$f":"+IFERROR(E7*'Conventional System '!$F17*('Conventional System '!$H17+1),\"\")","v":""},null,{"$f":"+IFERROR(F7*'Conventional System '!$F17*('Conventional System '!$H17+1),\"\")","v":""}]
[null,{"$f":"+IF('Conventional System '!C18=0,\"\",'Conventional System '!C18)","v":""},{"$f":"+IFERROR(IF(VLOOKUP('Calcolo d'!$B8,Library!$B$2:$H$57,2,FALSE)=0,\"\",VLOOKUP('Calcolo d'!$B8,Library!$B$2:$H$57,2,FALSE)),\"\")","v":""},{"$f":"+IFERROR(IF(VLOOKUP('Calcolo d'!$B8,Library!$B$2:$H$57,3,FALSE)=0,\"\",VLOOKUP('Calcolo d'!$B8,Library!$B$2:$H$57,3,FALSE)),\"\")","v":""},{"$f":"+IFERROR(IF(VLOOKUP('Calcolo d'!$B8,Library!$B$2:$H$57,5,FALSE)=0,\"\",VLOOKUP('Calcolo d'!$B8,Library!$B$2:$H$57,5,FALSE)),\"\")","v":""},{"$f":"+IFERROR(IF(VLOOKUP('Calcolo d'!$B8,Library!$B$2:$H$57,6,FALSE)=0,\"\",VLOOKUP('Calcolo d'!$B8,Library!$B$2:$H$57,6,FALSE)),\"\")","v":""},{"$f":"+IF(H8=\"\",\"\",'Conventional System '!C18)","v":""},{"$f":"+IFERROR(C8*'Conventional System '!$F18*('Conventional System '!$H18+1),\"\")","v":""},null,{"$f":"+IFERROR(D8*'Conventional System '!$F18*('Conventional System '!$H18+1),\"\")","v":""},{"$f":"+IFERROR(E8*'Conventional System '!$F18*('Conventional System '!$H18+1),\"\")","v":""},null,{"$f":"+IFERROR(F8*'Conventional System '!$F18*('Conventional System '!$H18+1),\"\")","v":""}]
[null,{"$f":"+IF('Conventional System '!C19=0,\"\",'Conventional System '!C19)","v":""},{"$f":"+IFERROR(IF(VLOOKUP('Calcolo d'!$B9,Library!$B$2:$H$57,2,FALSE)=0,\"\",VLOOKUP('Calcolo d'!$B9,Library!$B$2:$H$57,2,FALSE)),\"\")","v":""},{"$f":"+IFERROR(IF(VLOOKUP('Calcolo d'!$B9,Library!$B$2:$H$57,3,FALSE)=0,\"\",VLOOKUP('Calcolo d'!$B9,Library!$B$2:$H$57,3,FALSE)),\"\")","v":""},{"$f":"+IFERROR(IF(VLOOKUP('Calcolo d'!$B9,Library!$B$2:$H$57,5,FALSE)=0,\"\",VLOOKUP('Calcolo d'!$B9,Library!$B$2:$H$57,5,FALSE)),\"\")","v":""},{"$f":"+IFERROR(IF(VLOOKUP('Calcolo d'!$B9,Library!$B$2:$H$57,6,FALSE)=0,\"\",VLOOKUP('Calcolo d'!$B9,Library!$B$2:$H$57,6,FALSE)),\"\")","v":""},{"$f":"+IF(H9=\"\",\"\",'Conventional System '!C19)","v":""},{"$f":"+IFERROR(C9*'Conventional System '!$F19*('Conventional System '!$H19+1),\"\")","v":""},null,{"$f":"+IFERROR(D9*'Conventional System '!$F$13,\"\")","v":""},{"$f":"+IFERROR(E9*'Conventional System '!$F19*('Conventional System '!$H19+1),\"\")","v":""},null,{"$f":"+IFERROR(F9*'Conventional System '!$F19*('Conventional System '!$H19+1),\"\")","v":""}]
[null,{"$f":"+IF('Conventional System '!C20=0,\"\",'Conventional System '!C20)","v":""},{"$f":"+IFERROR(IF(VLOOKUP('Calcolo d'!$B10,Library!$B$2:$H$57,2,FALSE)=0,\"\",VLOOKUP('Calcolo d'!$B10,Library!$B$2:$H$57,2,FALSE)),\"\")","v":""},{"$f":"+IFERROR(IF(VLOOKUP('Calcolo d'!$B10,Library!$B$2:$H$57,3,FALSE)=0,\"\",VLOOKUP('Calcolo d'!$B10,Library!$B$2:$H$57,3,FALSE)),\"\")","v":""},{"$f":"+IFERROR(IF(VLOOKUP('Calcolo d'!$B10,Library!$B$2:$H$57,5,FALSE)=0,\"\",VLOOKUP('Calcolo d'!$B10,Library!$B$2:$H$57,5,FALSE)),\"\")","v":""},{"$f":"+IFERROR(IF(VLOOKUP('Calcolo d'!$B10,Library!$B$2:$H$57,6,FALSE)=0,\"\",VLOOKUP('Calcolo d'!$B10,Library!$B$2:$H$57,6,FALSE)),\"\")","v":""},{"$f":"+IF(H10=\"\",\"\",'Conventional System '!C20)","v":""},{"$f":"+IFERROR(C10*'Conventional System '!$F20('Conventional System '!$H20+1),\"\")","v":""},null,{"$f":"+IFERROR(D10*'Conventional System '!$F$13,\"\")","v":""},{"$f":"+IFERROR(E10*'Conventional System '!$F$13,\"\")","v":""},null,{"$f":"+IFERROR(F10*'Conventional System '!$F20*('Conventional System '!$H20+1),\"\")","v":""}]
[null,{"$f":"+IF('Conventional System '!C21=0,\"\",'Conventional System '!C21)","v":""},"COMPONENTS OF THE CONVENTIONAL SYSTEM WITH PV",null,{"$f":"+IFERROR(IF(VLOOKUP('Calcolo d'!$B11,Library!$B$2:$H$57,5,FALSE)=0,\"\",VLOOKUP('Calcolo d'!$B11,Library!$B$2:$H$57,5,FALSE)),\"\")","v":""},{"$f":"+IFERROR(IF(VLOOKUP('Calcolo d'!$B11,Library!$B$2:$H$57,6,FALSE)=0,\"\",VLOOKUP('Calcolo d'!$B11,Library!$B$2:$H$57,6,FALSE)),\"\")","v":""},{"$f":"+IF(H11=\"\",\"\",'Conventional System '!C21)","v":""},{"$f":"+IFERROR(C11*'Conventional System '!$F$13,\"\")","v":""},null,{"$f":"+IFERROR(D11*'Conventional System '!$F$13,\"\")","v":0},{"$f":"+IFERROR(E11*'Conventional System '!$F$13,\"\")","v":""},null,{"$f":"+IFERROR(F11*'Conventional System '!$F21*('Conventional System '!$H21+1),\"\")","v":""}]
[null,{"$f":"+IF('Conventional System '!C22=0,\"\",'Conventional System '!C22)","v":""},{"$f":"+IFERROR(IF(VLOOKUP('Calcolo d'!$B12,Library!$B$2:$H$57,2,FALSE)=0,\"\",VLOOKUP('Calcolo d'!$B12,Library!$B$2:$H$57,2,FALSE)),\"\")","v":""},{"$f":"+IFERROR(IF(VLOOKUP('Calcolo d'!$B12,Library!$B$2:$H$57,3,FALSE)=0,\"\",VLOOKUP('Calcolo d'!$B12,Library!$B$2:$H$57,3,FALSE)),\"\")","v":""},{"$f":"+IFERROR(IF(VLOOKUP('Calcolo d'!$B12,Library!$B$2:$H$57,5,FALSE)=0,\"\",VLOOKUP('Calcolo d'!$B12,Library!$B$2:$H$57,5,FALSE)),\"\")","v":""},{"$f":"+IFERROR(IF(VLOOKUP('Calcolo d'!$B12,Library!$B$2:$H$57,6,FALSE)=0,\"\",VLOOKUP('Calcolo d'!$B12,Library!$B$2:$H$57,6,FALSE)),\"\")","v":""},{"$f":"+IF(H12=\"\",\"\",'Conventional System '!C22)","v":""},{"$f":"+IFERROR(C12*'Conventional System '!$F$13,\"\")","v":""},null,{"$f":"+IFERROR(D12*'Conventional System '!$F$13,\"\")","v":""},{"$f":"+IFERROR(E12*'Conventional System '!$F$13,\"\")","v":""},null,{"$f":"+IFERROR(F12*'Conventional System '!$F22*('Conventional System '!$H22+1),\"\")","v":""}]
[null,{"$f":"+IF('Conventional System '!C23=0,\"\",'Conventional System '!C23)","v":""},{"$f":"+IFERROR(IF(VLOOKUP('Calcolo d'!$B13,Library!$B$2:$H$57,2,FALSE)=0,\"\",VLOOKUP('Calcolo d'!$B13,Library!$B$2:$H$57,2,FALSE)),\"\")","v":""},{"$f":"+IFERROR(IF(VLOOKUP('Calcolo d'!$B13,Library!$B$2:$H$57,3,FALSE)=0,\"\",VLOOKUP('Calcolo d'!$B13,Library!$B$2:$H$57,3,FALSE)),\"\")","v":""},{"$f":"+IFERROR(IF(VLOOKUP('Calcolo d'!$B13,Library!$B$2:$H$57,5,FALSE)=0,\"\",VLOOKUP('Calcolo d'!$B13,Library!$B$2:$H$57,5,FALSE)),\"\")","v":""},{"$f":"+IFERROR(IF(VLOOKUP('Calcolo d'!$B13,Library!$B$2:$H$57,6,FALSE)=0,\"\",VLOOKUP('Calcolo d'!$B13,Library!$B$2:$H$57,6,FALSE)),\"\")","v":""},{"$f":"+IF(H13=\"\",\"\",'Conventional System '!C23)","v":""},{"$f":"+IFERROR(C13*'Conventional System '!$F$13,\"\")","v":""},null,{"$f":"+IFERROR(D13*'Conventional System '!$F$13,\"\")","v":""},{"$f":"+IFERROR(E13*'Conventional System '!$F$13,\"\")","v":""},null,{"$f":"+IFERROR(F13*'Conventional System '!$F$13,\"\")","v":""}]
[null,{"$f":"+IF('Conventional System '!C24=0,\"\",'Conventional System '!C24)","v":""},{"$f":"+IFERROR(IF(VLOOKUP('Calcolo d'!$B14,Library!$B$2:$H$57,2,FALSE)=0,\"\",VLOOKUP('Calcolo d'!$B14,Library!$B$2:$H$57,2,FALSE)),\"\")","v":""},{"$f":"+IFERROR(IF(VLOOKUP('Calcolo d'!$B14,Library!$B$2:$H$57,3,FALSE)=0,\"\",VLOOKUP('Calcolo d'!$B14,Library!$B$2:$H$57,3,FALSE)),\"\")","v":""},{"$f":"+IFERROR(IF(VLOOKUP('Calcolo d'!$B14,Library!$B$2:$H$57,5,FALSE)=0,\"\",VLOOKUP('Calcolo d'!$B14,Library!$B$2:$H$57,5,FALSE)),\"\")","v":""},{"$f":"+IFERROR(IF(VLOOKUP('Calcolo d'!$B14,Library!$B$2:$H$57,6,FALSE)=0,\"\",VLOOKUP('Calcolo d'!$B14,Library!$B$2:$H$57,6,FALSE)),\"\")","v":""},{"$f":"+IF(H14=\"\",\"\",'Conventional System '!C24)","v":""},{"$f":"+IFERROR(C14*'Conventional System '!$F$13,\"\")","v":""},null,{"$f":"+IFERROR(D14*'Conventional System '!$F$13,\"\")","v":""},{"$f":"+IFERROR(E14*'Conventional System '!$F$13,\"\")","v":""},null,{"$f":"+IFERROR(F14*'Conventional System '!$F$13,\"\")","v":""}]
[null,{"$f":"+IF('Conventional System '!C25=0,\"\",'Conventional System '!C25)","v":""},{"$f":"+IFERROR(IF(VLOOKUP('Calcolo d'!$B15,Library!$B$2:$H$57,2,FALSE)=0,\"\",VLOOKUP('Calcolo d'!$B15,Library!$B$2:$H$57,2,FALSE)),\"\")","v":""},{"$f":"+IFERROR(IF(VLOOKUP('Calcolo d'!$B15,Library!$B$2:$H$57,3,FALSE)=0,\"\",VLOOKUP('Calcolo d'!$B15,Library!$B$2:$H$57,3,FALSE)),\"\")","v":""},{"$f":"+IFERROR(IF(VLOOKUP('Calcolo d'!$B15,Library!$B$2:$H$57,5,FALSE)=0,\"\",VLOOKUP('Calcolo d'!$B15,Library!$B$2:$H$57,5,FALSE)),\"\")","v":""},{"$f":"+IFERROR(IF(VLOOKUP('Calcolo d'!$B15,Library!$B$2:$H$57,6,FALSE)=0,\"\",VLOOKUP('Calcolo d'!$B15,Library!$B$2:$H$57,6,FALSE)),\"\")","v":""},{"$f":"+IF(H15=\"\",\"\",'Conventional System '!C25)","v":""},{"$f":"+IFERROR(C15*'Conventional System '!$F$13,\"\")","v":""},null,{"$f":"+IFERROR(D15*'Conventional System '!$F$13,\"\")","v":""},{"$f":"+IFERROR(E15*'Conventional System '!$F$13,\"\")","v":""},null,{"$f":"+IFERROR(F15*'Conventional System '!$F$13,\"\")","v":""}]
[null,{"$f":"+IF('Conventional System '!C26=0,\"\",'Conventional System '!C26)","v":""},{"$f":"+IFERROR(IF(VLOOKUP('Calcolo d'!$B16,Library!$B$2:$H$57,2,FALSE)=0,\"\",VLOOKUP('Calcolo d'!$B16,Library!$B$2:$H$57,2,FALSE)),\"\")","v":""},{"$f":"+IFERROR(IF(VLOOKUP('Calcolo d'!$B16,Library!$B$2:$H$57,3,FALSE)=0,\"\",VLOOKUP('Calcolo d'!$B16,Library!$B$2:$H$57,3,FALSE)),\"\")","v":""},{"$f":"+IFERROR(IF(VLOOKUP('Calcolo d'!$B16,Library!$B$2:$H$57,5,FALSE)=0,\"\",VLOOKUP('Calcolo d'!$B16,Library!$B$2:$H$57,5,FALSE)),\"\")","v":""},{"$f":"+IFERROR(IF(VLOOKUP('Calcolo d'!$B16,Library!$B$2:$H$57,6,FALSE)=0,\"\",VLOOKUP('Calcolo d'!$B16,Library!$B$2:$H$57,6,FALSE)),\"\")","v":""},{"$f":"+IF(H16=\"\",\"\",'Conventional System '!C26)","v":""},{"$f":"+IFERROR(C16*'Conventional System '!$F$13,\"\")","v":""},null,{"$f":"+IFERROR(D16*'Conventional System '!$F$13,\"\")","v":""},{"$f":"+IFERROR(E16*'Conventional System '!$F$13,\"\")","v":""},null,{"$f":"+IFERROR(F16*'Conventional System '!$F$13,\"\")","v":""}]
[null,{"$f":"+IF('Conventional System '!C27=0,\"\",'Conventional System '!C27)","v":""},{"$f":"+IFERROR(IF(VLOOKUP('Calcolo d'!$B17,Library!$B$2:$H$57,2,FALSE)=0,\"\",VLOOKUP('Calcolo d'!$B17,Library!$B$2:$H$57,2,FALSE)),\"\")","v":""},{"$f":"+IFERROR(IF(VLOOKUP('Calcolo d'!$B17,Library!$B$2:$H$57,3,FALSE)=0,\"\",VLOOKUP('Calcolo d'!$B17,Library!$B$2:$H$57,3,FALSE)),\"\")","v":""},{"$f":"+IFERROR(IF(VLOOKUP('Calcolo d'!$B17,Library!$B$2:$H$57,5,FALSE)=0,\"\",VLOOKUP('Calcolo d'!$B17,Library!$B$2:$H$57,5,FALSE)),\"\")","v":""},{"$f":"+IFERROR(IF(VLOOKUP('Calcolo d'!$B17,Library!$B$2:$H$57,6,FALSE)=0,\"\",VLOOKUP('Calcolo d'!$B17,Library!$B$2:$H$57,6,FALSE)),\"\")","v":""},{"$f":"+IF(H17=\"\",\"\",'Conventional System '!C27)","v":""},{"$f":"+IFERROR(C17*'Conventional System '!$F$13,\"\")","v":""},null,{"$f":"+IFERROR(D17*'Conventional System '!$F$13,\"\")","v":""},{"$f":"+IFERROR(E17*'Conventional System '!$F$13,\"\")","v":""},null,{"$f":"+IFERROR(F17*'Conventional System '!$F$13,\"\")","v":""}]
[null,{"$f":"+IF('Conventional System '!C28=0,\"\",'Conventional System '!C28)","v":""},{"$f":"+IFERROR(IF(VLOOKUP('Calcolo d'!$B18,Library!$B$2:$H$57,2,FALSE)=0,\"\",VLOOKUP('Calcolo d'!$B18,Library!$B$2:$H$57,2,FALSE)),\"\")","v":""},{"$f":"+IFERROR(IF(VLOOKUP('Calcolo d'!$B18,Library!$B$2:$H$57,3,FALSE)=0,\"\",VLOOKUP('Calcolo d'!$B18,Library!$B$2:$H$57,3,FALSE)),\"\")","v":""},{"$f":"+IFERROR(IF(VLOOKUP('Calcolo d'!$B18,Library!$B$2:$H$57,5,FALSE)=0,\"\",VLOOKUP('Calcolo d'!$B18,Library!$B$2:$H$57,5,FALSE)),\"\")","v":""},{"$f":"+IFERROR(IF(VLOOKUP('Calcolo d'!$B18,Library!$B$2:$H$57,6,FALSE)=0,\"\",VLOOKUP('Calcolo d'!$B18,Library!$B$2:$H$57,6,FALSE)),\"\")","v":""},{"$f":"+IF(H18=\"\",\"\",'Conventional System '!C28)","v":""},{"$f":"+IFERROR(C18*'Conventional System '!$F$13,\"\")","v":""},null,{"$f":"+IFERROR(D18*'Conventional System '!$F$13,\"\")","v":""},{"$f":"+IFERROR(E18*'Conventional System '!$F$13,\"\")","v":""},null,{"$f":"+IFERROR(F18*'Conventional System '!$F$13,\"\")","v":""}]
[null,{"$f":"+IF('Conventional System '!C29=0,\"\",'Conventional System '!C29)","v":""},{"$f":"+IFERROR(IF(VLOOKUP('Calcolo d'!$B19,Library!$B$2:$H$57,2,FALSE)=0,\"\",VLOOKUP('Calcolo d'!$B19,Library!$B$2:$H$57,2,FALSE)),\"\")","v":""},{"$f":"+IFERROR(IF(VLOOKUP('Calcolo d'!$B19,Library!$B$2:$H$57,3,FALSE)=0,\"\",VLOOKUP('Calcolo d'!$B19,Library!$B$2:$H$57,3,FALSE)),\"\")","v":""},{"$f":"+IFERROR(IF(VLOOKUP('Calcolo d'!$B19,Library!$B$2:$H$57,5,FALSE)=0,\"\",VLOOKUP('Calcolo d'!$B19,Library!$B$2:$H$57,5,FALSE)),\"\")","v":""},{"$f":"+IFERROR(IF(VLOOKUP('Calcolo d'!$B19,Library!$B$2:$H$57,6,FALSE)=0,\"\",VLOOKUP('Calcolo d'!$B19,Library!$B$2:$H$57,6,FALSE)),\"\")","v":""},{"$f":"+IF(H19=\"\",\"\",'Conventional System '!C29)","v":""},{"$f":"+IFERROR(C19*'Conventional System '!$F$13,\"\")","v":""},null,{"$f":"+IFERROR(D19*'Conventional System '!$F$13,\"\")","v":""},{"$f":"+IFERROR(E19*'Conventional System '!$F$13,\"\")","v":""},null,{"$f":"+IFERROR(F19*'Conventional System '!$F$13,\"\")","v":""}]
[null,{"$f":"+'Conventional System '!C30","v":"ENERGY SOURCES"},"Global Energy Requirement (Ger)",null,"Global Warming Potential (Gwp)","numbers years",null,{"$f":"+IFERROR(C20*'Conventional System '!$F$13,\"\")","v":""},null,null,{"$f":"+IFERROR(E20*'Conventional System '!$F$13,\"\")","v":""},null,{"$f":"+IFERROR(F20*'Conventional System '!$F$13,\"\")","v":""}]
[null,null,{"$f":"+IFERROR(IF(VLOOKUP('Calcolo d'!$B21,Library!$B$2:$H$57,2,FALSE)=0,\"\",VLOOKUP('Calcolo d'!$B21,Library!$B$2:$H$57,2,FALSE)),\"\")","v":""},{"$f":"+IFERROR(IF(VLOOKUP('Calcolo d'!$B21,Library!$B$2:$H$57,3,FALSE)=0,\"\",VLOOKUP('Calcolo d'!$B21,Library!$B$2:$H$57,3,FALSE)),\"\")","v":""},{"$f":"+IFERROR(IF(VLOOKUP('Calcolo d'!$B21,Library!$B$2:$H$57,5,FALSE)=0,\"\",VLOOKUP('Calcolo d'!$B21,Library!$B$2:$H$57,5,FALSE)),\"\")","v":""},{"$f":"+'Conventional System '!F37","v":0},{"$f":"+IF(H21=\"\",\"\",'Conventional System '!C31)","v":""},{"$f":"+IFERROR(C21*'Conventional System '!$F$13,\"\")","v":""},null,{"$f":"+IFERROR(D21*'Conventional System '!$F$13,\"\")","v":""},{"$f":"+IFERROR(E21*'Conventional System '!$F$13,\"\")","v":""},null,{"$f":"+IFERROR(#REF!*'Conventional System '!$F$13,\"\")","v":""},null,{"$f":"+PROPER(A19)","v":""},{"$f":"+PROPER(B19)","v":""}]
[null,{"$f":"+'Conventional System '!C32","v":"<Electricity>"},{"$f":"+IFERROR(IF(VLOOKUP('Calcolo d'!$B22,Library!$B$58:$H$118,2,FALSE)=0,\"\",VLOOKUP('Calcolo d'!$B22,Library!$B$58:$H$118,2,FALSE)),\"\")","v":""},null,{"$f":"+IFERROR(IF(VLOOKUP('Calcolo d'!$B22,Library!$B$58:$H$118,5,FALSE)=0,\"\",VLOOKUP('Calcolo d'!$B22,Library!$B$58:$H$118,5,FALSE)),\"\")","v":""},null,{"$f":"+IF(I22=\"\",\"\",'Conventional System '!C32)","v":""},null,{"$f":"+IFERROR(C22*'Conventional System '!$F$32*'Conventional System '!$F$37,\"\")","v":""},null,null,{"$f":"+IFERROR(E22*'Conventional System '!$F$32*'Conventional System '!$F$37,\"\")","v":""}]
[null,{"$f":"+'Conventional System '!C33","v":"<Natural gas>"},{"$f":"+IFERROR(IF(VLOOKUP('Calcolo d'!$B23,Library!$B$58:$H$118,2,FALSE)=0,\"\",VLOOKUP('Calcolo d'!$B23,Library!$B$58:$H$118,2,FALSE)),\"\")","v":""},null,{"$f":"+IFERROR(IF(VLOOKUP('Calcolo d'!$B23,Library!$B$58:$H$118,5,FALSE)=0,\"\",VLOOKUP('Calcolo d'!$B23,Library!$B$58:$H$118,5,FALSE)),\"\")","v":""},null,{"$f":"+IF(I23=\"\",\"\",'Conventional System '!C33)","v":""},null,{"$f":"+IFERROR(C23*'Conventional System '!$F$33*'Conventional System '!$F$37,\"\")","v":""},null,null,{"$f":"+IFERROR(E23*'Conventional System '!$F$33*'Conventional System '!$F$37,\"\")","v":""}]
[null,{"$f":"+'Conventional System '!C34","v":0},{"$f":"+IFERROR(IF(VLOOKUP('Calcolo d'!$B24,Library!$B$2:$H$57,2,FALSE)=0,\"\",VLOOKUP('Calcolo d'!$B24,Library!$B$2:$H$57,2,FALSE)),\"\")","v":""},null,{"$f":"+IFERROR(IF(VLOOKUP('Calcolo d'!$B24,Library!$B$2:$H$57,5,FALSE)=0,\"\",VLOOKUP('Calcolo d'!$B24,Library!$B$2:$H$57,5,FALSE)),\"\")","v":""}]

{"sheet":"Impacts_SHC system","index":12,"n_rows":47,"n_cols":28,"rows_kept":47,"cut":false,"hidden":true,"merged":[[27,27,28,28],[13,3,13,6],[13,7,13,10],[104,2,124,10],[38,2,58,10],[60,2,80,10],[82,2,102,10]]}
[]
[]
[]
[]
[]
[]
[]
[]
[]
[]
[]
[null,null,null,null,null,null,null,null,null,null,null,null,null,null,"General Information"]
[]
[null,null,"COMPONENTS OF THE SHC SYSTEM","GLOBAL ENERGY REQUIREMENT (GER) (MJ)",null,null,null,"GLOBAL WARMING POTENTIAL (GWP) (kg CO2eq)"]
[null,null,null,"Manufacturing","Operation","End-of-Life","Total","Manufacturing","Operation","End-of-Life","Total"]
[null,null,{"$f":"+'Calcolo a'!B3","v":"<Ammonia>"},{"$f":"+IF('Calcolo a'!H3=\"\",\"\",'Calcolo a'!H3)","v":""},{"$f":"+IF('Calcolo a'!I3=\"\",\"\",'Calcolo a'!I3)","v":""},{"$f":"+IF('Calcolo a'!J3=\"\",\"\",'Calcolo a'!J3)","v":""},{"$f":"+IF(SUM(D16:F16)=0,\"\",SUM(D16:F16))","v":""},{"$f":"+IF('Calcolo a'!K3=\"\",\"\",'Calcolo a'!K3)","v":""},{"$f":"+IF('Calcolo a'!L3=\"\",\"\",'Calcolo a'!L3)","v":""},{"$f":"+IF('Calcolo a'!M3=\"\",\"\",'Calcolo a'!M3)","v":""},{"$f":"+IF(SUM(H16:J16)=0,\"\",SUM(H16:J16))","v":""}]
[null,null,{"$f":"+'Calcolo a'!B4","v":"<Auxiliary Conventional Chiller>"},{"$f":"+IF('Calcolo a'!H4=\"\",\"\",'Calcolo a'!H4)","v":""},{"$f":"+IF('Calcolo a'!I4=\"\",\"\",'Calcolo a'!I4)","v":""},{"$f":"+IF('Calcolo a'!J4=\"\",\"\",'Calcolo a'!J4)","v":""},{"$f":"+IF(SUM(D17:F17)=0,\"\",SUM(D17:F17))","v":""},{"$f":"+IF('Calcolo a'!K4=\"\",\"\",'Calcolo a'!K4)","v":""},{"$f":"+IF('Calcolo a'!L4=\"\",\"\",'Calcolo a'!L4)","v":""},{"$f":"+IF('Calcolo a'!M4=\"\",\"\",'Calcolo a'!M4)","v":""},{"$f":"+IF(SUM(H17:J17)=0,\"\",SUM(H17:J17))","v":""}]
[null,null,{"$f":"+'Calcolo a'!B5","v":"<Auxiliary Gas Boiler>"},{"$f":"+IF('Calcolo a'!H5=\"\",\"\",'Calcolo a'!H5)","v":""},{"$f":"+IF('Calcolo a'!I5=\"\",\"\",'Calcolo a'!I5)","v":""},{"$f":"+IF('Calcolo a'!J5=\"\",\"\",'Calcolo a'!J5)","v":""},"",{"$f":"+IF('Calcolo a'!K5=\"\",\"\",'Calcolo a'!K5)","v":""},{"$f":"+IF('Calcolo a'!L5=\"\",\"\",'Calcolo a'!L5)","v":""},{"$f":"+IF('Calcolo a'!M5=\"\",\"\",'Calcolo a'!M5)","v":""},""]
[null,null,{"$f":"+'Calcolo a'!B6","v":"<Chiller (ad/ab-sorption)>"},{"$f":"+IF('Calcolo a'!H6=\"\",\"\",'Calcolo a'!H6)","v":""},{"$f":"+IF('Calcolo a'!I6=\"\",\"\",'Calcolo a'!I6)","v":""},{"$f":"+IF('Calcolo a'!J6=\"\",\"\",'Calcolo a'!J6)","v":""},"",{"$f":"+IF('Calcolo a'!K6=\"\",\"\",'Calcolo a'!K6)","v":""},{"$f":"+IF('Calcolo a'!L6=\"\",\"\",'Calcolo a'!L6)","v":""},{"$f":"+IF('Calcolo a'!M6=\"\",\"\",'Calcolo a'!M6)","v":""},""]
[null,null,{"$f":"+'Calcolo a'!B7","v":"<Cooling tower>"},{"$f":"+IF('Calcolo a'!H7=\"\",\"\",'Calcolo a'!H7)","v":""},{"$f":"+IF('Calcolo a'!I7=\"\",\"\",'Calcolo a'!I7)","v":""},{"$f":"+IF('Calcolo a'!J7=\"\",\"\",'Calcolo a'!J7)","v":""},"",{"$f":"+IF('Calcolo a'!K7=\"\",\"\",'Calcolo a'!K7)","v":""},{"$f":"+IF('Calcolo a'!L7=\"\",\"\",'Calcolo a'!L7)","v":""},{"$f":"+IF('Calcolo a'!M7=\"\",\"\",'Calcolo a'!M7)","v":""},""]
[null,null,{"$f":"+'Calcolo a'!B8","v":"<Glycol>"},{"$f":"+IF('Calcolo a'!H8=\"\",\"\",'Calcolo a'!H8)","v":""},{"$f":"+IF('Calcolo a'!I8=\"\",\"\",'Calcolo a'!I8)","v":""},{"$f":"+IF('Calcolo a'!J8=\"\",\"\",'Calcolo a'!J8)","v":""},"",{"$f":"+IF('Calcolo a'!K8=\"\",\"\",'Calcolo a'!K8)","v":""},{"$f":"+IF('Calcolo a'!L8=\"\",\"\",'Calcolo a'!L8)","v":""},{"$f":"+IF('Calcolo a'!M8=\"\",\"\",'Calcolo a'!M8)","v":""},""]
[null,null,{"$f":"+'Calcolo a'!B9","v":"<Heat rejection system>"},{"$f":"+IF('Calcolo a'!H9=\"\",\"\",'Calcolo a'!H9)","v":""},{"$f":"+IF('Calcolo a'!I9=\"\",\"\",'Calcolo a'!I9)","v":""},{"$f":"+IF('Calcolo a'!J9=\"\",\"\",'Calcolo a'!J9)","v":""},"",{"$f":"+IF('Calcolo a'!K9=\"\",\"\",'Calcolo a'!K9)","v":""},{"$f":"+IF('Calcolo a'!L9=\"\",\"\",'Calcolo a'!L9)","v":""},{"$f":"+IF('Calcolo a'!M9=\"\",\"\",'Calcolo a'!M9)","v":""},""]
[null,null,{"$f":"+'Calcolo a'!B10","v":"<Heat storage>"},{"$f":"+IF('Calcolo a'!H10=\"\",\"\",'Calcolo a'!H10)","v":""},{"$f":"+IF('Calcolo a'!I10=\"\",\"\",'Calcolo a'!I10)","v":""},{"$f":"+IF('Calcolo a'!J10=\"\",\"\",'Calcolo a'!J10)","v":""},"",{"$f":"+IF('Calcolo a'!K10=\"\",\"\",'Calcolo a'!K10)","v":""},{"$f":"+IF('Calcolo a'!L10=\"\",\"\",'Calcolo a'!L10)","v":""},{"$f":"+IF('Calcolo a'!M10=\"\",\"\",'Calcolo a'!M10)","v":""},""]
[null,null,{"$f":"+'Calcolo a'!B11","v":"<Heat-pump>"},{"$f":"+IF('Calcolo a'!H11=\"\",\"\",'Calcolo a'!H11)","v":""},{"$f":"+IF('Calcolo a'!I11=\"\",\"\",'Calcolo a'!I11)","v":""},{"$f":"+IF('Calcolo a'!J11=\"\",\"\",'Calcolo a'!J11)","v":""},"",{"$f":"+IF('Calcolo a'!K11=\"\",\"\",'Calcolo a'!K11)","v":""},{"$f":"+IF('Calcolo a'!L11=\"\",\"\",'Calcolo a'!L11)","v":""},{"$f":"+IF('Calcolo a'!M11=\"\",\"\",'Calcolo a'!M11)","v":""},""]
[null,null,{"$f":"+'Calcolo a'!B12","v":"<Pipes>"},{"$f":"+IF('Calcolo a'!H12=\"\",\"\",'Calcolo a'!H12)","v":""},{"$f":"+IF('Calcolo a'!I12=\"\",\"\",'Calcolo a'!I12)","v":""},{"$f":"+IF('Calcolo a'!J12=\"\",\"\",'Calcolo a'!J12)","v":""},{"$f":"+IF(SUM(D25:F25)=0,\"\",SUM(D25:F25))","v":""},{"$f":"+IF('Calcolo a'!K12=\"\",\"\",'Calcolo a'!K12)","v":""},{"$f":"+IF('Calcolo a'!L12=\"\",\"\",'Calcolo a'!L12)","v":""},{"$f":"+IF('Calcolo a'!M12=\"\",\"\",'Calcolo a'!M12)","v":""},""]
[null,null,{"$f":"+'Calcolo a'!B13","v":"<Pump>"},{"$f":"+IF('Calcolo a'!H13=\"\",\"\",'Calcolo a'!H13)","v":""},{"$f":"+IF('Calcolo a'!I13=\"\",\"\",'Calcolo a'!I13)","v":""},{"$f":"+IF('Calcolo a'!J13=\"\",\"\",'Calcolo a'!J13)","v":""},"",{"$f":"+IF('Calcolo a'!K13=\"\",\"\",'Calcolo a'!K13)","v":""},{"$f":"+IF('Calcolo a'!L13=\"\",\"\",'Calcolo a'!L13)","v":""},{"$f":"+IF('Calcolo a'!M13=\"\",\"\",'Calcolo a'!M13)","v":""},""]
[null,null,{"$f":"+'Calcolo a'!B14","v":"<Solar thermal collectors>"},{"$f":"+IF('Calcolo a'!H14=\"\",\"\",'Calcolo a'!H14)","v":""},{"$f":"+IF('Calcolo a'!I14=\"\",\"\",'Calcolo a'!I14)","v":""},{"$f":"+IF('Calcolo a'!J14=\"\",\"\",'Calcolo a'!J14)","v":""},"",{"$f":"+IF('Calcolo a'!K14=\"\",\"\",'Calcolo a'!K14)","v":""},{"$f":"+IF('Calcolo a'!L14=\"\",\"\",'Calcolo a'!L14)","v":""},{"$f":"+IF('Calcolo a'!M14=\"\",\"\",'Calcolo a'!M14)","v":""},""]
[null,null,{"$f":"+'Calcolo a'!B15","v":"<Water>"},{"$f":"+IF('Calcolo a'!H15=\"\",\"\",'Calcolo a'!H15)","v":""},{"$f":"+IF('Calcolo a'!I15=\"\",\"\",'Calcolo a'!I15)","v":""},{"$f":"+IF('Calcolo a'!J15=\"\",\"\",'Calcolo a'!J15)","v":""},"",{"$f":"+IF('Calcolo a'!K15=\"\",\"\",'Calcolo a'!K15)","v":""},{"$f":"+IF('Calcolo a'!L15=\"\",\"\",'Calcolo a'!L15)","v":""},{"$f":"+IF('Calcolo a'!M15=\"\",\"\",'Calcolo a'!M15)","v":""},"",null,null,null,null,null,null,null,null,null,null,null,null,null,null,null,null,"Notes "]
[null,null,{"$f":"+'Calcolo a'!B16","v":""},{"$f":"+IF('Calcolo a'!H16=\"\",\"\",'Calcolo a'!H16)","v":""},{"$f":"+IF('Calcolo a'!I16=\"\",\"\",'Calcolo a'!I16)","v":""},{"$f":"+IF('Calcolo a'!J16=\"\",\"\",'Calcolo a'!J16)","v":""},"",{"$f":"+IF('Calcolo a'!K16=\"\",\"\",'Calcolo a'!K16)","v":""},{"$f":"+IF('Calcolo a'!L16=\"\",\"\",'Calcolo a'!L16)","v":""},{"$f":"+IF('Calcolo a'!M16=\"\",\"\",'Calcolo a'!M16)","v":""},""]
[null,null,{"$f":"+'Calcolo a'!B17","v":""},{"$f":"+IF('Calcolo a'!H17=\"\",\"\",'Calcolo a'!H17)","v":""},{"$f":"+IF('Calcolo a'!I17=\"\",\"\",'Calcolo a'!I17)","v":""},{"$f":"+IF('Calcolo a'!J17=\"\",\"\",'Calcolo a'!J17)","v":""},"",{"$f":"+IF('Calcolo a'!K17=\"\",\"\",'Calcolo a'!K17)","v":""},{"$f":"+IF('Calcolo a'!L17=\"\",\"\",'Calcolo a'!L17)","v":""},{"$f":"+IF('Calcolo a'!M17=\"\",\"\",'Calcolo a'!M17)","v":""},""]
[null,null,{"$f":"+'Calcolo a'!B18","v":""},{"$f":"+IF('Calcolo a'!H18=\"\",\"\",'Calcolo a'!H18)","v":""},{"$f":"+IF('Calcolo a'!I18=\"\",\"\",'Calcolo a'!I18)","v":""},{"$f":"+IF('Calcolo a'!J18=\"\",\"\",'Calcolo a'!J18)","v":""},"",{"$f":"+IF('Calcolo a'!K18=\"\",\"\",'Calcolo a'!K18)","v":""},{"$f":"+IF('Calcolo a'!L18=\"\",\"\",'Calcolo a'!L18)","v":""},{"$f":"+IF('Calcolo a'!M18=\"\",\"\",'Calcolo a'!M18)","v":""},""]
[null,null,{"$f":"+'Calcolo a'!B19","v":""},{"$f":"+IF('Calcolo a'!H19=\"\",\"\",'Calcolo a'!H19)","v":""},{"$f":"+IF('Calcolo a'!I19=\"\",\"\",'Calcolo a'!I19)","v":""},{"$f":"+IF('Calcolo a'!J19=\"\",\"\",'Calcolo a'!J19)","v":""},"",{"$f":"+IF('Calcolo a'!K19=\"\",\"\",'Calcolo a'!K19)","v":""},{"$f":"+IF('Calcolo a'!L19=\"\",\"\",'Calcolo a'!L19)","v":""},{"$f":"+IF('Calcolo a'!M19=\"\",\"\",'Calcolo a'!M19)","v":""},""]
[null,null,null,{"$f":"+IF('Calcolo a'!H20=\"\",\"\",'Calcolo a'!H20)","v":""},{"$f":"+IF('Calcolo a'!I20=\"\",\"\",'Calcolo a'!I20)","v":""},{"$f":"+IF('Calcolo a'!J20=\"\",\"\",'Calcolo a'!J20)","v":""},"",{"$f":"+IF('Calcolo a'!K20=\"\",\"\",'Calcolo a'!K20)","v":""},{"$f":"+IF('Calcolo a'!L20=\"\",\"\",'Calcolo a'!L20)","v":""},{"$f":"+IF('Calcolo a'!M20=\"\",\"\",'Calcolo a'!M20)","v":""},""]
[null,null,null,{"$f":"+IF('Calcolo a'!H21=\"\",\"\",'Calcolo a'!H21)","v":""},{"$f":"+IF('Calcolo a'!I21=\"\",\"\",'Calcolo a'!I21)","v":""},{"$f":"+IF('Calcolo a'!J21=\"\",\"\",'Calcolo a'!J21)","v":""},"",{"$f":"+IF('Calcolo a'!K21=\"\",\"\",'Calcolo a'!K21)","v":""},{"$f":"+IF('Calcolo a'!L21=\"\",\"\",'Calcolo a'!L21)","v":""},{"$f":"+IF('Calcolo a'!M21=\"\",\"\",'Calcolo a'!M21)","v":""},""]
[null,null,{"$f":"+'Calcolo a'!B22","v":"<Electricity>"},{"$f":"+IF('Calcolo a'!H22=\"\",\"\",'Calcolo a'!H22)","v":""},{"$f":"+IF('Calcolo a'!I22=\"\",\"\",'Calcolo a'!I22)","v":""},{"$f":"+IF('Calcolo a'!J22=\"\",\"\",'Calcolo a'!J22)","v":""},"",{"$f":"+IF('Calcolo a'!K22=\"\",\"\",'Calcolo a'!K22)","v":""},{"$f":"+IF('Calcolo a'!L22=\"\",\"\",'Calcolo a'!L22)","v":""},{"$f":"+IF('Calcolo a'!M22=\"\",\"\",'Calcolo a'!M22)","v":""},""]
[null,null,{"$f":"+'Calcolo a'!B23","v":"<Natural gas>"},{"$f":"+IF('Calcolo a'!H23=\"\",\"\",'Calcolo a'!H23)","v":""},{"$f":"+IF('Calcolo a'!I23=\"\",\"\",'Calcolo a'!I23)","v":""},{"$f":"+IF('Calcolo a'!J23=\"\",\"\",'Calcolo a'!J23)","v":""},"",{"$f":"+IF('Calcolo a'!K23=\"\",\"\",'Calcolo a'!K23)","v":""},{"$f":"+IF('Calcolo a'!L23=\"\",\"\",'Calcolo a'!L23)","v":""},{"$f":"+IF('Calcolo a'!M23=\"\",\"\",'Calcolo a'!M23)","v":""},"",null,null,null,"LCA Results"]
[null,null,"Total",{"$f":"+SUM(D16:D36)","v":0},0,0,0,0,0,0,0]
[]
[]
[]
[]
[]
[]
[]
[]
[]
[null,null,null,null,null,null,null,null,null,null,null,null,null,null,"Input pages"]

{"sheet":"Impacts__SHC system_PV","index":13,"n_rows":47,"n_cols":28,"rows_kept":47,"cut":false,"hidden":true,"merged":[[11,27,12,28],[104,2,124,10],[13,3,13,6],[13,7,13,10],[38,2,58,10],[60,2,80,10],[82,2,102,10]]}
[]
[]
[]
[]
[]
[]
[]
[]
[]
[]
[]
[null,null,null,null,null,null,null,null,null,null,null,null,null,null,"General Information",null,null,null,null,null,null,null,null,null,null,null,null,"Notes "]
[]
[null,null,"COMPONENTS OF THE SHC SYSTEM WITH PV","GLOBAL ENERGY REQUIREMENT (GER) (MJ)",null,null,null,"GLOBAL WARMING POTENTIAL (GWP) (kg CO2eq)"]
[null,null,null,"Manufacturing","Operation","End-of-Life","Total","Manufacturing","Operation","End-of-Life","Total"]
[null,null,{"$f":"+'Calcolo b'!B3","v":"<Ammonia>"},{"$f":"+IF('Calcolo b'!H3=\"\",\"\",'Calcolo b'!H3)","v":""},{"$f":"+IF('Calcolo b'!I3=\"\",\"\",'Calcolo b'!I3)","v":""},{"$f":"+IF('Calcolo b'!J3=\"\",\"\",'Calcolo b'!J3)","v":""},{"$f":"+IF(SUM(D16:F16)=0,\"\",SUM(D16:F16))","v":""},{"$f":"+IF('Calcolo b'!K3=\"\",\"\",'Calcolo b'!K3)","v":""},{"$f":"+IF('Calcolo b'!L3=\"\",\"\",'Calcolo b'!L3)","v":""},{"$f":"+IF('Calcolo b'!M3=\"\",\"\",'Calcolo b'!M3)","v":""},{"$f":"+IF(SUM(H16:J16)=0,\"\",SUM(H16:J16))","v":""}]
[null,null,{"$f":"+'Calcolo b'!B4","v":"<Auxiliary Conventional Chiller>"},{"$f":"+IF('Calcolo b'!H4=\"\",\"\",'Calcolo b'!H4)","v":""},{"$f":"+IF('Calcolo b'!I4=\"\",\"\",'Calcolo b'!I4)","v":""},{"$f":"+IF('Calcolo b'!J4=\"\",\"\",'Calcolo b'!J4)","v":""},{"$f":"+IF(SUM(D17:F17)=0,\"\",SUM(D17:F17))","v":""},{"$f":"+IF('Calcolo b'!K4=\"\",\"\",'Calcolo b'!K4)","v":""},{"$f":"+IF('Calcolo b'!L4=\"\",\"\",'Calcolo b'!L4)","v":""},{"$f":"+IF('Calcolo b'!M4=\"\",\"\",'Calcolo b'!M4)","v":""},{"$f":"+IF(SUM(H17:J17)=0,\"\",SUM(H17:J17))","v":""}]
[null,null,{"$f":"+'Calcolo b'!B5","v":"<Auxiliary Gas Boiler>"},{"$f":"+IF('Calcolo b'!H5=\"\",\"\",'Calcolo b'!H5)","v":""},{"$f":"+IF('Calcolo b'!I5=\"\",\"\",'Calcolo b'!I5)","v":""},{"$f":"+IF('Calcolo b'!J5=\"\",\"\",'Calcolo b'!J5)","v":""},"",{"$f":"+IF('Calcolo b'!K5=\"\",\"\",'Calcolo b'!K5)","v":""},{"$f":"+IF('Calcolo b'!L5=\"\",\"\",'Calcolo b'!L5)","v":""},{"$f":"+IF('Calcolo b'!M5=\"\",\"\",'Calcolo b'!M5)","v":""},""]
[null,null,{"$f":"+'Calcolo b'!B6","v":"<Battery>"},{"$f":"+IF('Calcolo b'!H6=\"\",\"\",'Calcolo b'!H6)","v":""},{"$f":"+IF('Calcolo b'!I6=\"\",\"\",'Calcolo b'!I6)","v":""},{"$f":"+IF('Calcolo b'!J6=\"\",\"\",'Calcolo b'!J6)","v":""},"",{"$f":"+IF('Calcolo b'!K6=\"\",\"\",'Calcolo b'!K6)","v":""},{"$f":"+IF('Calcolo b'!L6=\"\",\"\",'Calcolo b'!L6)","v":""},{"$f":"+IF('Calcolo b'!M6=\"\",\"\",'Calcolo b'!M6)","v":""},""]
[null,null,{"$f":"+'Calcolo b'!B7","v":"<Chiller (ad/ab-sorption)>"},{"$f":"+IF('Calcolo b'!H7=\"\",\"\",'Calcolo b'!H7)","v":""},{"$f":"+IF('Calcolo b'!I7=\"\",\"\",'Calcolo b'!I7)","v":""},{"$f":"+IF('Calcolo b'!J7=\"\",\"\",'Calcolo b'!J7)","v":""},"",{"$f":"+IF('Calcolo b'!K7=\"\",\"\",'Calcolo b'!K7)","v":""},{"$f":"+IF('Calcolo b'!L7=\"\",\"\",'Calcolo b'!L7)","v":""},{"$f":"+IF('Calcolo b'!M7=\"\",\"\",'Calcolo b'!M7)","v":""},""]
[null,null,{"$f":"+'Calcolo b'!B8","v":"<Cooling tower>"},{"$f":"+IF('Calcolo b'!H8=\"\",\"\",'Calcolo b'!H8)","v":""},{"$f":"+IF('Calcolo b'!I8=\"\",\"\",'Calcolo b'!I8)","v":""},{"$f":"+IF('Calcolo b'!J8=\"\",\"\",'Calcolo b'!J8)","v":""},"",{"$f":"+IF('Calcolo b'!K8=\"\",\"\",'Calcolo b'!K8)","v":""},{"$f":"+IF('Calcolo b'!L8=\"\",\"\",'Calcolo b'!L8)","v":""},{"$f":"+IF('Calcolo b'!M8=\"\",\"\",'Calcolo b'!M8)","v":""},""]
[null,null,{"$f":"+'Calcolo b'!B9","v":"<Electric installation>"},{"$f":"+IF('Calcolo b'!H9=\"\",\"\",'Calcolo b'!H9)","v":""},{"$f":"+IF('Calcolo b'!I9=\"\",\"\",'Calcolo b'!I9)","v":""},{"$f":"+IF('Calcolo b'!J9=\"\",\"\",'Calcolo b'!J9)","v":""},"",{"$f":"+IF('Calcolo b'!K9=\"\",\"\",'Calcolo b'!K9)","v":""},{"$f":"+IF('Calcolo b'!L9=\"\",\"\",'Calcolo b'!L9)","v":""},{"$f":"+IF('Calcolo b'!M9=\"\",\"\",'Calcolo b'!M9)","v":""},""]
[null,null,{"$f":"+'Calcolo b'!B10","v":"<Glycol>"},{"$f":"+IF('Calcolo b'!H10=\"\",\"\",'Calcolo b'!H10)","v":""},{"$f":"+IF('Calcolo b'!I10=\"\",\"\",'Calcolo b'!I10)","v":""},{"$f":"+IF('Calcolo b'!J10=\"\",\"\",'Calcolo b'!J10)","v":""},"",{"$f":"+IF('Calcolo b'!K10=\"\",\"\",'Calcolo b'!K10)","v":""},{"$f":"+IF('Calcolo b'!L10=\"\",\"\",'Calcolo b'!L10)","v":""},{"$f":"+IF('Calcolo b'!M10=\"\",\"\",'Calcolo b'!M10)","v":""},""]
[null,null,{"$f":"+'Calcolo b'!B11","v":"<Heat rejection system>"},{"$f":"+IF('Calcolo b'!H11=\"\",\"\",'Calcolo b'!H11)","v":""},{"$f":"+IF('Calcolo b'!I11=\"\",\"\",'Calcolo b'!I11)","v":""},{"$f":"+IF('Calcolo b'!J11=\"\",\"\",'Calcolo b'!J11)","v":""},"",{"$f":"+IF('Calcolo b'!K11=\"\",\"\",'Calcolo b'!K11)","v":""},{"$f":"+IF('Calcolo b'!L11=\"\",\"\",'Calcolo b'!L11)","v":""},{"$f":"+IF('Calcolo b'!M11=\"\",\"\",'Calcolo b'!M11)","v":""},""]
[null,null,{"$f":"+'Calcolo b'!B12","v":"<Heat storage>"},{"$f":"+IF('Calcolo b'!H12=\"\",\"\",'Calcolo b'!H12)","v":""},{"$f":"+IF('Calcolo b'!I12=\"\",\"\",'Calcolo b'!I12)","v":""},{"$f":"+IF('Calcolo b'!J12=\"\",\"\",'Calcolo b'!J12)","v":""},"",{"$f":"+IF('Calcolo b'!K12=\"\",\"\",'Calcolo b'!K12)","v":""},{"$f":"+IF('Calcolo b'!L12=\"\",\"\",'Calcolo b'!L12)","v":""},{"$f":"+IF('Calcolo b'!M12=\"\",\"\",'Calcolo b'!M12)","v":""},""]
[null,null,{"$f":"+'Calcolo b'!B13","v":"<Heat-pump>"},{"$f":"+IF('Calcolo b'!H13=\"\",\"\",'Calcolo b'!H13)","v":""},{"$f":"+IF('Calcolo b'!I13=\"\",\"\",'Calcolo b'!I13)","v":""},{"$f":"+IF('Calcolo b'!J13=\"\",\"\",'Calcolo b'!J13)","v":""},"",{"$f":"+IF('Calcolo b'!K13=\"\",\"\",'Calcolo b'!K13)","v":""},{"$f":"+IF('Calcolo b'!L13=\"\",\"\",'Calcolo b'!L13)","v":""},{"$f":"+IF('Calcolo b'!M13=\"\",\"\",'Calcolo b'!M13)","v":""},""]
[null,null,{"$f":"+'Calcolo b'!B14","v":"<Inverter >"},{"$f":"+IF('Calcolo b'!H14=\"\",\"\",'Calcolo b'!H14)","v":""},{"$f":"+IF('Calcolo b'!I14=\"\",\"\",'Calcolo b'!I14)","v":""},{"$f":"+IF('Calcolo b'!J14=\"\",\"\",'Calcolo b'!J14)","v":""},"",{"$f":"+IF('Calcolo b'!K14=\"\",\"\",'Calcolo b'!K14)","v":""},{"$f":"+IF('Calcolo b'!L14=\"\",\"\",'Calcolo b'!L14)","v":""},{"$f":"+IF('Calcolo b'!M14=\"\",\"\",'Calcolo b'!M14)","v":""},""]
[null,null,{"$f":"+'Calcolo b'!B15","v":"<Photovoltaic panel>"},{"$f":"+IF('Calcolo b'!H15=\"\",\"\",'Calcolo b'!H15)","v":""},{"$f":"+IF('Calcolo b'!I15=\"\",\"\",'Calcolo b'!I15)","v":""},{"$f":"+IF('Calcolo b'!J15=\"\",\"\",'Calcolo b'!J15)","v":""},"",{"$f":"+IF('Calcolo b'!K15=\"\",\"\",'Calcolo b'!K15)","v":""},{"$f":"+IF('Calcolo b'!L15=\"\",\"\",'Calcolo b'!L15)","v":""},{"$f":"+IF('Calcolo b'!M15=\"\",\"\",'Calcolo b'!M15)","v":""},""]
[null,null,{"$f":"+'Calcolo b'!B16","v":"<Pipes>"},{"$f":"+IF('Calcolo b'!H16=\"\",\"\",'Calcolo b'!H16)","v":""},{"$f":"+IF('Calcolo b'!I16=\"\",\"\",'Calcolo b'!I16)","v":""},{"$f":"+IF('Calcolo b'!J16=\"\",\"\",'Calcolo b'!J16)","v":""},"",{"$f":"+IF('Calcolo b'!K16=\"\",\"\",'Calcolo b'!K16)","v":""},{"$f":"+IF('Calcolo b'!L16=\"\",\"\",'Calcolo b'!L16)","v":""},{"$f":"+IF('Calcolo b'!M16=\"\",\"\",'Calcolo b'!M16)","v":""},""]
[null,null,{"$f":"+'Calcolo b'!B17","v":"<Pump>"},{"$f":"+IF('Calcolo b'!H17=\"\",\"\",'Calcolo b'!H17)","v":""},{"$f":"+IF('Calcolo b'!I17=\"\",\"\",'Calcolo b'!I17)","v":""},{"$f":"+IF('Calcolo b'!J17=\"\",\"\",'Calcolo b'!J17)","v":""},"",{"$f":"+IF('Calcolo b'!K17=\"\",\"\",'Calcolo b'!K17)","v":""},{"$f":"+IF('Calcolo b'!L17=\"\",\"\",'Calcolo b'!L17)","v":""},{"$f":"+IF('Calcolo b'!M17=\"\",\"\",'Calcolo b'!M17)","v":""},""]
[null,null,{"$f":"+'Calcolo b'!B18","v":"<Solar thermal collectors>"},{"$f":"+IF('Calcolo b'!H18=\"\",\"\",'Calcolo b'!H18)","v":""},{"$f":"+IF('Calcolo b'!I18=\"\",\"\",'Calcolo b'!I18)","v":""},{"$f":"+IF('Calcolo b'!J18=\"\",\"\",'Calcolo b'!J18)","v":""},"",{"$f":"+IF('Calcolo b'!K18=\"\",\"\",'Calcolo b'!K18)","v":""},{"$f":"+IF('Calcolo b'!L18=\"\",\"\",'Calcolo b'!L18)","v":""},{"$f":"+IF('Calcolo b'!M18=\"\",\"\",'Calcolo b'!M18)","v":""},""]
[null,null,{"$f":"+'Calcolo b'!B19","v":"<Water>"},{"$f":"+IF('Calcolo b'!H19=\"\",\"\",'Calcolo b'!H19)","v":""},{"$f":"+IF('Calcolo b'!I19=\"\",\"\",'Calcolo b'!I19)","v":""},{"$f":"+IF('Calcolo b'!J19=\"\",\"\",'Calcolo b'!J19)","v":""},"",{"$f":"+IF('Calcolo b'!K19=\"\",\"\",'Calcolo b'!K19)","v":""},{"$f":"+IF('Calcolo b'!L19=\"\",\"\",'Calcolo b'!L19)","v":""},{"$f":"+IF('Calcolo b'!M19=\"\",\"\",'Calcolo b'!M19)","v":""},""]
[null,null,null,{"$f":"+IF('Calcolo b'!H20=\"\",\"\",'Calcolo b'!H20)","v":""},{"$f":"+IF('Calcolo b'!I20=\"\",\"\",'Calcolo b'!I20)","v":""},{"$f":"+IF('Calcolo b'!J20=\"\",\"\",'Calcolo b'!J20)","v":""},"",{"$f":"+IF('Calcolo b'!K20=\"\",\"\",'Calcolo b'!K20)","v":""},{"$f":"+IF('Calcolo b'!L20=\"\",\"\",'Calcolo b'!L20)","v":""},{"$f":"+IF('Calcolo b'!M20=\"\",\"\",'Calcolo b'!M20)","v":""},""]
[null,null,null,{"$f":"+IF('Calcolo b'!H21=\"\",\"\",'Calcolo b'!H21)","v":""},{"$f":"+IF('Calcolo b'!I21=\"\",\"\",'Calcolo b'!I21)","v":""},{"$f":"+IF('Calcolo b'!J21=\"\",\"\",'Calcolo b'!J21)","v":""},"",{"$f":"+IF('Calcolo b'!K21=\"\",\"\",'Calcolo b'!K21)","v":""},{"$f":"+IF('Calcolo b'!L21=\"\",\"\",'Calcolo b'!L21)","v":""},{"$f":"+IF('Calcolo b'!M21=\"\",\"\",'Calcolo b'!M21)","v":""},""]
[null,null,{"$f":"+'Calcolo b'!B22","v":"<Electricity>"},{"$f":"+IF('Calcolo b'!H22=\"\",\"\",'Calcolo b'!H22)","v":""},{"$f":"+IF('Calcolo b'!I22=\"\",\"\",'Calcolo b'!I22)","v":""},{"$f":"+IF('Calcolo b'!J22=\"\",\"\",'Calcolo b'!J22)","v":""},"",{"$f":"+IF('Calcolo b'!K22=\"\",\"\",'Calcolo b'!K22)","v":""},{"$f":"+IF('Calcolo b'!L22=\"\",\"\",'Calcolo b'!L22)","v":""},{"$f":"+IF('Calcolo b'!M22=\"\",\"\",'Calcolo b'!M22)","v":""},""]
[null,null,{"$f":"+'Calcolo b'!B23","v":"<Natural gas>"},{"$f":"+IF('Calcolo b'!H23=\"\",\"\",'Calcolo b'!H23)","v":""},{"$f":"+IF('Calcolo b'!I23=\"\",\"\",'Calcolo b'!I23)","v":""},{"$f":"+IF('Calcolo b'!J23=\"\",\"\",'Calcolo b'!J23)","v":""},"",{"$f":"+IF('Calcolo b'!K23=\"\",\"\",'Calcolo b'!K23)","v":""},{"$f":"+IF('Calcolo b'!L23=\"\",\"\",'Calcolo b'!L23)","v":""},{"$f":"+IF('Calcolo b'!M23=\"\",\"\",'Calcolo b'!M23)","v":""},"",null,null,null,"LCA Results"]
[null,null,"Total",{"$f":"+SUM(D16:D36)","v":0},0,0,0,0,0,0,0]
[]
[]
[]
[]
[]
[]
[]
[]
[]
[null,null,null,null,null,null,null,null,null,null,null,null,null,null,"Input pages"]

{"sheet":"Impacts__Conventional_system","index":14,"n_rows":47,"n_cols":28,"rows_kept":47,"cut":false,"hidden":true,"merged":[[6,27,7,28],[104,2,124,10],[13,3,13,6],[13,7,13,10],[38,2,58,10],[60,2,80,10],[82,2,102,10]]}
[]
[]
[]
[]
[]
[]
[null,null,null,null,null,null,null,null,null,null,null,null,null,null,null,null,null,null,null,null,null,null,null,null,null,null,null,"Notes "]
[]
[]
[]
[]
[null,null,null,null,null,null,null,null,null,null,null,null,null,null,"General Information"]
[]
[null,null,"COMPONENTS OF THE CONVENTIONAL SYSTEM","GLOBAL ENERGY REQUIREMENT (GER) (MJ)",null,null,null,"GLOBAL WARMING POTENTIAL (GWP) (kg CO2eq)"]
[null,null,null,"Manufacturing","Operation","End-of-Life","Total","Manufacturing","Operation","End-of-Life","Total"]
[null,null,{"$f":"+'Calcolo d'!B3","v":"<Chiller (conventional)>"},{"$f":"+IF('Calcolo d'!H3=\"\",\"\",'Calcolo d'!H3)","v":""},{"$f":"+IF('Calcolo d'!I3=\"\",\"\",'Calcolo d'!I3)","v":""},{"$f":"+IF('Calcolo d'!J3=\"\",\"\",'Calcolo d'!J3)","v":""},{"$f":"+IF(SUM(D16:F16)=0,\"\",SUM(D16:F16))","v":""},{"$f":"+IF('Calcolo d'!K3=\"\",\"\",'Calcolo d'!K3)","v":""},{"$f":"+IF('Calcolo d'!L3=\"\",\"\",'Calcolo d'!L3)","v":""},{"$f":"+IF('Calcolo d'!M3=\"\",\"\",'Calcolo d'!M3)","v":""},{"$f":"+IF(SUM(H16:J16)=0,\"\",SUM(H16:J16))","v":""}]
[null,null,{"$f":"+'Calcolo d'!B4","v":"<Gas boiler >"},{"$f":"+IF('Calcolo d'!H4=\"\",\"\",'Calcolo d'!H4)","v":""},{"$f":"+IF('Calcolo d'!I4=\"\",\"\",'Calcolo d'!I4)","v":""},{"$f":"+IF('Calcolo d'!J4=\"\",\"\",'Calcolo d'!J4)","v":""},{"$f":"+IF(SUM(D17:F17)=0,\"\",SUM(D17:F17))","v":""},{"$f":"+IF('Calcolo d'!K4=\"\",\"\",'Calcolo d'!K4)","v":""},{"$f":"+IF('Calcolo d'!L4=\"\",\"\",'Calcolo d'!L4)","v":""},{"$f":"+IF('Calcolo d'!M4=\"\",\"\",'Calcolo d'!M4)","v":""},{"$f":"+IF(SUM(H17:J17)=0,\"\",SUM(H17:J17))","v":""}]
[null,null,{"$f":"+'Calcolo d'!B5","v":"<Heat-pump>"},{"$f":"+IF('Calcolo d'!H5=\"\",\"\",'Calcolo d'!H5)","v":""},{"$f":"+IF('Calcolo d'!I5=\"\",\"\",'Calcolo d'!I5)","v":""},{"$f":"+IF('Calcolo d'!J5=\"\",\"\",'Calcolo d'!J5)","v":""},"",{"$f":"+IF('Calcolo d'!K5=\"\",\"\",'Calcolo d'!K5)","v":""},{"$f":"+IF('Calcolo d'!L5=\"\",\"\",'Calcolo d'!L5)","v":""},{"$f":"+IF('Calcolo d'!M5=\"\",\"\",'Calcolo d'!M5)","v":""},""]
[null,null,{"$f":"+'Calcolo d'!B6","v":"<Pipes>"},{"$f":"+IF('Calcolo d'!H6=\"\",\"\",'Calcolo d'!H6)","v":""},{"$f":"+IF('Calcolo d'!I6=\"\",\"\",'Calcolo d'!I6)","v":""},{"$f":"+IF('Calcolo d'!J6=\"\",\"\",'Calcolo d'!J6)","v":""},"",{"$f":"+IF('Calcolo d'!K6=\"\",\"\",'Calcolo d'!K6)","v":""},{"$f":"+IF('Calcolo d'!L6=\"\",\"\",'Calcolo d'!L6)","v":""},{"$f":"+IF('Calcolo d'!M6=\"\",\"\",'Calcolo d'!M6)","v":""},""]
[null,null,{"$f":"+'Calcolo d'!B7","v":"<Pump>"},{"$f":"+IF('Calcolo d'!H7=\"\",\"\",'Calcolo d'!H7)","v":""},{"$f":"+IF('Calcolo d'!I7=\"\",\"\",'Calcolo d'!I7)","v":""},{"$f":"+IF('Calcolo d'!J7=\"\",\"\",'Calcolo d'!J7)","v":""},"",{"$f":"+IF('Calcolo d'!K7=\"\",\"\",'Calcolo d'!K7)","v":""},{"$f":"+IF('Calcolo d'!L7=\"\",\"\",'Calcolo d'!L7)","v":""},{"$f":"+IF('Calcolo d'!M7=\"\",\"\",'Calcolo d'!M7)","v":""},""]
[null,null,{"$f":"+'Calcolo d'!B8","v":""},{"$f":"+IF('Calcolo d'!H8=\"\",\"\",'Calcolo d'!H8)","v":""},{"$f":"+IF('Calcolo d'!I8=\"\",\"\",'Calcolo d'!I8)","v":""},{"$f":"+IF('Calcolo d'!J8=\"\",\"\",'Calcolo d'!J8)","v":""},"",{"$f":"+IF('Calcolo d'!K8=\"\",\"\",'Calcolo d'!K8)","v":""},{"$f":"+IF('Calcolo d'!L8=\"\",\"\",'Calcolo d'!L8)","v":""},{"$f":"+IF('Calcolo d'!M8=\"\",\"\",'Calcolo d'!M8)","v":""},""]
[null,null,{"$f":"+'Calcolo d'!B9","v":""},{"$f":"+IF('Calcolo d'!H9=\"\",\"\",'Calcolo d'!H9)","v":""},{"$f":"+IF('Calcolo d'!I9=\"\",\"\",'Calcolo d'!I9)","v":""},{"$f":"+IF('Calcolo d'!J9=\"\",\"\",'Calcolo d'!J9)","v":""},"",{"$f":"+IF('Calcolo d'!K9=\"\",\"\",'Calcolo d'!K9)","v":""},{"$f":"+IF('Calcolo d'!L9=\"\",\"\",'Calcolo d'!L9)","v":""},{"$f":"+IF('Calcolo d'!M9=\"\",\"\",'Calcolo d'!M9)","v":""},""]
[null,null,{"$f":"+'Calcolo d'!B10","v":""},{"$f":"+IF('Calcolo d'!H10=\"\",\"\",'Calcolo d'!H10)","v":""},{"$f":"+IF('Calcolo d'!I10=\"\",\"\",'Calcolo d'!I10)","v":""},{"$f":"+IF('Calcolo d'!J10=\"\",\"\",'Calcolo d'!J10)","v":""},"",{"$f":"+IF('Calcolo d'!K10=\"\",\"\",'Calcolo d'!K10)","v":""},{"$f":"+IF('Calcolo d'!L10=\"\",\"\",'Calcolo d'!L10)","v":""},{"$f":"+IF('Calcolo d'!M10=\"\",\"\",'Calcolo d'!M10)","v":""},""]
[null,null,{"$f":"+'Calcolo d'!B11","v":""},{"$f":"+IF('Calcolo d'!H11=\"\",\"\",'Calcolo d'!H11)","v":""},{"$f":"+IF('Calcolo d'!I11=\"\",\"\",'Calcolo d'!I11)","v":""},{"$f":"+IF('Calcolo d'!J11=\"\",\"\",'Calcolo d'!J11)","v":0},"",{"$f":"+IF('Calcolo d'!K11=\"\",\"\",'Calcolo d'!K11)","v":""},{"$f":"+IF('Calcolo d'!L11=\"\",\"\",'Calcolo d'!L11)","v":""},{"$f":"+IF('Calcolo d'!M11=\"\",\"\",'Calcolo d'!M11)","v":""},""]
[null,null,{"$f":"+'Calcolo d'!B12","v":""},{"$f":"+IF('Calcolo d'!H12=\"\",\"\",'Calcolo d'!H12)","v":""},{"$f":"+IF('Calcolo d'!I12=\"\",\"\",'Calcolo d'!I12)","v":""},{"$f":"+IF('Calcolo d'!J12=\"\",\"\",'Calcolo d'!J12)","v":""},"",{"$f":"+IF('Calcolo d'!K12=\"\",\"\",'Calcolo d'!K12)","v":""},{"$f":"+IF('Calcolo d'!L12=\"\",\"\",'Calcolo d'!L12)","v":""},{"$f":"+IF('Calcolo d'!M12=\"\",\"\",'Calcolo d'!M12)","v":""},""]
[null,null,{"$f":"+'Calcolo d'!B13","v":""},{"$f":"+IF('Calcolo d'!H13=\"\",\"\",'Calcolo d'!H13)","v":""},{"$f":"+IF('Calcolo d'!I13=\"\",\"\",'Calcolo d'!I13)","v":""},{"$f":"+IF('Calcolo d'!J13=\"\",\"\",'Calcolo d'!J13)","v":""},"",{"$f":"+IF('Calcolo d'!K13=\"\",\"\",'Calcolo d'!K13)","v":""},{"$f":"+IF('Calcolo d'!L13=\"\",\"\",'Calcolo d'!L13)","v":""},{"$f":"+IF('Calcolo d'!M13=\"\",\"\",'Calcolo d'!M13)","v":""},""]
[null,null,{"$f":"+'Calcolo d'!B14","v":""},{"$f":"+IF('Calcolo d'!H14=\"\",\"\",'Calcolo d'!H14)","v":""},{"$f":"+IF('Calcolo d'!I14=\"\",\"\",'Calcolo d'!I14)","v":""},{"$f":"+IF('Calcolo d'!J14=\"\",\"\",'Calcolo d'!J14)","v":""},"",{"$f":"+IF('Calcolo d'!K14=\"\",\"\",'Calcolo d'!K14)","v":""},{"$f":"+IF('Calcolo d'!L14=\"\",\"\",'Calcolo d'!L14)","v":""},{"$f":"+IF('Calcolo d'!M14=\"\",\"\",'Calcolo d'!M14)","v":""},""]
[null,null,{"$f":"+'Calcolo d'!B15","v":""},{"$f":"+IF('Calcolo d'!H15=\"\",\"\",'Calcolo d'!H15)","v":""},{"$f":"+IF('Calcolo d'!I15=\"\",\"\",'Calcolo d'!I15)","v":""},{"$f":"+IF('Calcolo d'!J15=\"\",\"\",'Calcolo d'!J15)","v":""},"",{"$f":"+IF('Calcolo d'!K15=\"\",\"\",'Calcolo d'!K15)","v":""},{"$f":"+IF('Calcolo d'!L15=\"\",\"\",'Calcolo d'!L15)","v":""},{"$f":"+IF('Calcolo d'!M15=\"\",\"\",'Calcolo d'!M15)","v":""},""]
[null,null,{"$f":"+'Calcolo d'!B16","v":""},{"$f":"+IF('Calcolo d'!H16=\"\",\"\",'Calcolo d'!H16)","v":""},{"$f":"+IF('Calcolo d'!I16=\"\",\"\",'Calcolo d'!I16)","v":""},{"$f":"+IF('Calcolo d'!J16=\"\",\"\",'Calcolo d'!J16)","v":""},"",{"$f":"+IF('Calcolo d'!K16=\"\",\"\",'Calcolo d'!K16)","v":""},{"$f":"+IF('Calcolo d'!L16=\"\",\"\",'Calcolo d'!L16)","v":""},{"$f":"+IF('Calcolo d'!M16=\"\",\"\",'Calcolo d'!M16)","v":""},""]
[null,null,{"$f":"+'Calcolo d'!B17","v":""},{"$f":"+IF('Calcolo d'!H17=\"\",\"\",'Calcolo d'!H17)","v":""},{"$f":"+IF('Calcolo d'!I17=\"\",\"\",'Calcolo d'!I17)","v":""},{"$f":"+IF('Calcolo d'!J17=\"\",\"\",'Calcolo d'!J17)","v":""},"",{"$f":"+IF('Calcolo d'!K17=\"\",\"\",'Calcolo d'!K17)","v":""},{"$f":"+IF('Calcolo d'!L17=\"\",\"\",'Calcolo d'!L17)","v":""},{"$f":"+IF('Calcolo d'!M17=\"\",\"\",'Calcolo d'!M17)","v":""},""]
[null,null,{"$f":"+'Calcolo d'!B18","v":""},{"$f":"+IF('Calcolo d'!H18=\"\",\"\",'Calcolo d'!H18)","v":""},{"$f":"+IF('Calcolo d'!I18=\"\",\"\",'Calcolo d'!I18)","v":""},{"$f":"+IF('Calcolo d'!J18=\"\",\"\",'Calcolo d'!J18)","v":""},"",{"$f":"+IF('Calcolo d'!K18=\"\",\"\",'Calcolo d'!K18)","v":""},{"$f":"+IF('Calcolo d'!L18=\"\",\"\",'Calcolo d'!L18)","v":""},{"$f":"+IF('Calcolo d'!M18=\"\",\"\",'Calcolo d'!M18)","v":""},""]
[null,null,{"$f":"+'Calcolo d'!B19","v":""},{"$f":"+IF('Calcolo d'!H19=\"\",\"\",'Calcolo d'!H19)","v":""},{"$f":"+IF('Calcolo d'!I19=\"\",\"\",'Calcolo d'!I19)","v":""},{"$f":"+IF('Calcolo d'!J19=\"\",\"\",'Calcolo d'!J19)","v":""},"",{"$f":"+IF('Calcolo d'!K19=\"\",\"\",'Calcolo d'!K19)","v":""},{"$f":"+IF('Calcolo d'!L19=\"\",\"\",'Calcolo d'!L19)","v":""},{"$f":"+IF('Calcolo d'!M19=\"\",\"\",'Calcolo d'!M19)","v":""},""]
[null,null,null,{"$f":"+IF('Calcolo d'!H20=\"\",\"\",'Calcolo d'!H20)","v":""},{"$f":"+IF('Calcolo d'!I20=\"\",\"\",'Calcolo d'!I20)","v":""},{"$f":"+IF('Calcolo d'!J20=\"\",\"\",'Calcolo d'!J20)","v":""},"",{"$f":"+IF('Calcolo d'!K20=\"\",\"\",'Calcolo d'!K20)","v":""},{"$f":"+IF('Calcolo d'!L20=\"\",\"\",'Calcolo d'!L20)","v":""},{"$f":"+IF('Calcolo d'!M20=\"\",\"\",'Calcolo d'!M20)","v":""},""]
[null,null,null,{"$f":"+IF('Calcolo d'!H21=\"\",\"\",'Calcolo d'!H21)","v":""},{"$f":"+IF('Calcolo d'!I21=\"\",\"\",'Calcolo d'!I21)","v":""},{"$f":"+IF('Calcolo d'!J21=\"\",\"\",'Calcolo d'!J21)","v":""},"",{"$f":"+IF('Calcolo d'!K21=\"\",\"\",'Calcolo d'!K21)","v":""},{"$f":"+IF('Calcolo d'!L21=\"\",\"\",'Calcolo d'!L21)","v":""},{"$f":"+IF('Calcolo d'!M21=\"\",\"\",'Calcolo d'!M21)","v":""},""]
[null,null,{"$f":"+'Calcolo d'!B22","v":"<Electricity>"},{"$f":"+IF('Calcolo d'!H22=\"\",\"\",'Calcolo d'!H22)","v":""},{"$f":"+IF('Calcolo d'!I22=\"\",\"\",'Calcolo d'!I22)","v":""},{"$f":"+IF('Calcolo d'!J22=\"\",\"\",'Calcolo d'!J22)","v":""},"",{"$f":"+IF('Calcolo d'!K22=\"\",\"\",'Calcolo d'!K22)","v":""},{"$f":"+IF('Calcolo d'!L22=\"\",\"\",'Calcolo d'!L22)","v":""},{"$f":"+IF('Calcolo d'!M22=\"\",\"\",'Calcolo d'!M22)","v":""},""]
[null,null,{"$f":"+'Calcolo d'!B23","v":"<Natural gas>"},{"$f":"+IF('Calcolo d'!H23=\"\",\"\",'Calcolo d'!H23)","v":""},{"$f":"+IF('Calcolo d'!I23=\"\",\"\",'Calcolo d'!I23)","v":""},{"$f":"+IF('Calcolo d'!J23=\"\",\"\",'Calcolo d'!J23)","v":""},"",{"$f":"+IF('Calcolo d'!K23=\"\",\"\",'Calcolo d'!K23)","v":""},{"$f":"+IF('Calcolo d'!L23=\"\",\"\",'Calcolo d'!L23)","v":""},{"$f":"+IF('Calcolo d'!M23=\"\",\"\",'Calcolo d'!M23)","v":""},"",null,null,null,"LCA Results"]
[null,null,"Total",{"$f":"+SUM(D16:D36)","v":0},0,0,0,0,0,0,0]
[]
[]
[]
[]
[]
[]
[]
[]
[]
[null,null,null,null,null,null,null,null,null,null,null,null,null,null,"Input pages"]

{"sheet":"Impacts_Conventional_system_PV","index":15,"n_rows":42,"n_cols":28,"rows_kept":42,"cut":false,"hidden":true,"merged":[[11,27,12,28],[104,2,124,10],[13,3,13,6],[13,7,13,10],[38,2,58,10],[60,2,80,10],[82,2,102,10]]}
[]
[]
[]
[]
[]
[]
[]
[]
[]
[]
[]
[null,null,null,null,null,null,null,null,null,null,null,null,null,null,"General Information",null,null,null,null,null,null,null,null,null,null,null,null,"Notes "]
[]
[null,null,"COMPONENTS OF THE CONVENTIONAL SYSTEM WITH PV","GLOBAL ENERGY REQUIREMENT (GER) (MJ)",null,null,null,"GLOBAL WARMING POTENTIAL (GWP) (kg CO2eq)"]
[null,null,null,"Manufacturing","Operation","End-of-Life","Total","Manufacturing","Operation","End-of-Life","Total"]
[null,null,{"$f":"+'Calcolo c'!B3","v":"<Battery>"},{"$f":"+IF('Calcolo c'!H3=\"\",\"\",'Calcolo c'!H3)","v":""},{"$f":"+IF('Calcolo c'!I3=\"\",\"\",'Calcolo c'!I3)","v":""},{"$f":"+IF('Calcolo c'!J3=\"\",\"\",'Calcolo c'!J3)","v":""},{"$f":"+IF(SUM(D16:F16)=0,\"\",SUM(D16:F16))","v":""},{"$f":"+IF('Calcolo c'!K3=\"\",\"\",'Calcolo c'!K3)","v":""},{"$f":"+IF('Calcolo c'!L3=\"\",\"\",'Calcolo c'!L3)","v":""},{"$f":"+IF('Calcolo c'!M3=\"\",\"\",'Calcolo c'!M3)","v":""},{"$f":"+IF(SUM(H16:J16)=0,\"\",SUM(H16:J16))","v":""}]
[null,null,{"$f":"+'Calcolo c'!B4","v":"<Chiller (conventional)>"},{"$f":"+IF('Calcolo c'!H4=\"\",\"\",'Calcolo c'!H4)","v":""},{"$f":"+IF('Calcolo c'!I4=\"\",\"\",'Calcolo c'!I4)","v":""},{"$f":"+IF('Calcolo c'!J4=\"\",\"\",'Calcolo c'!J4)","v":""},{"$f":"+IF(SUM(D17:F17)=0,\"\",SUM(D17:F17))","v":""},{"$f":"+IF('Calcolo c'!K4=\"\",\"\",'Calcolo c'!K4)","v":""},{"$f":"+IF('Calcolo c'!L4=\"\",\"\",'Calcolo c'!L4)","v":""},{"$f":"+IF('Calcolo c'!M4=\"\",\"\",'Calcolo c'!M4)","v":""},{"$f":"+IF(SUM(H17:J17)=0,\"\",SUM(H17:J17))","v":""}]
[null,null,{"$f":"+'Calcolo c'!B5","v":"<Electric installation>"},{"$f":"+IF('Calcolo c'!H5=\"\",\"\",'Calcolo c'!H5)","v":""},{"$f":"+IF('Calcolo c'!I5=\"\",\"\",'Calcolo c'!I5)","v":""},{"$f":"+IF('Calcolo c'!J5=\"\",\"\",'Calcolo c'!J5)","v":""},"",{"$f":"+IF('Calcolo c'!K5=\"\",\"\",'Calcolo c'!K5)","v":""},{"$f":"+IF('Calcolo c'!L5=\"\",\"\",'Calcolo c'!L5)","v":""},{"$f":"+IF('Calcolo c'!M5=\"\",\"\",'Calcolo c'!M5)","v":""},""]
[null,null,{"$f":"+'Calcolo c'!B6","v":"<Gas boiler >"},{"$f":"+IF('Calcolo c'!H6=\"\",\"\",'Calcolo c'!H6)","v":""},{"$f":"+IF('Calcolo c'!I6=\"\",\"\",'Calcolo c'!I6)","v":""},{"$f":"+IF('Calcolo c'!J6=\"\",\"\",'Calcolo c'!J6)","v":""},"",{"$f":"+IF('Calcolo c'!K6=\"\",\"\",'Calcolo c'!K6)","v":""},{"$f":"+IF('Calcolo c'!L6=\"\",\"\",'Calcolo c'!L6)","v":""},{"$f":"+IF('Calcolo c'!M6=\"\",\"\",'Calcolo c'!M6)","v":""},""]
[null,null,{"$f":"+'Calcolo c'!B7","v":"<Heat-pump>"},{"$f":"+IF('Calcolo c'!H7=\"\",\"\",'Calcolo c'!H7)","v":""},{"$f":"+IF('Calcolo c'!I7=\"\",\"\",'Calcolo c'!I7)","v":""},{"$f":"+IF('Calcolo c'!J7=\"\",\"\",'Calcolo c'!J7)","v":""},"",{"$f":"+IF('Calcolo c'!K7=\"\",\"\",'Calcolo c'!K7)","v":""},{"$f":"+IF('Calcolo c'!L7=\"\",\"\",'Calcolo c'!L7)","v":""},{"$f":"+IF('Calcolo c'!M7=\"\",\"\",'Calcolo c'!M7)","v":""},""]
[null,null,{"$f":"+'Calcolo c'!B8","v":"<Inverter >"},{"$f":"+IF('Calcolo c'!H8=\"\",\"\",'Calcolo c'!H8)","v":""},{"$f":"+IF('Calcolo c'!I8=\"\",\"\",'Calcolo c'!I8)","v":""},{"$f":"+IF('Calcolo c'!J8=\"\",\"\",'Calcolo c'!J8)","v":""},"",{"$f":"+IF('Calcolo c'!K8=\"\",\"\",'Calcolo c'!K8)","v":""},{"$f":"+IF('Calcolo c'!L8=\"\",\"\",'Calcolo c'!L8)","v":""},{"$f":"+IF('Calcolo c'!M8=\"\",\"\",'Calcolo c'!M8)","v":""},""]
[null,null,{"$f":"+'Calcolo c'!B9","v":"<Photovoltaic panel>"},{"$f":"+IF('Calcolo c'!H9=\"\",\"\",'Calcolo c'!H9)","v":""},{"$f":"+IF('Calcolo c'!I9=\"\",\"\",'Calcolo c'!I9)","v":""},{"$f":"+IF('Calcolo c'!J9=\"\",\"\",'Calcolo c'!J9)","v":""},"",{"$f":"+IF('Calcolo c'!K9=\"\",\"\",'Calcolo c'!K9)","v":""},{"$f":"+IF('Calcolo c'!L9=\"\",\"\",'Calcolo c'!L9)","v":""},{"$f":"+IF('Calcolo c'!M9=\"\",\"\",'Calcolo c'!M9)","v":""},"",null,null,null,"LCA Results"]
[null,null,{"$f":"+'Calcolo c'!B10","v":"<Pipes>"},{"$f":"+IF('Calcolo c'!H10=\"\",\"\",'Calcolo c'!H10)","v":""},{"$f":"+IF('Calcolo c'!I10=\"\",\"\",'Calcolo c'!I10)","v":""},{"$f":"+IF('Calcolo c'!J10=\"\",\"\",'Calcolo c'!J10)","v":""},"",{"$f":"+IF('Calcolo c'!K10=\"\",\"\",'Calcolo c'!K10)","v":""},{"$f":"+IF('Calcolo c'!L10=\"\",\"\",'Calcolo c'!L10)","v":""},{"$f":"+IF('Calcolo c'!M10=\"\",\"\",'Calcolo c'!M10)","v":""},""]
[null,null,{"$f":"+'Calcolo c'!B11","v":"<Pump>"},{"$f":"+IF('Calcolo c'!H11=\"\",\"\",'Calcolo c'!H11)","v":""},{"$f":"+IF('Calcolo c'!I11=\"\",\"\",'Calcolo c'!I11)","v":""},{"$f":"+IF('Calcolo c'!J11=\"\",\"\",'Calcolo c'!J11)","v":""},"",{"$f":"+IF('Calcolo c'!K11=\"\",\"\",'Calcolo c'!K11)","v":""},{"$f":"+IF('Calcolo c'!L11=\"\",\"\",'Calcolo c'!L11)","v":""},{"$f":"+IF('Calcolo c'!M11=\"\",\"\",'Calcolo c'!M11)","v":""},""]
[null,null,{"$f":"+'Calcolo c'!B12","v":""},{"$f":"+IF('Calcolo c'!H12=\"\",\"\",'Calcolo c'!H12)","v":""},{"$f":"+IF('Calcolo c'!I12=\"\",\"\",'Calcolo c'!I12)","v":""},{"$f":"+IF('Calcolo c'!J12=\"\",\"\",'Calcolo c'!J12)","v":""},"",{"$f":"+IF('Calcolo c'!K12=\"\",\"\",'Calcolo c'!K12)","v":""},{"$f":"+IF('Calcolo c'!L12=\"\",\"\",'Calcolo c'!L12)","v":""},{"$f":"+IF('Calcolo c'!M12=\"\",\"\",'Calcolo c'!M12)","v":""},""]
[null,null,{"$f":"+'Calcolo c'!B13","v":""},{"$f":"+IF('Calcolo c'!H13=\"\",\"\",'Calcolo c'!H13)","v":""},{"$f":"+IF('Calcolo c'!I13=\"\",\"\",'Calcolo c'!I13)","v":""},{"$f":"+IF('Calcolo c'!J13=\"\",\"\",'Calcolo c'!J13)","v":""},"",{"$f":"+IF('Calcolo c'!K13=\"\",\"\",'Calcolo c'!K13)","v":""},{"$f":"+IF('Calcolo c'!L13=\"\",\"\",'Calcolo c'!L13)","v":""},{"$f":"+IF('Calcolo c'!M13=\"\",\"\",'Calcolo c'!M13)","v":""},""]
[null,null,{"$f":"+'Calcolo c'!B14","v":""},{"$f":"+IF('Calcolo c'!H14=\"\",\"\",'Calcolo c'!H14)","v":""},{"$f":"+IF('Calcolo c'!I14=\"\",\"\",'Calcolo c'!I14)","v":""},{"$f":"+IF('Calcolo c'!J14=\"\",\"\",'Calcolo c'!J14)","v":""},"",{"$f":"+IF('Calcolo c'!K14=\"\",\"\",'Calcolo c'!K14)","v":""},{"$f":"+IF('Calcolo c'!L14=\"\",\"\",'Calcolo c'!L14)","v":""},{"$f":"+IF('Calcolo c'!M14=\"\",\"\",'Calcolo c'!M14)","v":""},""]
[null,null,{"$f":"+'Calcolo c'!B15","v":""},{"$f":"+IF('Calcolo c'!H15=\"\",\"\",'Calcolo c'!H15)","v":""},{"$f":"+IF('Calcolo c'!I15=\"\",\"\",'Calcolo c'!I15)","v":""},{"$f":"+IF('Calcolo c'!J15=\"\",\"\",'Calcolo c'!J15)","v":""},"",{"$f":"+IF('Calcolo c'!K15=\"\",\"\",'Calcolo c'!K15)","v":""},{"$f":"+IF('Calcolo c'!L15=\"\",\"\",'Calcolo c'!L15)","v":""},{"$f":"+IF('Calcolo c'!M15=\"\",\"\",'Calcolo c'!M15)","v":""},""]
[null,null,{"$f":"+'Calcolo c'!B16","v":""},{"$f":"+IF('Calcolo c'!H16=\"\",\"\",'Calcolo c'!H16)","v":""},{"$f":"+IF('Calcolo c'!I16=\"\",\"\",'Calcolo c'!I16)","v":""},{"$f":"+IF('Calcolo c'!J16=\"\",\"\",'Calcolo c'!J16)","v":""},"",{"$f":"+IF('Calcolo c'!K16=\"\",\"\",'Calcolo c'!K16)","v":""},{"$f":"+IF('Calcolo c'!L16=\"\",\"\",'Calcolo c'!L16)","v":""},{"$f":"+IF('Calcolo c'!M16=\"\",\"\",'Calcolo c'!M16)","v":""},""]
[null,null,{"$f":"+'Calcolo c'!B17","v":""},{"$f":"+IF('Calcolo c'!H17=\"\",\"\",'Calcolo c'!H17)","v":""},{"$f":"+IF('Calcolo c'!I17=\"\",\"\",'Calcolo c'!I17)","v":""},{"$f":"+IF('Calcolo c'!J17=\"\",\"\",'Calcolo c'!J17)","v":""},"",{"$f":"+IF('Calcolo c'!K17=\"\",\"\",'Calcolo c'!K17)","v":""},{"$f":"+IF('Calcolo c'!L17=\"\",\"\",'Calcolo c'!L17)","v":""},{"$f":"+IF('Calcolo c'!M17=\"\",\"\",'Calcolo c'!M17)","v":""},""]
[null,null,{"$f":"+'Calcolo c'!B18","v":""},{"$f":"+IF('Calcolo c'!H18=\"\",\"\",'Calcolo c'!H18)","v":""},{"$f":"+IF('Calcolo c'!I18=\"\",\"\",'Calcolo c'!I18)","v":""},{"$f":"+IF('Calcolo c'!J18=\"\",\"\",'Calcolo c'!J18)","v":""},"",{"$f":"+IF('Calcolo c'!K18=\"\",\"\",'Calcolo c'!K18)","v":""},{"$f":"+IF('Calcolo c'!L18=\"\",\"\",'Calcolo c'!L18)","v":""},{"$f":"+IF('Calcolo c'!M18=\"\",\"\",'Calcolo c'!M18)","v":""},""]
[null,null,{"$f":"+'Calcolo c'!B19","v":""},{"$f":"+IF('Calcolo c'!H19=\"\",\"\",'Calcolo c'!H19)","v":""},{"$f":"+IF('Calcolo c'!I19=\"\",\"\",'Calcolo c'!I19)","v":""},{"$f":"+IF('Calcolo c'!J19=\"\",\"\",'Calcolo c'!J19)","v":""},"",{"$f":"+IF('Calcolo c'!K19=\"\",\"\",'Calcolo c'!K19)","v":""},{"$f":"+IF('Calcolo c'!L19=\"\",\"\",'Calcolo c'!L19)","v":""},{"$f":"+IF('Calcolo c'!M19=\"\",\"\",'Calcolo c'!M19)","v":""},""]
[null,null,null,{"$f":"+IF('Calcolo c'!H20=\"\",\"\",'Calcolo c'!H20)","v":""},{"$f":"+IF('Calcolo c'!I20=\"\",\"\",'Calcolo c'!I20)","v":""},{"$f":"+IF('Calcolo c'!J20=\"\",\"\",'Calcolo c'!J20)","v":""},"",{"$f":"+IF('Calcolo c'!K20=\"\",\"\",'Calcolo c'!K20)","v":""},{"$f":"+IF('Calcolo c'!L20=\"\",\"\",'Calcolo c'!L20)","v":""},{"$f":"+IF('Calcolo c'!M20=\"\",\"\",'Calcolo c'!M20)","v":""},""]
[null,null,null,{"$f":"+IF('Calcolo c'!H21=\"\",\"\",'Calcolo c'!H21)","v":""},{"$f":"+IF('Calcolo c'!I21=\"\",\"\",'Calcolo c'!I21)","v":""},{"$f":"+IF('Calcolo c'!J21=\"\",\"\",'Calcolo c'!J21)","v":""},"",{"$f":"+IF('Calcolo c'!K21=\"\",\"\",'Calcolo c'!K21)","v":""},{"$f":"+IF('Calcolo c'!L21=\"\",\"\",'Calcolo c'!L21)","v":""},{"$f":"+IF('Calcolo c'!M21=\"\",\"\",'Calcolo c'!M21)","v":""},""]
[null,null,{"$f":"+'Calcolo c'!B22","v":"<Electricity>"},{"$f":"+IF('Calcolo c'!H22=\"\",\"\",'Calcolo c'!H22)","v":""},{"$f":"+IF('Calcolo c'!I22=\"\",\"\",'Calcolo c'!I22)","v":""},{"$f":"+IF('Calcolo c'!J22=\"\",\"\",'Calcolo c'!J22)","v":""},"",{"$f":"+IF('Calcolo c'!K22=\"\",\"\",'Calcolo c'!K22)","v":""},{"$f":"+IF('Calcolo c'!L22=\"\",\"\",'Calcolo c'!L22)","v":""},{"$f":"+IF('Calcolo c'!M22=\"\",\"\",'Calcolo c'!M22)","v":""},""]
[null,null,{"$f":"+'Calcolo c'!B23","v":"<Natural gas>"},{"$f":"+IF('Calcolo c'!H23=\"\",\"\",'Calcolo c'!H23)","v":""},{"$f":"+IF('Calcolo c'!I23=\"\",\"\",'Calcolo c'!I23)","v":""},{"$f":"+IF('Calcolo c'!J23=\"\",\"\",'Calcolo c'!J23)","v":""},"",{"$f":"+IF('Calcolo c'!K23=\"\",\"\",'Calcolo c'!K23)","v":""},{"$f":"+IF('Calcolo c'!L23=\"\",\"\",'Calcolo c'!L23)","v":""},{"$f":"+IF('Calcolo c'!M23=\"\",\"\",'Calcolo c'!M23)","v":""},""]
[null,null,"Total",{"$f":"+SUM(D16:D36)","v":0},0,0,0,0,0,0,0]
[]
[]
[]
[]
[null,null,null,null,null,null,null,null,null,null,null,null,null,null,"Input pages"]

{"sheet":"Impacts comparison","index":16,"n_rows":45,"n_cols":21,"rows_kept":45,"cut":false,"hidden":true,"merged":[[13,3,13,6],[13,7,13,10]]}
[]
[]
[]
[]
[]
[]
[]
[]
[]
[null,null,null,null,null,null,null,null,null,null,null,null,null,"General Information"]
[]
[]
[]
[null,null,"SYSTEM","GLOBAL ENERGY REQUIREMENT (GER) (MJ)",null,null,null,"GLOBAL WARMING POTENTIAL (GWP) (kg CO2eq)"]
[null,null,null,"Manufacturing","Operation","End-of-Life","Total","Manufacturing","Operation","End-of-Life","Total"]
[null,null,"SHC System",{"$f":"+'Impacts_SHC system'!D37","v":0},{"$f":"+'Impacts_SHC system'!E37","v":0},{"$f":"+'Impacts_SHC system'!F37","v":0},{"$f":"+IF(SUM(D16:F16)=0,\"\",SUM(D16:F16))","v":""},{"$f":"+'Impacts_SHC system'!H37","v":0},{"$f":"+'Impacts_SHC system'!I37","v":0},{"$f":"+'Impacts_SHC system'!J37","v":0},{"$f":"+IF(SUM(H16:J16)=0,\"\",SUM(H16:J16))","v":""}]
[null,null,"SHC System with PV",{"$f":"+'Impacts__SHC system_PV'!D37","v":0},{"$f":"+'Impacts__SHC system_PV'!E37","v":0},{"$f":"+'Impacts__SHC system_PV'!F37","v":0},{"$f":"+IF(SUM(D17:F17)=0,\"\",SUM(D17:F17))","v":""},{"$f":"+'Impacts__SHC system_PV'!H37","v":0},{"$f":"+'Impacts__SHC system_PV'!I37","v":0},{"$f":"+'Impacts__SHC system_PV'!J37","v":0},{"$f":"+IF(SUM(H17:J17)=0,\"\",SUM(H17:J17))","v":""}]
[null,null,"Conventional System",{"$f":"+Impacts__Conventional_system!D37","v":0},{"$f":"+Impacts__Conventional_system!E37","v":0},{"$f":"+Impacts__Conventional_system!F37","v":0},{"$f":"+IF(SUM(D18:F18)=0,\"\",SUM(D18:F18))","v":""},{"$f":"+Impacts__Conventional_system!H37","v":0},{"$f":"+Impacts__Conventional_system!I37","v":0},{"$f":"+Impacts__Conventional_system!J37","v":0},{"$f":"+IF(SUM(H18:J18)=0,\"\",SUM(H18:J18))","v":""},null,null,"LCA Results",null,null,null,null,null,null,"Notes"]
[null,null,"Conventional System with PV",{"$f":"+Impacts_Conventional_system_PV!D37","v":0},{"$f":"+Impacts_Conventional_system_PV!E37","v":0},{"$f":"+Impacts_Conventional_system_PV!F37","v":0},{"$f":"+IF(SUM(D19:F19)=0,\"\",SUM(D19:F19))","v":""},{"$f":"+Impacts_Conventional_system_PV!H37","v":0},{"$f":"+Impacts_Conventional_system_PV!I37","v":0},{"$f":"+Impacts_Conventional_system_PV!J37","v":0},{"$f":"+IF(SUM(H19:J19)=0,\"\",SUM(H19:J19))","v":""}]
[]
[]
[]
[]
[]
[]
[]
[]
[]
[null,null,null,null,null,null,null,null,null,null,null,null,null,"Input pages"]
[]
[]
[]
[]
[]
[]
[]
[]
[]
[]
[]
[]
[]
[]
[]
[null,null,null,null,null,null,null,null,null,null,null,null,null,null,null,null,null,"elisa2017"]

{"sheet":"Payback indices","index":17,"n_rows":47,"n_cols":38,"rows_kept":47,"cut":false,"hidden":true,"merged":[[45,2,45,3],[28,10,28,13],[38,12,38,13],[38,10,38,11],[37,12,37,13],[37,10,37,11],[35,10,35,13],[36,10,36,11],[36,12,36,13],[29,12,29,13],[31,12,31,13],[31,10,31,11],[30,12,30,13],[30,10,30,11],[44,12,44,13],[44,10,44,11],[42,10,42,13],[43,10,43,11],[43,12,43,13],[12,12,12,13],[27,4,27,7],[16,4,16,7],[19,12,19,13],[19,10,19,11],[16,11,16,12],[16,9,16,10],[12,10,12,11],[22,6,22,7],[22,4,22,5],[21,4,21,7],[23,4,23,5],[24,4,24,5],[23,6,23,7],[24,6,24,7],[29,10,29,11],[46,2,46,3],[43,4,43,7],[44,4,44,5],[44,6,44,7],[38,4,38,7],[41,9,41,13],[34,9,34,13],[35,4,35,5],[46,4,46,5],[46,6,46,7],[45,4,45,5],[45,6,45,7],[39,2,42,7],[45,12,45,13],[45,10,45,11],[14,9,14,12],[17,2,20,7],[24,2,24,3],[23,2,23,3],[27,9,27,13],[35,6,35,7],[34,4,34,5],[34,6,34,7],[28,2,31,7],[34,2,34,3],[35,2,35,3],[33,4,33,5],[33,6,33,7],[32,4,32,7]]}
[]
[]
[]
[]
[]
[]
[]
[]
[]
[]
[]
[]
[]
[]
[null,null,null,null,null,null,null,null,null,"Nomenclature",null,null,null,null,null,null,null,null,null,null,null,null,null,null,null,null,null,"Summary of Values"]
[]
[null,null,"Energy Payback Time",null,null,null,null,null,null,"Check for calculations",null,"Close Info ",null,null,null,null,null,null,null,null,null,null,null,null,null,"Close Nomenclatures "]
[null,null,"Energy Payback Time (E-PT) is defined as the time during which the SHC system (with or without PV) must work to harvest as much primary energy as it requires for its manufacturing and end-of-life. The harvested energy is considered as net of the energy expenditure for the system use."]
[]
[null,null,null,null,null,null,null,null,null,null,"Manufacturing (M) and End-of-life (EOL) step",null,"Operation  (O) step"]
[null,null,null,null,null,null,null,null,null,null,"GERM-EOL[MJ]","GWPM-EOL [kg CO2eq]","GERO [MJ]","GWPO [kg CO2eq]",null,null,null,null,null,null,null,null,null,null,null,null,null,null,null,null,null,null,null,null,null,null,null,"years"]
[null,null,null,null,"E-PT=(GERj-th,SHC-system - GER i-th,Conventional-system )/Eyear",null,null,null,null,{"$f":"+'Impacts comparison'!C16","v":"SHC System"},{"$f":"+SUM('Impacts comparison'!$D16,'Impacts comparison'!$F16)","v":0},{"$f":"+SUM('Impacts comparison'!$H16,'Impacts comparison'!$J16)","v":0},{"$f":"+IFERROR('Impacts comparison'!$E16,\"\")","v":0},{"$f":"+IFERROR('Impacts comparison'!$I16,\"\")","v":0},null,null,null,null,"General Information",null,null,null,null,null,null,null,null,null,null,null,null,null,null,null,null,null,null,{"$f":"+'SHC system'!$F$37","v":0}]
[null,null,null,null,{"$f":"+'Impacts comparison'!$C$18","v":"Conventional System"},null,{"$f":"+'Impacts comparison'!$C$19","v":"Conventional System with PV"},null,null,{"$f":"+'Impacts comparison'!C17","v":"SHC System with PV"},{"$f":"+SUM('Impacts comparison'!$D17,'Impacts comparison'!$F17)","v":0},{"$f":"+SUM('Impacts comparison'!$H17,'Impacts comparison'!$J17)","v":0},{"$f":"+IFERROR('Impacts comparison'!$E17,\"\")","v":0},{"$f":"+IFERROR('Impacts comparison'!$I17,\"\")","v":0},null,null,null,null,null,null,null,null,null,null,null,null,null,null,null,null,null,null,null,null,null,null,null,{"$f":"+'SHC system with PV'!$F$37","v":0}]
[null,null,{"$f":"+'Impacts comparison'!$C$16","v":"SHC System"},null,{"$f":"+IF(K24=0,\"\",IFERROR((K22-$K$24)/K31,\"\"))","v":""},null,{"$f":"+IF(K25=0,\"\",IFERROR((K22-$K$25)/M31,\"\"))","v":""},null,null,{"$f":"+'Impacts comparison'!C18","v":"Conventional System"},{"$f":"+SUM('Impacts comparison'!$D18,'Impacts comparison'!$F18)","v":0},{"$f":"+SUM('Impacts comparison'!$H18,'Impacts comparison'!$J18)","v":0},{"$f":"+IFERROR('Impacts comparison'!$E18,\"\")","v":0},{"$f":"+IFERROR('Impacts comparison'!$I18,\"\")","v":0},null,null,null,null,null,null,null,null,null,null,null,null,null,null,null,null,null,null,null,null,null,null,null,{"$f":"+'Conventional System '!$F$37","v":0}]
[null,null,{"$f":"+'Impacts comparison'!$C$17","v":"SHC System with PV"},null,{"$f":"++IF(K24=0,\"\",IFERROR((K23-$K$24)/K32,\"\"))","v":""},null,{"$f":"+IF(K25=0,\"\",IFERROR((K23-$K$25)/M32,\"\"))","v":""},null,null,{"$f":"+'Impacts comparison'!C19","v":"Conventional System with PV"},{"$f":"+SUM('Impacts comparison'!$D19,'Impacts comparison'!$F19)","v":0},{"$f":"+SUM('Impacts comparison'!$H19,'Impacts comparison'!$J19)","v":0},{"$f":"+IFERROR('Impacts comparison'!$E19,\"\")","v":0},{"$f":"+IFERROR('Impacts comparison'!$I19,\"\")","v":0},null,null,null,null,null,null,null,null,null,null,null,null,null,null,null,null,null,null,null,null,null,null,null,{"$f":"+'Conventional System with PV'!$F$37","v":0}]
[]
[null,null,null,null,null,null,null,null,null,"Eyear"]
[null,null,"GWP Payback Time ",null,null,null,null,null,null,"Eyear is the net yearly primary energy saving due to the use of the SHC system (with or without PV)  with respect to the conventional one."]
[null,null,"GWP Payback Time (GWP-PT) is defined as the time during which the avoided GWP impact due to the use of the  SHC system (with or without PV)  is equal to GWP impact caused during its manufacturing and end-of-life.",null,null,null,null,null,null,null,"E year =( GER O,i-th,Conventional-system -GERO,i-th,SHC-system )/Y"]
[null,null,null,null,null,null,null,null,null,null,{"$f":"+'Impacts comparison'!$C$18","v":"Conventional System"},null,{"$f":"+'Impacts comparison'!$C$19","v":"Conventional System with PV"}]
[null,null,null,null,null,null,null,null,null,{"$f":"+'Impacts comparison'!$C$16","v":"SHC System"},{"$f":"++IF(K24=0,\"\",IFERROR((M24-$M$22)/AL22,\"\"))","v":""},null,{"$f":"+IF(K25=0,\"\",IFERROR((M25-$M$22)/AL22,\"\"))","v":""}]
[null,null,null,null,null,null,null,null,null,{"$f":"+'Impacts comparison'!$C$17","v":"SHC System with PV"},{"$f":"++IF(K24=0,\"\",IFERROR((M24-$M$23)/AL23,\"\"))","v":""},null,{"$f":"+IF(K25=0,\"\",IFERROR((M25-$M$23)/AL23,\"\"))","v":""},null,null,null,null,null,"LCA Results"]
[null,null,null,null,"GWP-PT =(GWPj-th,SHC-system - GWP i-th,Conventional-system )/GWPyear"]
[null,null,null,null,{"$f":"+'Impacts comparison'!$C$18","v":"Conventional System"},null,{"$f":"+'Impacts comparison'!$C$19","v":"Conventional System with PV"},null,null,"GWPyear"]
[null,null,{"$f":"+'Impacts comparison'!$C$16","v":"SHC System"},null,{"$f":"++IF(K24=0,\"\",IFERROR((L22-$L$24)/K38,\"\"))","v":""},null,{"$f":"+IF(K25=0,\"\",IFERROR((L22-$L$25)/M38,\"\"))","v":""},null,null,"GWPyear is the net yearly avoided GWP due to the use of the SHC system (with or without PV)  with respect to the conventional one."]
[null,null,{"$f":"+'Impacts comparison'!$C$17","v":"SHC System with PV"},null,{"$f":"++IF(K24=0,\"\",IFERROR((L23-$L$24)/K39,\"\"))","v":""},null,{"$f":"+IF(K25=0,\"\",IFERROR((L23-$L$25)/M39,\"\"))","v":""},null,null,null,"GWP year=( GWP O,i-th,Conventional-system -GWPO,j-th,SHC-system )/Y"]
[null,null,null,null,null,null,null,null,null,null,{"$f":"+'Impacts comparison'!$C$18","v":"Conventional System"},null,{"$f":"+'Impacts comparison'!$C$19","v":"Conventional System with PV"}]
[null,null,null,null,null,null,null,null,null,{"$f":"+'Impacts comparison'!$C$16","v":"SHC System"},{"$f":"++IF(K24=0,\"\",IFERROR((N24-$N$22)/AL22,\"\"))","v":""},null,{"$f":"+IF(K25=0,\"\",IFERROR((N25-$N$22)/AL22,\"\"))","v":""}]
[null,null,"Energy Return Ratio ",null,null,null,null,null,null,{"$f":"+'Impacts comparison'!$C$17","v":"SHC System with PV"},{"$f":"++IF(K24=0,\"\",IFERROR((N24-$N$23)/AL23,\"\"))","v":""},null,{"$f":"+IF(K25=0,\"\",IFERROR((N25-$N$23)/AL23,\"\"))","v":""}]
[null,null,"Energy Return Ratio (ERR) represents how many times the energy saving overcomes the global energy consumption due to the  SHC system (with or without PV) ."]
[null,null,null,null,null,null,null,null,null,"E Overall "]
[null,null,null,null,null,null,null,null,null,"E Overall is net primary energy saving during the overall lifetime of SHC system (with or without PV) with respect to the conventional one."]
[null,null,null,null,null,null,null,null,null,null,"E Overall,i-th,SHC-system=GER O,i-th,Conventional-system -GERO,i-th,SHC-system",null,null,null,null,null,null,null,"Input pages"]
[null,null,null,null,"ERR  =EOverall,j-th,SHC-system /GERi-th,SHC-system ",null,null,null,null,null,{"$f":"+'Impacts comparison'!$C$18","v":"Conventional System"},null,{"$f":"+'Impacts comparison'!$C$19","v":"Conventional System with PV"}]
[null,null,null,null,{"$f":"+'Impacts comparison'!$C$18","v":"Conventional System"},null,{"$f":"+'Impacts comparison'!$C$19","v":"Conventional System with PV"},null,null,{"$f":"+'Impacts comparison'!$C$16","v":"SHC System"},{"$f":"++IF(K24=0,\"\",IFERROR(($M$24-M22),\"\"))","v":""},null,{"$f":"+IF(K25=0,\"\",IFERROR(($M$25-M22),\"\"))","v":""}]
[null,null,{"$f":"+'Impacts comparison'!$C$16","v":"SHC System"},null,{"$f":"++IF(K24=0,\"\",IFERROR(K45/$K22,\"\"))","v":""},null,{"$f":"+IF(K25=0,\"\",IFERROR(M45/$K22,\"\"))","v":""},null,null,{"$f":"+'Impacts comparison'!$C$17","v":"SHC System with PV"},{"$f":"++IF(K24=0,\"\",IFERROR(($M$24-$M$23),\"\"))","v":""},null,{"$f":"+IF(K25=0,\"\",IFERROR(($M$25-M23),\"\"))","v":""}]
[null,null,{"$f":"+'Impacts comparison'!$C$17","v":"SHC System with PV"},null,{"$f":"++IF(K24=0,\"\",IFERROR(K46/$K23,\"\"))","v":""},null,{"$f":"+IF(K25=0,\"\",IFERROR(M46/$K23,\"\"))","v":""}]

{"sheet":"Impacts comparison (2)","index":18,"n_rows":29,"n_cols":20,"rows_kept":29,"cut":false,"hidden":true,"merged":[[13,3,13,6],[13,7,13,10]]}
[]
[]
[]
[]
[]
[]
[]
[]
[]
[null,null,null,null,null,null,null,null,null,null,null,null,null,"INFO MENU'"]
[]
[]
[]
[null,null,"SYSTEM","GLOBAL ENERGY REQUIREMENT (GER) (MJ)",null,null,null,"GLOBAL WARMING POTENTIAL (GWP) (kg CO2eq)"]
[null,null,null,"Manufacturing","Operation","End-of-Life","Total","Manufacturing","Operation","End-of-Life","Total"]
[null,null,"SHC System",{"$f":"+'Impacts_SHC system'!D37","v":0},{"$f":"+'Impacts_SHC system'!E37","v":0},{"$f":"+'Impacts_SHC system'!F37","v":0},{"$f":"+IF(SUM(D16:F16)=0,\"\",SUM(D16:F16))","v":""},{"$f":"+'Impacts_SHC system'!H37","v":0},{"$f":"+'Impacts_SHC system'!I37","v":0},{"$f":"+'Impacts_SHC system'!J37","v":0},{"$f":"+IF(SUM(H16:J16)=0,\"\",SUM(H16:J16))","v":""}]
[null,null,"SHC System with PV",{"$f":"+'Impacts__SHC system_PV'!D37","v":0},{"$f":"+'Impacts__SHC system_PV'!E37","v":0},{"$f":"+'Impacts__SHC system_PV'!F37","v":0},{"$f":"+IF(SUM(D17:F17)=0,\"\",SUM(D17:F17))","v":""},{"$f":"+'Impacts__SHC system_PV'!H37","v":0},{"$f":"+'Impacts__SHC system_PV'!I37","v":0},{"$f":"+'Impacts__SHC system_PV'!J37","v":0},{"$f":"+IF(SUM(H17:J17)=0,\"\",SUM(H17:J17))","v":""}]
[null,null,"Conventional System",{"$f":"+Impacts__Conventional_system!D37","v":0},{"$f":"+Impacts__Conventional_system!E37","v":0},{"$f":"+Impacts__Conventional_system!F37","v":0},{"$f":"+IF(SUM(D18:F18)=0,\"\",SUM(D18:F18))","v":""},{"$f":"+Impacts__Conventional_system!H37","v":0},{"$f":"+Impacts__Conventional_system!I37","v":0},{"$f":"+Impacts__Conventional_system!J37","v":0},{"$f":"+IF(SUM(H18:J18)=0,\"\",SUM(H18:J18))","v":""},null,null,"LCA Results"]
[null,null,null,null,null,null,null,null,null,null,null,null,null,null,null,null,null,null,null,"Notes"]
[]
[]
[]
[]
[]
[]
[]
[]
[]
[null,null,null,null,null,null,null,null,null,null,null,null,null,"Input pages"]

{"sheet":"Impacts comparison (3)","index":19,"n_rows":29,"n_cols":20,"rows_kept":29,"cut":false,"hidden":true,"merged":[[13,3,13,6],[13,7,13,10]]}
[]
[]
[]
[]
[]
[]
[]
[]
[]
[null,null,null,null,null,null,null,null,null,null,null,null,null,"INFO MENU'"]
[]
[]
[]
[null,null,"SYSTEM","GLOBAL ENERGY REQUIREMENT (GER) (MJ)",null,null,null,"GLOBAL WARMING POTENTIAL (GWP) (kg CO2eq)"]
[null,null,null,"Manufacturing","Operation","End-of-Life","Total","Manufacturing","Operation","End-of-Life","Total"]
[null,null,"SHC System",{"$f":"+'Impacts_SHC system'!D37","v":0},{"$f":"+'Impacts_SHC system'!E37","v":0},{"$f":"+'Impacts_SHC system'!F37","v":0},{"$f":"+IF(SUM(D16:F16)=0,\"\",SUM(D16:F16))","v":""},{"$f":"+'Impacts_SHC system'!H37","v":0},{"$f":"+'Impacts_SHC system'!I37","v":0},{"$f":"+'Impacts_SHC system'!J37","v":0},{"$f":"+IF(SUM(H16:J16)=0,\"\",SUM(H16:J16))","v":""}]
[null,null,"SHC System with PV",{"$f":"+'Impacts__SHC system_PV'!D37","v":0},{"$f":"+'Impacts__SHC system_PV'!E37","v":0},{"$f":"+'Impacts__SHC system_PV'!F37","v":0},{"$f":"+IF(SUM(D17:F17)=0,\"\",SUM(D17:F17))","v":""},{"$f":"+'Impacts__SHC system_PV'!H37","v":0},{"$f":"+'Impacts__SHC system_PV'!I37","v":0},{"$f":"+'Impacts__SHC system_PV'!J37","v":0},{"$f":"+IF(SUM(H17:J17)=0,\"\",SUM(H17:J17))","v":""}]
[null,null,"Conventional System with PV",{"$f":"+Impacts_Conventional_system_PV!D37","v":0},{"$f":"+Impacts_Conventional_system_PV!E37","v":0},{"$f":"+Impacts_Conventional_system_PV!F37","v":0},{"$f":"+IF(SUM(D18:F18)=0,\"\",SUM(D18:F18))","v":""},{"$f":"+Impacts_Conventional_system_PV!H37","v":0},{"$f":"+Impacts_Conventional_system_PV!I37","v":0},{"$f":"+Impacts_Conventional_system_PV!J37","v":0},{"$f":"+IF(SUM(H18:J18)=0,\"\",SUM(H18:J18))","v":""},null,null,"LCA Results",null,null,null,null,null,"Notes"]
[]
[]
[]
[]
[]
[]
[]
[]
[]
[]
[null,null,null,null,null,null,null,null,null,null,null,null,null,"Input pages"]

{"sheet":"Impacts comparison (4)","index":20,"n_rows":29,"n_cols":20,"rows_kept":29,"cut":false,"hidden":true,"merged":[[13,3,13,6],[13,7,13,10]]}
[]
[]
[]
[]
[]
[]
[]
[]
[]
[null,null,null,null,null,null,null,null,null,null,null,null,null,"INFO MENU'"]
[]
[]
[]
[null,null,"SYSTEM","GLOBAL ENERGY REQUIREMENT (GER) (MJ)",null,null,null,"GLOBAL WARMING POTENTIAL (GWP) (kg CO2eq)"]
[null,null,null,"Manufacturing","Operation","End-of-Life","Total","Manufacturing","Operation","End-of-Life","Total"]
[null,null,"SHC System",{"$f":"+'Impacts_SHC system'!D37","v":0},{"$f":"+'Impacts_SHC system'!E37","v":0},{"$f":"+'Impacts_SHC system'!F37","v":0},{"$f":"+IF(SUM(D16:F16)=0,\"\",SUM(D16:F16))","v":""},{"$f":"+'Impacts_SHC system'!H37","v":0},{"$f":"+'Impacts_SHC system'!I37","v":0},{"$f":"+'Impacts_SHC system'!J37","v":0},{"$f":"+IF(SUM(H16:J16)=0,\"\",SUM(H16:J16))","v":""}]
[null,null,"Conventional System",{"$f":"+Impacts__Conventional_system!D37","v":0},{"$f":"+Impacts__Conventional_system!E37","v":0},{"$f":"+Impacts__Conventional_system!F37","v":0},{"$f":"+IF(SUM(D17:F17)=0,\"\",SUM(D17:F17))","v":""},{"$f":"+Impacts__Conventional_system!H37","v":0},{"$f":"+Impacts__Conventional_system!I37","v":0},{"$f":"+Impacts__Conventional_system!J37","v":0},{"$f":"+IF(SUM(H17:J17)=0,\"\",SUM(H17:J17))","v":""}]
[null,null,"Conventional System with PV",{"$f":"+Impacts_Conventional_system_PV!D37","v":0},{"$f":"+Impacts_Conventional_system_PV!E37","v":0},{"$f":"+Impacts_Conventional_system_PV!F37","v":0},{"$f":"+IF(SUM(D18:F18)=0,\"\",SUM(D18:F18))","v":""},{"$f":"+Impacts_Conventional_system_PV!H37","v":0},{"$f":"+Impacts_Conventional_system_PV!I37","v":0},{"$f":"+Impacts_Conventional_system_PV!J37","v":0},{"$f":"+IF(SUM(H18:J18)=0,\"\",SUM(H18:J18))","v":""},null,null,"LCA Results",null,null,null,null,null,"Notes"]
[]
[]
[]
[]
[]
[]
[]
[]
[]
[]
[null,null,null,null,null,null,null,null,null,null,null,null,null,"Input pages"]

{"sheet":"Impacts comparison (5)","index":21,"n_rows":29,"n_cols":20,"rows_kept":29,"cut":false,"hidden":true,"merged":[[13,3,13,6],[13,7,13,10]]}
[]
[]
[]
[]
[]
[]
[]
[]
[]
[null,null,null,null,null,null,null,null,null,null,null,null,null,"INFO MENU'"]
[]
[]
[]
[null,null,"SYSTEM","GLOBAL ENERGY REQUIREMENT (GER) (MJ)",null,null,null,"GLOBAL WARMING POTENTIAL (GWP) (kg CO2eq)"]
[null,null,null,"Manufacturing","Operation","End-of-Life","Total","Manufacturing","Operation","End-of-Life","Total"]
[null,null,"SHC System with PV",{"$f":"+'Impacts__SHC system_PV'!D37","v":0},{"$f":"+'Impacts__SHC system_PV'!E37","v":0},{"$f":"+'Impacts__SHC system_PV'!F37","v":0},{"$f":"+IF(SUM(D16:F16)=0,\"\",SUM(D16:F16))","v":""},{"$f":"+'Impacts__SHC system_PV'!H37","v":0},{"$f":"+'Impacts__SHC system_PV'!I37","v":0},{"$f":"+'Impacts__SHC system_PV'!J37","v":0},{"$f":"+IF(SUM(H16:J16)=0,\"\",SUM(H16:J16))","v":""}]
[null,null,"Conventional System",{"$f":"+Impacts__Conventional_system!D37","v":0},{"$f":"+Impacts__Conventional_system!E37","v":0},{"$f":"+Impacts__Conventional_system!F37","v":0},{"$f":"+IF(SUM(D17:F17)=0,\"\",SUM(D17:F17))","v":""},{"$f":"+Impacts__Conventional_system!H37","v":0},{"$f":"+Impacts__Conventional_system!I37","v":0},{"$f":"+Impacts__Conventional_system!J37","v":0},{"$f":"+IF(SUM(H17:J17)=0,\"\",SUM(H17:J17))","v":""}]
[null,null,"Conventional System with PV",{"$f":"+Impacts_Conventional_system_PV!D37","v":0},{"$f":"+Impacts_Conventional_system_PV!E37","v":0},{"$f":"+Impacts_Conventional_system_PV!F37","v":0},{"$f":"+IF(SUM(D18:F18)=0,\"\",SUM(D18:F18))","v":""},{"$f":"+Impacts_Conventional_system_PV!H37","v":0},{"$f":"+Impacts_Conventional_system_PV!I37","v":0},{"$f":"+Impacts_Conventional_system_PV!J37","v":0},{"$f":"+IF(SUM(H18:J18)=0,\"\",SUM(H18:J18))","v":""},null,null,"LCA Results",null,null,null,null,null,"Notes"]
[]
[]
[]
[]
[]
[]
[]
[]
[]
[]
[null,null,null,null,null,null,null,null,null,null,null,null,null,"Input pages"]

{"sheet":"Impacts comparison (6)","index":22,"n_rows":29,"n_cols":20,"rows_kept":29,"cut":false,"hidden":true,"merged":[[13,3,13,6],[13,7,13,10]]}
[]
[]
[]
[]
[]
[]
[]
[]
[]
[null,null,null,null,null,null,null,null,null,null,null,null,null,"INFO MENU'"]
[]
[]
[]
[null,null,"SYSTEM","GLOBAL ENERGY REQUIREMENT (GER) (MJ)",null,null,null,"GLOBAL WARMING POTENTIAL (GWP) (kg CO2eq)"]
[null,null,null,"Manufacturing","Operation","End-of-Life","Total","Manufacturing","Operation","End-of-Life","Total"]
[null,null,"SHC System",{"$f":"+'Impacts_SHC system'!D37","v":0},{"$f":"+'Impacts_SHC system'!E37","v":0},{"$f":"+'Impacts_SHC system'!F37","v":0},{"$f":"+IF(SUM(D16:F16)=0,\"\",SUM(D16:F16))","v":""},{"$f":"+'Impacts_SHC system'!H37","v":0},{"$f":"+'Impacts_SHC system'!I37","v":0},{"$f":"+'Impacts_SHC system'!J37","v":0},{"$f":"+IF(SUM(H16:J16)=0,\"\",SUM(H16:J16))","v":""}]
[null,null,"SHC System with PV",{"$f":"+'Impacts__SHC system_PV'!D37","v":0},{"$f":"+'Impacts__SHC system_PV'!E37","v":0},{"$f":"+'Impacts__SHC system_PV'!F37","v":0},{"$f":"+IF(SUM(D17:F17)=0,\"\",SUM(D17:F17))","v":""},{"$f":"+'Impacts__SHC system_PV'!H37","v":0},{"$f":"+'Impacts__SHC system_PV'!I37","v":0},{"$f":"+'Impacts__SHC system_PV'!J37","v":0},{"$f":"+IF(SUM(H17:J17)=0,\"\",SUM(H17:J17))","v":""}]
[null,null,null,null,null,null,null,null,null,null,null,null,null,"LCA Results",null,null,null,null,null,"Notes"]
[]
[]
[]
[]
[]
[]
[]
[]
[]
[]
[null,null,null,null,null,null,null,null,null,null,null,null,null,"Input pages"]

{"sheet":"Impacts comparison (7)","index":23,"n_rows":29,"n_cols":20,"rows_kept":29,"cut":false,"hidden":true,"merged":[[13,3,13,6],[13,7,13,10]]}
[]
[]
[]
[]
[]
[]
[]
[]
[]
[null,null,null,null,null,null,null,null,null,null,null,null,null,"INFO MENU'"]
[]
[]
[]
[null,null,"SYSTEM","GLOBAL ENERGY REQUIREMENT (GER) (MJ)",null,null,null,"GLOBAL WARMING POTENTIAL (GWP) (kg CO2eq)"]
[null,null,null,"Manufacturing","Operation","End-of-Life","Total","Manufacturing","Operation","End-of-Life","Total"]
[null,null,"Conventional System",{"$f":"+Impacts__Conventional_system!D37","v":0},{"$f":"+Impacts__Conventional_system!E37","v":0},{"$f":"+Impacts__Conventional_system!F37","v":0},{"$f":"+IF(SUM(D16:F16)=0,\"\",SUM(D16:F16))","v":""},{"$f":"+Impacts__Conventional_system!H37","v":0},{"$f":"+Impacts__Conventional_system!I37","v":0},{"$f":"+Impacts__Conventional_system!J37","v":0},{"$f":"+IF(SUM(H16:J16)=0,\"\",SUM(H16:J16))","v":""}]
[null,null,"Conventional System with PV",{"$f":"+Impacts_Conventional_system_PV!D37","v":0},{"$f":"+Impacts_Conventional_system_PV!E37","v":0},{"$f":"+Impacts_Conventional_system_PV!F37","v":0},{"$f":"+IF(SUM(D17:F17)=0,\"\",SUM(D17:F17))","v":""},{"$f":"+Impacts_Conventional_system_PV!H37","v":0},{"$f":"+Impacts_Conventional_system_PV!I37","v":0},{"$f":"+Impacts_Conventional_system_PV!J37","v":0},{"$f":"+IF(SUM(H17:J17)=0,\"\",SUM(H17:J17))","v":""}]
[null,null,null,null,null,null,null,null,null,null,null,null,null,"LCA Results",null,null,null,null,null,"Notes"]
[]
[]
[]
[]
[]
[]
[]
[]
[]
[]
[null,null,null,null,null,null,null,null,null,null,null,null,null,"Input pages"]

{"sheet":"Impacts comparison (8)","index":24,"n_rows":29,"n_cols":20,"rows_kept":29,"cut":false,"hidden":true,"merged":[[13,3,13,6],[13,7,13,10]]}
[]
[]
[]
[]
[]
[]
[]
[]
[]
[null,null,null,null,null,null,null,null,null,null,null,null,null,"INFO MENU'"]
[]
[]
[]
[null,null,"SYSTEM","GLOBAL ENERGY REQUIREMENT (GER) (MJ)",null,null,null,"GLOBAL WARMING POTENTIAL (GWP) (kg CO2eq)"]
[null,null,null,"Manufacturing","Operation","End-of-Life","Total","Manufacturing","Operation","End-of-Life","Total"]
[null,null,"SHC System",{"$f":"+'Impacts_SHC system'!D37","v":0},{"$f":"+'Impacts_SHC system'!E37","v":0},{"$f":"+'Impacts_SHC system'!F37","v":0},{"$f":"+IF(SUM(D16:F16)=0,\"\",SUM(D16:F16))","v":""},{"$f":"+'Impacts_SHC system'!H37","v":0},{"$f":"+'Impacts_SHC system'!I37","v":0},{"$f":"+'Impacts_SHC system'!J37","v":0},{"$f":"+IF(SUM(H16:J16)=0,\"\",SUM(H16:J16))","v":""}]
[null,null,"Conventional System",{"$f":"+Impacts__Conventional_system!D37","v":0},{"$f":"+Impacts__Conventional_system!E37","v":0},{"$f":"+Impacts__Conventional_system!F37","v":0},{"$f":"+IF(SUM(D17:F17)=0,\"\",SUM(D17:F17))","v":""},{"$f":"+Impacts__Conventional_system!H37","v":0},{"$f":"+Impacts__Conventional_system!I37","v":0},{"$f":"+Impacts__Conventional_system!J37","v":0},{"$f":"+IF(SUM(H17:J17)=0,\"\",SUM(H17:J17))","v":""}]
[null,null,null,null,null,null,null,null,null,null,null,null,null,"LCA Results",null,null,null,null,null,"Notes"]
[]
[]
[]
[]
[]
[]
[]
[]
[]
[]
[null,null,null,null,null,null,null,null,null,null,null,null,null,"Input pages"]

{"sheet":"Impacts comparison (9)","index":25,"n_rows":29,"n_cols":20,"rows_kept":29,"cut":false,"hidden":true,"merged":[[13,3,13,6],[13,7,13,10]]}
[]
[]
[]
[]
[]
[]
[]
[]
[]
[null,null,null,null,null,null,null,null,null,null,null,null,null,"INFO MENU'"]
[]
[]
[]
[null,null,"SYSTEM","GLOBAL ENERGY REQUIREMENT (GER) (MJ)",null,null,null,"GLOBAL WARMING POTENTIAL (GWP) (kg CO2eq)"]
[null,null,null,"Manufacturing","Operation","End-of-Life","Total","Manufacturing","Operation","End-of-Life","Total"]
[null,null,"SHC System with PV",{"$f":"+'Impacts__SHC system_PV'!D37","v":0},{"$f":"+'Impacts__SHC system_PV'!E37","v":0},{"$f":"+'Impacts__SHC system_PV'!F37","v":0},{"$f":"+IF(SUM(D16:F16)=0,\"\",SUM(D16:F16))","v":""},{"$f":"+'Impacts__SHC system_PV'!H37","v":0},{"$f":"+'Impacts__SHC system_PV'!I37","v":0},{"$f":"+'Impacts__SHC system_PV'!J37","v":0},{"$f":"+IF(SUM(H16:J16)=0,\"\",SUM(H16:J16))","v":""}]
[null,null,"Conventional System with PV",{"$f":"+Impacts_Conventional_system_PV!D37","v":0},{"$f":"+Impacts_Conventional_system_PV!E37","v":0},{"$f":"+Impacts_Conventional_system_PV!F37","v":0},{"$f":"+IF(SUM(D17:F17)=0,\"\",SUM(D17:F17))","v":""},{"$f":"+Impacts_Conventional_system_PV!H37","v":0},{"$f":"+Impacts_Conventional_system_PV!I37","v":0},{"$f":"+Impacts_Conventional_system_PV!J37","v":0},{"$f":"+IF(SUM(H17:J17)=0,\"\",SUM(H17:J17))","v":""}]
[null,null,null,null,null,null,null,null,null,null,null,null,null,"LCA Results",null,null,null,null,null,"Notes"]
[]
[]
[]
[]
[]
[]
[]
[]
[]
[]
[null,null,null,null,null,null,null,null,null,null,null,null,null,"Input pages"]

{"sheet":"Impacts comparison (10)","index":26,"n_rows":29,"n_cols":20,"rows_kept":29,"cut":false,"hidden":true,"merged":[[13,3,13,6],[13,7,13,10]]}
[]
[]
[]
[]
[]
[]
[]
[]
[]
[null,null,null,null,null,null,null,null,null,null,null,null,null,"INFO MENU'"]
[]
[]
[]
[null,null,"SYSTEM","GLOBAL ENERGY REQUIREMENT (GER) (MJ)",null,null,null,"GLOBAL WARMING POTENTIAL (GWP) (kg CO2eq)"]
[null,null,null,"Manufacturing","Operation","End-of-Life","Total","Manufacturing","Operation","End-of-Life","Total"]
[null,null,"SHC System",{"$f":"+'Impacts_SHC system'!D37","v":0},{"$f":"+'Impacts_SHC system'!E37","v":0},{"$f":"+'Impacts_SHC system'!F37","v":0},{"$f":"+IF(SUM(D16:F16)=0,\"\",SUM(D16:F16))","v":""},{"$f":"+'Impacts_SHC system'!H37","v":0},{"$f":"+'Impacts_SHC system'!I37","v":0},{"$f":"+'Impacts_SHC system'!J37","v":0},{"$f":"+IF(SUM(H16:J16)=0,\"\",SUM(H16:J16))","v":""}]
[null,null,"Conventional System with PV",{"$f":"+Impacts_Conventional_system_PV!D37","v":0},{"$f":"+Impacts_Conventional_system_PV!E37","v":0},{"$f":"+Impacts_Conventional_system_PV!F37","v":0},{"$f":"+IF(SUM(D17:F17)=0,\"\",SUM(D17:F17))","v":""},{"$f":"+Impacts_Conventional_system_PV!H37","v":0},{"$f":"+Impacts_Conventional_system_PV!I37","v":0},{"$f":"+Impacts_Conventional_system_PV!J37","v":0},{"$f":"+IF(SUM(H17:J17)=0,\"\",SUM(H17:J17))","v":""}]
[null,null,null,null,null,null,null,null,null,null,null,null,null,"LCA Results",null,null,null,null,null,"Notes"]
[]
[]
[]
[]
[]
[]
[]
[]
[]
[]
[null,null,null,null,null,null,null,null,null,null,null,null,null,"Input pages"]

{"sheet":"Impacts comparison (11)","index":27,"n_rows":29,"n_cols":20,"rows_kept":29,"cut":false,"hidden":true,"merged":[[13,3,13,6],[13,7,13,10]]}
[]
[]
[]
[]
[]
[]
[]
[]
[]
[null,null,null,null,null,null,null,null,null,null,null,null,null,"INFO MENU'"]
[]
[]
[]
[null,null,"SYSTEM","GLOBAL ENERGY REQUIREMENT (GER) (MJ)",null,null,null,"GLOBAL WARMING POTENTIAL (GWP) (kg CO2eq)"]
[null,null,null,"Manufacturing","Operation","End-of-Life","Total","Manufacturing","Operation","End-of-Life","Total"]
[null,null,"SHC System with PV",{"$f":"+'Impacts__SHC system_PV'!D37","v":0},{"$f":"+'Impacts__SHC system_PV'!E37","v":0},{"$f":"+'Impacts__SHC system_PV'!F37","v":0},{"$f":"+IF(SUM(D16:F16)=0,\"\",SUM(D16:F16))","v":""},{"$f":"+'Impacts__SHC system_PV'!H37","v":0},{"$f":"+'Impacts__SHC system_PV'!I37","v":0},{"$f":"+'Impacts__SHC system_PV'!J37","v":0},{"$f":"+IF(SUM(H16:J16)=0,\"\",SUM(H16:J16))","v":""}]
[null,null,"Conventional System",{"$f":"+Impacts__Conventional_system!D37","v":0},{"$f":"+Impacts__Conventional_system!E37","v":0},{"$f":"+Impacts__Conventional_system!F37","v":0},{"$f":"+IF(SUM(D17:F17)=0,\"\",SUM(D17:F17))","v":""},{"$f":"+Impacts__Conventional_system!H37","v":0},{"$f":"+Impacts__Conventional_system!I37","v":0},{"$f":"+Impacts__Conventional_system!J37","v":0},{"$f":"+IF(SUM(H17:J17)=0,\"\",SUM(H17:J17))","v":""}]
[null,null,null,null,null,null,null,null,null,null,null,null,null,"LCA Results",null,null,null,null,null,"Notes"]
[]
[]
[]
[]
[]
[]
[]
[]
[]
[]
[null,null,null,null,null,null,null,null,null,null,null,null,null,"Input pages"]

{"sheet":"_SSC","index":28,"n_rows":28,"n_cols":5,"rows_kept":28,"cut":false,"hidden":true,"merged":[]}
[null,null,"{\"IsHide\":false,\"HiddenInExcel\":false,\"SheetId\":-1,\"Name\":\"START\",\"Guid\":\"FWNXHQ\",\"Index\":1,\"VisibleRange\":\"\",\"SheetTheme\":{\"TabColor\":\"\",\"BodyColor\":\"\",\"BodyImage\":\"\"}}","{\"InputDetection\":0,\"RecalcMode\":0,\"Layout\":0,\"LayoutSamePagesHeightEnabled\":false,\"Theme\":{\"BgColor\":\"#FFFFFFFF\",\"BgImage\":\"\",\"InputBorderStyle\":2,\"AppliedTheme\":\"\"},\"SmartphoneSettings\":{\"ViewportLock\":true,\"UseOldViewEngine\":false,\"EnableZoom\":false,\"EnableSwipe\":false,\"HideToolbar\":false,\"InheritBackgroundColor\":false,\"CheckboxFlavor\":1,\"ShowBubble\":false},\"Name\":\"\",\"Flavor\":-1,\"Edition\":0,\"CopyProtect\":{\"IsEnabled\":false,\"DomainName\":\"\"},\"HideSscPoweredlogo\":true,\"AspnetConfig\":{\"BrowseUrl\":\"http://localhost/ssc\",\"FileExtension\":0},\"NodeSecureLoginEnabled\":false,\"SmartphoneTheme\":1,\"Toolbar\":{\"Position\":1,\"IsSubmit\":true,\"IsPrint\":true,\"IsPrintAll\":false,\"IsReset\":true,\"IsUpdate\":true},\"ConfigureSubmit\":{\"IsShowCaptcha\":false,\"IsUseSscWebServer\":true,\"ReceiverCode\":\"\",\"IsFreeService\":false,\"IsAdvanceService\":false,\"IsSecureEmail\":false,\"IsDemonstrationService\":false,\"AfterSuccessfulSubmit\":\"\",\"AfterFailSubmit\":\"\",\"AfterCancelWizard\":\"\",\"IsUseOwnWebServer\":false,\"OwnWebServerURL\":\"\",\"OwnWebServerTarget\":\"\",\"SubmitTarget\":0},\"IgnoreBgInputCell\":false,\"ButtonStyle\":0,\"ResponsiveDesignDisabled\":false,\"HideLookupRange\":false,\"BrowserStorageEnabled\":true,\"RealtimeSyncEnabled\":true,\"GoogleAnalyticsTrackingId\":\"\",\"GoogleApiKey\":\"\",\"ChartSelected\":3,\"ChartYAxisFixed\":false}","{\"BrowserAndLocation\":{\"ConversionPath\":\"C:\\\\Users\\\\Gulotta\\\\Documents\\\\SpreadsheetConverter\",\"SelectedBrowsers\":[]},\"SpreadsheetServer\":{\"Username\":\"\",\"Password\":\"\",\"ServerUrl\":\"\"},\"ConfigureSubmitDefault\":{\"Email\":\"\",\"Free\":false,\"Advanced\":false,\"AdvancedSecured\":false,\"Demo\":false},\"MessageBubble\":{\"Close\":false,\"TopMsg\":0},\"CustomizeTheme\":{\"Theme\":\"\"},\"QrSetting\":{\"ShowOnConversion\":true},\"CongratsPage\":{\"LastOpenedVersion\":\"\"},\"WordPressPluginSetting\":{\"IsPluginInstalled\":false},\"Preferences\":{\"IsAdvancedSettingModelInitialize\":true,\"IsCaptchaInitialize\":true,\"IsNodeSettingInitialize\":false,\"IsRequiredFieldModalInitialize\":true,\"IsSubmitDialogModelInitialize\":true,\"IsToolbarButtonModelInitialize\":true,\"IsWizardButtonModelInitialize\":true,\"ReadFromHidden\":false,\"AdvancedSetting\":null,\"NodeSetting\":{\"LoginText\":{\"LoginButtonText\":\"Login\",\"PageDescription\":\"Restricted access only\",\"LoginErrorMessage\":\"Authentication failed, please check your username and password.\",\"PlaceholderPassword\":\"password\",\"PlaceholderUsername\":\"username / email\",\"UserExtraMessage\":\"\"}},\"Captcha\":{\"Heading\":\"Enter the number displayed below.\",\"Message\":\"This is to verify that you are a human visitor, to prevent automated form submissions.\",\"OkButton\":\"OK\",\"CancelButton\":\"Cancel\",\"ErrorMessage\":\"Your answer is incorrect, please try again.\"},\"RequiredField\":{\"ErrorMessage\":\"The fields with the red border are required or invalid.\",\"OkButton\":\"OK\",\"DDLDefaultRequiredText\":\"Please Select\"},\"WizardButton\":{\"Next\":\"Next\",\"Previous\":\"Previous\",\"Cancel\":\"Cancel\",\"Finish\":\"Finish\"},\"ToolbarButton\":{\"Submit\":\"Submit\",\"Print\":\"Print\",\"PrintAll\":\"Print All\",\"Reset\":\"Reset\",\"Update\":\"Update\",\"Back\":\"Back\"},\"SubmitDialog\":{\"SubmitDialogHeading\":\"Submit Successful.\",\"SubmitDialogDesc\":\"The form was successfully submitted.\",\"BeforeSubmitDesc\":\"The form is being submitted.\",\"OfflineHeading\":\"Save until online\",\"OfflineDesc\":\"You are currently offline and the submit failed. Do you want to save the submit and send it later when you are online.\",\"OfflineConfirm\":\"Do you want to save?\",\"OfflineSubmitHeading\":\"Offline forms submit confirmation\",\"OfflineSubmitDesc\":\"There are Offline form(s), which are now ready to submit in server.\",\"OfflineSubmitConfirm\":\"Do you want to submit?\",\"FailOfflineHeading\":\"Offline Form submit failed\",\"FailOfflineDesc\":\"Unable to connect to the Internet. Please try submitting the offline forms later in internet connection.\",\"OfflineSubmitWait\":\"It may take sometime to finish all submits depending on the size of offline forms and internet connection.\",\"OfflineSubmitWaitCounter\":\"Left\",\"OfflineSubmitError\":\"Submit error: Please try later.\"}},\"UxPreferences\":null}"]
[null,null,"{\"IsHide\":true,\"HiddenInExcel\":true,\"SheetId\":-1,\"Name\":\"Library (2)\",\"Guid\":\"OQMD4I\",\"Index\":2,\"VisibleRange\":\"\",\"SheetTheme\":{\"TabColor\":\"\",\"BodyColor\":\"\",\"BodyImage\":\"\"}}"]
[null,null,"{\"IsHide\":true,\"HiddenInExcel\":true,\"SheetId\":-1,\"Name\":\"Foglio2\",\"Guid\":\"55627T\",\"Index\":3,\"VisibleRange\":\"\",\"SheetTheme\":{\"TabColor\":\"\",\"BodyColor\":\"\",\"BodyImage\":\"\"}}"]
[null,null,"{\"IsHide\":false,\"HiddenInExcel\":false,\"SheetId\":-1,\"Name\":\"SHC system\",\"Guid\":\"4TICMZ\",\"Index\":4,\"VisibleRange\":\"\",\"SheetTheme\":{\"TabColor\":\"\",\"BodyColor\":\"\",\"BodyImage\":\"\"}}"]
[null,null,"{\"IsHide\":false,\"HiddenInExcel\":false,\"SheetId\":-1,\"Name\":\"SHC system with PV\",\"Guid\":\"GVCS8U\",\"Index\":5,\"VisibleRange\":\"\",\"SheetTheme\":{\"TabColor\":\"\",\"BodyColor\":\"\",\"BodyImage\":\"\"}}"]
[null,null,"{\"IsHide\":false,\"HiddenInExcel\":false,\"SheetId\":-1,\"Name\":\"Conventional System \",\"Guid\":\"NYB5C2\",\"Index\":6,\"VisibleRange\":\"\",\"SheetTheme\":{\"TabColor\":\"\",\"BodyColor\":\"\",\"BodyImage\":\"\"}}"]
[null,null,"{\"IsHide\":false,\"HiddenInExcel\":false,\"SheetId\":-1,\"Name\":\"Conventional System with PV\",\"Guid\":\"ABM2F1\",\"Index\":7,\"VisibleRange\":\"\",\"SheetTheme\":{\"TabColor\":\"\",\"BodyColor\":\"\",\"BodyImage\":\"\"}}"]
[null,null,"{\"IsHide\":true,\"HiddenInExcel\":true,\"SheetId\":-1,\"Name\":\"Library\",\"Guid\":\"7KS6D9\",\"Index\":8,\"VisibleRange\":\"\",\"SheetTheme\":{\"TabColor\":\"\",\"BodyColor\":\"\",\"BodyImage\":\"\"}}"]
[null,null,"{\"IsHide\":true,\"HiddenInExcel\":true,\"SheetId\":-1,\"Name\":\"Calcolo a\",\"Guid\":\"AFAZJH\",\"Index\":9,\"VisibleRange\":\"\",\"SheetTheme\":{\"TabColor\":\"\",\"BodyColor\":\"\",\"BodyImage\":\"\"}}"]
[null,null,"{\"IsHide\":true,\"HiddenInExcel\":true,\"SheetId\":-1,\"Name\":\"Calcolo b\",\"Guid\":\"12AOHL\",\"Index\":10,\"VisibleRange\":\"\",\"SheetTheme\":{\"TabColor\":\"\",\"BodyColor\":\"\",\"BodyImage\":\"\"}}"]
[null,null,"{\"IsHide\":true,\"HiddenInExcel\":true,\"SheetId\":-1,\"Name\":\"Calcolo c\",\"Guid\":\"DWHRQ6\",\"Index\":11,\"VisibleRange\":\"\",\"SheetTheme\":{\"TabColor\":\"\",\"BodyColor\":\"\",\"BodyImage\":\"\"}}"]
[null,null,"{\"IsHide\":true,\"HiddenInExcel\":true,\"SheetId\":-1,\"Name\":\"Calcolo d\",\"Guid\":\"7ZT4RV\",\"Index\":12,\"VisibleRange\":\"\",\"SheetTheme\":{\"TabColor\":\"\",\"BodyColor\":\"\",\"BodyImage\":\"\"}}"]
[null,null,"{\"IsHide\":false,\"HiddenInExcel\":false,\"SheetId\":-1,\"Name\":\"Output_SHC system\",\"Guid\":\"61EH52\",\"Index\":13,\"VisibleRange\":\"\",\"SheetTheme\":{\"TabColor\":\"\",\"BodyColor\":\"\",\"BodyImage\":\"\"}}"]
[null,null,"{\"IsHide\":false,\"HiddenInExcel\":false,\"SheetId\":-1,\"Name\":\"Output_SHC system_PV\",\"Guid\":\"7AH3HS\",\"Index\":14,\"VisibleRange\":\"\",\"SheetTheme\":{\"TabColor\":\"\",\"BodyColor\":\"\",\"BodyImage\":\"\"}}"]
[null,null,"{\"IsHide\":true,\"HiddenInExcel\":true,\"SheetId\":-1,\"Name\":\"Output_Conventional_sistem\",\"Guid\":\"JNFT49\",\"Index\":15,\"VisibleRange\":\"\",\"SheetTheme\":{\"TabColor\":\"\",\"BodyColor\":\"\",\"BodyImage\":\"\"}}"]
[null,null,"{\"IsHide\":false,\"HiddenInExcel\":false,\"SheetId\":-1,\"Name\":\"Output_Conventional_system_PV\",\"Guid\":\"SMU1OI\",\"Index\":16,\"VisibleRange\":\"\",\"SheetTheme\":{\"TabColor\":\"\",\"BodyColor\":\"\",\"BodyImage\":\"\"}}"]
[null,null,"{\"IsHide\":true,\"HiddenInExcel\":true,\"SheetId\":-1,\"Name\":\"Impacts comparison\",\"Guid\":\"JGTMYD\",\"Index\":17,\"VisibleRange\":\"\",\"SheetTheme\":{\"TabColor\":\"\",\"BodyColor\":\"\",\"BodyImage\":\"\"}}"]
[null,null,"{\"IsHide\":true,\"HiddenInExcel\":true,\"SheetId\":-1,\"Name\":\"Payback indices\",\"Guid\":\"F6OFTH\",\"Index\":18,\"VisibleRange\":\"\",\"SheetTheme\":{\"TabColor\":\"\",\"BodyColor\":\"\",\"BodyImage\":\"\"}}"]
[null,null,"{\"IsHide\":true,\"HiddenInExcel\":true,\"SheetId\":-1,\"Name\":\"Impacts comparison (2)\",\"Guid\":\"3KX7G6\",\"Index\":19,\"VisibleRange\":\"\",\"SheetTheme\":{\"TabColor\":\"\",\"BodyColor\":\"\",\"BodyImage\":\"\"}}"]
[null,null,"{\"IsHide\":true,\"HiddenInExcel\":true,\"SheetId\":-1,\"Name\":\"Impacts comparison (3)\",\"Guid\":\"4AEO72\",\"Index\":20,\"VisibleRange\":\"\",\"SheetTheme\":{\"TabColor\":\"\",\"BodyColor\":\"\",\"BodyImage\":\"\"}}"]
[null,null,"{\"IsHide\":true,\"HiddenInExcel\":true,\"SheetId\":-1,\"Name\":\"Impacts comparison (4)\",\"Guid\":\"QEVKC4\",\"Index\":21,\"VisibleRange\":\"\",\"SheetTheme\":{\"TabColor\":\"\",\"BodyColor\":\"\",\"BodyImage\":\"\"}}"]
[null,null,"{\"IsHide\":true,\"HiddenInExcel\":true,\"SheetId\":-1,\"Name\":\"Impacts comparison (5)\",\"Guid\":\"05CVXO\",\"Index\":22,\"VisibleRange\":\"\",\"SheetTheme\":{\"TabColor\":\"\",\"BodyColor\":\"\",\"BodyImage\":\"\"}}"]
[null,null,"{\"IsHide\":true,\"HiddenInExcel\":true,\"SheetId\":-1,\"Name\":\"Impacts comparison (6)\",\"Guid\":\"8KB3OB\",\"Index\":23,\"VisibleRange\":\"\",\"SheetTheme\":{\"TabColor\":\"\",\"BodyColor\":\"\",\"BodyImage\":\"\"}}"]
[null,null,"{\"IsHide\":true,\"HiddenInExcel\":true,\"SheetId\":-1,\"Name\":\"Impacts comparison (7)\",\"Guid\":\"44TXQK\",\"Index\":24,\"VisibleRange\":\"\",\"SheetTheme\":{\"TabColor\":\"\",\"BodyColor\":\"\",\"BodyImage\":\"\"}}"]
[null,null,"{\"IsHide\":true,\"HiddenInExcel\":true,\"SheetId\":-1,\"Name\":\"Impacts comparison (8)\",\"Guid\":\"BK6NXE\",\"Index\":25,\"VisibleRange\":\"\",\"SheetTheme\":{\"TabColor\":\"\",\"BodyColor\":\"\",\"BodyImage\":\"\"}}"]
[null,null,"{\"IsHide\":true,\"HiddenInExcel\":true,\"SheetId\":-1,\"Name\":\"Impacts comparison (9)\",\"Guid\":\"3V8QVK\",\"Index\":26,\"VisibleRange\":\"\",\"SheetTheme\":{\"TabColor\":\"\",\"BodyColor\":\"\",\"BodyImage\":\"\"}}"]
[null,null,"{\"IsHide\":true,\"HiddenInExcel\":true,\"SheetId\":-1,\"Name\":\"Impacts comparison (10)\",\"Guid\":\"IUTJEO\",\"Index\":27,\"VisibleRange\":\"\",\"SheetTheme\":{\"TabColor\":\"\",\"BodyColor\":\"\",\"BodyImage\":\"\"}}"]
[null,null,"{\"IsHide\":true,\"HiddenInExcel\":true,\"SheetId\":-1,\"Name\":\"Impacts comparison (11)\",\"Guid\":\"47M8YV\",\"Index\":28,\"VisibleRange\":\"\",\"SheetTheme\":{\"TabColor\":\"\",\"BodyColor\":\"\",\"BodyImage\":\"\"}}"]